﻿Dept/Family,Entity,Expense Type,Expense Area,Supplier,Payment Date, Amount ,SME,UNSPCC Code,UNSPCC Description
"Ministry of Housing, Communities and Local Government",Homes England,ESTATE GENERAL MAINTENANCE,Development,BARTON GRANGE LANDSCAPES,16/12/2021," £1,343.16 ",LAR,72101500,Building maintenance and repair services
"Ministry of Housing, Communities and Local Government",Homes England,MISC PROFESSIONAL FEES,Investment,HM LAND REGISTRY,01/12/2021," £1,197.00 ",PUB,80131700,Escrow and title services
"Ministry of Housing, Communities and Local Government",Homes England,MISC PROFESSIONAL FEES,Investment,HM LAND REGISTRY,02/12/2021," £1,200.00 ",PUB,80131700,Escrow and title services
"Ministry of Housing, Communities and Local Government",Homes England,MISC PROFESSIONAL FEES,Investment,HM LAND REGISTRY,03/12/2021," £1,203.00 ",PUB,80131700,Escrow and title services
"Ministry of Housing, Communities and Local Government",Homes England,MISC PROFESSIONAL FEES,Investment,HM LAND REGISTRY,06/12/2021," £1,215.00 ",PUB,80131700,Escrow and title services
"Ministry of Housing, Communities and Local Government",Homes England,MISC PROFESSIONAL FEES,Investment,HM LAND REGISTRY,07/12/2021," £1,194.00 ",PUB,80131700,Escrow and title services
"Ministry of Housing, Communities and Local Government",Homes England,MISC PROFESSIONAL FEES,Investment,HM LAND REGISTRY,08/12/2021," £1,197.00 ",PUB,80131700,Escrow and title services
"Ministry of Housing, Communities and Local Government",Homes England,MISC PROFESSIONAL FEES,Investment,HM LAND REGISTRY,09/12/2021," £1,194.00 ",PUB,80131700,Escrow and title services
"Ministry of Housing, Communities and Local Government",Homes England,MISC PROFESSIONAL FEES,Investment,HM LAND REGISTRY,10/12/2021," £1,206.00 ",PUB,80131700,Escrow and title services
"Ministry of Housing, Communities and Local Government",Homes England,MISC PROFESSIONAL FEES,Investment,HM LAND REGISTRY,14/12/2021," £1,200.00 ",PUB,80131700,Escrow and title services
"Ministry of Housing, Communities and Local Government",Homes England,MISC PROFESSIONAL FEES,Investment,HM LAND REGISTRY,14/12/2021," £1,200.00 ",PUB,80131700,Escrow and title services
"Ministry of Housing, Communities and Local Government",Homes England,MISC PROFESSIONAL FEES,Investment,HM LAND REGISTRY,15/12/2021," £1,200.00 ",PUB,80131700,Escrow and title services
"Ministry of Housing, Communities and Local Government",Homes England,MISC PROFESSIONAL FEES,Investment,HM LAND REGISTRY,16/12/2021," £1,200.00 ",PUB,80131700,Escrow and title services
"Ministry of Housing, Communities and Local Government",Homes England,MISC PROFESSIONAL FEES,Investment,HM LAND REGISTRY,17/12/2021, £624.00 ,PUB,80131700,Escrow and title services
"Ministry of Housing, Communities and Local Government",Homes England,MISC PROFESSIONAL FEES,Investment,HM LAND REGISTRY,20/12/2021," £1,770.00 ",PUB,80131700,Escrow and title services
"Ministry of Housing, Communities and Local Government",Homes England,MISC PROFESSIONAL FEES,Investment,HM LAND REGISTRY,21/12/2021," £1,203.00 ",PUB,80131700,Escrow and title services
"Ministry of Housing, Communities and Local Government",Homes England,MISC PROFESSIONAL FEES,Investment,HM LAND REGISTRY,22/12/2021," £1,197.00 ",PUB,80131700,Escrow and title services
"Ministry of Housing, Communities and Local Government",Homes England,MISC PROFESSIONAL FEES,Investment,HM LAND REGISTRY,23/12/2021," £1,200.00 ",PUB,80131700,Escrow and title services
"Ministry of Housing, Communities and Local Government",Homes England,MISC PROFESSIONAL FEES,Investment,HM LAND REGISTRY,24/12/2021," £1,200.00 ",PUB,80131700,Escrow and title services
"Ministry of Housing, Communities and Local Government",Homes England,MISC PROFESSIONAL FEES,Investment,HM LAND REGISTRY,31/12/2021," £1,197.00 ",PUB,80131700,Escrow and title services
"Ministry of Housing, Communities and Local Government",Homes England,MISC PROFESSIONAL FEES,Investment,HM LAND REGISTRY,31/12/2021," £1,197.00 ",PUB,80131700,Escrow and title services
"Ministry of Housing, Communities and Local Government",Homes England,MISC PROFESSIONAL FEES,Investment,HM LAND REGISTRY,31/12/2021," £1,209.00 ",PUB,80131700,Escrow and title services
"Ministry of Housing, Communities and Local Government",Homes England,REV GRNTS TO LOCAL AUTHORITIES,Investment,MANCHESTER CITY COUNCIL,01/12/2021," £30,375.00 ",PUB,None,Grants
"Ministry of Housing, Communities and Local Government",Homes England,REV GRNTS TO LOCAL AUTHORITIES,Investment,MANCHESTER CITY COUNCIL,02/12/2021," £33,750.00 ",PUB,None,Grants
"Ministry of Housing, Communities and Local Government",Homes England,REV GRNTS TO LOCAL AUTHORITIES,Investment,MANCHESTER CITY COUNCIL,24/12/2021," £3,375.00 ",PUB,None,Grants
"Ministry of Housing, Communities and Local Government",Homes England,REV GRNTS TO LOCAL AUTHORITIES,Investment,MANCHESTER CITY COUNCIL,24/12/2021," £30,375.00 ",PUB,None,Grants
"Ministry of Housing, Communities and Local Government",Homes England,REV GRNTS TO LOCAL AUTHORITIES,Investment,MANCHESTER CITY COUNCIL,24/12/2021," £30,375.00 ",PUB,None,Grants
"Ministry of Housing, Communities and Local Government",Homes England,REV GRNTS TO LOCAL AUTHORITIES,Investment,MANCHESTER CITY COUNCIL,24/12/2021," £33,750.00 ",PUB,None,Grants
"Ministry of Housing, Communities and Local Government",Homes England,REV GRNTS TO LOCAL AUTHORITIES,Investment,MANCHESTER CITY COUNCIL,24/12/2021," £33,750.00 ",PUB,None,Grants
"Ministry of Housing, Communities and Local Government",Homes England,REV GRNTS TO LOCAL AUTHORITIES,Investment,WIGAN COUNCIL,21/12/2021," £1,458.00 ",PUB,None,Grants
"Ministry of Housing, Communities and Local Government",Homes England,REV GRNTS TO LOCAL AUTHORITIES,Investment,WIGAN COUNCIL,24/12/2021," £1,323.00 ",PUB,None,Grants
"Ministry of Housing, Communities and Local Government",Homes England,REV GRNTS TO LOCAL AUTHORITIES,Investment,WIGAN COUNCIL,24/12/2021," £1,351.00 ",PUB,None,Grants
"Ministry of Housing, Communities and Local Government",Homes England,REV GRNTS TO LOCAL AUTHORITIES,Investment,WIGAN COUNCIL,24/12/2021," £1,394.00 ",PUB,None,Grants
"Ministry of Housing, Communities and Local Government",Homes England,REV GRNTS TO LOCAL AUTHORITIES,Investment,WIGAN COUNCIL,24/12/2021," £7,720.00 ",PUB,None,Grants
"Ministry of Housing, Communities and Local Government",Homes England,REV GRNTS TO LOCAL AUTHORITIES,Investment,WIGAN COUNCIL,24/12/2021," £1,458.00 ",PUB,None,Grants
"Ministry of Housing, Communities and Local Government",Homes England,REV GRNTS TO LOCAL AUTHORITIES,Investment,WIGAN COUNCIL,24/12/2021," £1,458.00 ",PUB,None,Grants
"Ministry of Housing, Communities and Local Government",Homes England,REV GRNTS TO LOCAL AUTHORITIES,Investment,WIGAN COUNCIL,24/12/2021," £1,322.00 ",PUB,None,Grants
"Ministry of Housing, Communities and Local Government",Homes England,CAP GRNTS TO LOCAL AUTHORITIES,Investment,ROTHERHAM METROPOLITAN BOROUGH COUNCIL,24/12/2021," £7,500.00 ",PUB,None,Grants
"Ministry of Housing, Communities and Local Government",Homes England,CAP GRNTS TO LOCAL AUTHORITIES,Investment,ROTHERHAM METROPOLITAN BOROUGH COUNCIL,24/12/2021," £7,500.00 ",PUB,None,Grants
"Ministry of Housing, Communities and Local Government",Homes England,REV GRNTS TO LOCAL AUTHORITIES,Investment,GATESHEAD METROPOLITAN BOROUGH COUNCIL,24/12/2021," £1,167.00 ",PUB,None,Grants
"Ministry of Housing, Communities and Local Government",Homes England,REV GRNTS TO LOCAL AUTHORITIES,Investment,GATESHEAD METROPOLITAN BOROUGH COUNCIL,24/12/2021," £1,167.00 ",PUB,None,Grants
"Ministry of Housing, Communities and Local Government",Homes England,REV GRNTS TO LOCAL AUTHORITIES,Investment,GATESHEAD METROPOLITAN BOROUGH COUNCIL,24/12/2021," £1,167.00 ",PUB,None,Grants
"Ministry of Housing, Communities and Local Government",Homes England,REV GRNTS TO LOCAL AUTHORITIES,Investment,GATESHEAD METROPOLITAN BOROUGH COUNCIL,24/12/2021," £1,167.00 ",PUB,None,Grants
"Ministry of Housing, Communities and Local Government",Homes England,REV GRNTS TO LOCAL AUTHORITIES,Investment,GATESHEAD METROPOLITAN BOROUGH COUNCIL,24/12/2021," £1,167.00 ",PUB,None,Grants
"Ministry of Housing, Communities and Local Government",Homes England,REV GRNTS TO LOCAL AUTHORITIES,Investment,GATESHEAD METROPOLITAN BOROUGH COUNCIL,24/12/2021," £1,167.00 ",PUB,None,Grants
"Ministry of Housing, Communities and Local Government",Homes England,REV GRNTS TO LOCAL AUTHORITIES,Investment,GATESHEAD METROPOLITAN BOROUGH COUNCIL,24/12/2021," £1,167.00 ",PUB,None,Grants
"Ministry of Housing, Communities and Local Government",Homes England,REV GRNTS TO LOCAL AUTHORITIES,Investment,GATESHEAD METROPOLITAN BOROUGH COUNCIL,24/12/2021," £1,167.00 ",PUB,None,Grants
"Ministry of Housing, Communities and Local Government",Homes England,REV GRNTS TO LOCAL AUTHORITIES,Investment,GATESHEAD METROPOLITAN BOROUGH COUNCIL,24/12/2021," £1,167.00 ",PUB,None,Grants
"Ministry of Housing, Communities and Local Government",Homes England,REV GRNTS TO LOCAL AUTHORITIES,Investment,GATESHEAD METROPOLITAN BOROUGH COUNCIL,24/12/2021," £1,167.00 ",PUB,None,Grants
"Ministry of Housing, Communities and Local Government",Homes England,REV GRNTS TO LOCAL AUTHORITIES,Investment,GATESHEAD METROPOLITAN BOROUGH COUNCIL,24/12/2021," £1,167.00 ",PUB,None,Grants
"Ministry of Housing, Communities and Local Government",Homes England,REV GRNTS TO LOCAL AUTHORITIES,Investment,GATESHEAD METROPOLITAN BOROUGH COUNCIL,24/12/2021," £1,167.00 ",PUB,None,Grants
"Ministry of Housing, Communities and Local Government",Homes England,REV GRNTS TO LOCAL AUTHORITIES,Investment,GATESHEAD METROPOLITAN BOROUGH COUNCIL,24/12/2021," £1,167.00 ",PUB,None,Grants
"Ministry of Housing, Communities and Local Government",Homes England,REV GRNTS TO LOCAL AUTHORITIES,Investment,GATESHEAD METROPOLITAN BOROUGH COUNCIL,24/12/2021," £1,167.00 ",PUB,None,Grants
"Ministry of Housing, Communities and Local Government",Homes England,REV GRNTS TO LOCAL AUTHORITIES,Investment,GATESHEAD METROPOLITAN BOROUGH COUNCIL,24/12/2021," £1,167.00 ",PUB,None,Grants
"Ministry of Housing, Communities and Local Government",Homes England,CAP GRNTS TO LOCAL AUTHORITIES,Investment,NEWCASTLE CITY COUNCIL,23/12/2021," £497,000.00 ",PUB,None,Grants
"Ministry of Housing, Communities and Local Government",Homes England,CAP GRNTS TO LOCAL AUTHORITIES,Investment,NORTH TYNESIDE COUNCIL,22/12/2021," £14,391.00 ",PUB,None,Grants
"Ministry of Housing, Communities and Local Government",Homes England,REV GRNTS TO LOCAL AUTHORITIES,Investment,SOUTH TYNESIDE COUNCIL,24/12/2021," £5,753.00 ",PUB,None,Grants
"Ministry of Housing, Communities and Local Government",Homes England,CAP GRNTS TO LOCAL AUTHORITIES,Investment,DUDLEY METROPOLITAN BOROUGH COUNCIL,07/12/2021," £1,828,500.00 ",PUB,None,Grants
"Ministry of Housing, Communities and Local Government",Homes England,CAP GRNTS TO LOCAL AUTHORITIES,Investment,DUDLEY METROPOLITAN BOROUGH COUNCIL,07/12/2021," £1,788,750.00 ",PUB,None,Grants
"Ministry of Housing, Communities and Local Government",Homes England,BUILDINGS-VACANT RATES,Development,DARLINGTON BOROUGH COUNCIL,22/12/2021, £556.67 ,PUB,80131500,Lease and rental of property or building
"Ministry of Housing, Communities and Local Government",Homes England,CAP GRNTS TO LOCAL AUTHORITIES,Investment,THE COUNTY COUNCIL OF DURHAM,07/12/2021," £7,500.00 ",PUB,None,Grants
"Ministry of Housing, Communities and Local Government",Homes England,REV GRNTS TO LOCAL AUTHORITIES,Investment,THE COUNTY COUNCIL OF DURHAM,24/12/2021," £23,229.00 ",PUB,None,Grants
"Ministry of Housing, Communities and Local Government",Homes England,CAP GRNTS TO LOCAL AUTHORITIES,Investment,NORTHUMBERLAND COUNTY COUNCIL,07/12/2021," £7,500.00 ",PUB,None,Grants
"Ministry of Housing, Communities and Local Government",Homes England,REV GRNTS TO LOCAL AUTHORITIES,Investment,NORTHUMBERLAND COUNTY COUNCIL,24/12/2021," £5,738.00 ",PUB,None,Grants
"Ministry of Housing, Communities and Local Government",Homes England,CAP GRNTS TO LOCAL AUTHORITIES,Investment,EAST RIDING OF YORKSHIRE COUNCIL,03/12/2021," £8,750.00 ",PUB,None,Grants
"Ministry of Housing, Communities and Local Government",Homes England,CAP GRNTS TO LOCAL AUTHORITIES,Investment,EAST RIDING OF YORKSHIRE COUNCIL,03/12/2021," £8,750.00 ",PUB,None,Grants
"Ministry of Housing, Communities and Local Government",Homes England,REV GRNTS TO LOCAL AUTHORITIES,Investment,CITY OF YORK COUNCIL,06/12/2021," £35,168.00 ",PUB,None,Grants
"Ministry of Housing, Communities and Local Government",Homes England,Help to Buy 2 Additions,Investment,CITY OF YORK COUNCIL,20/12/2021," £45,000.00 ",PUB,None,Grants
"Ministry of Housing, Communities and Local Government",Homes England,REV GRNTS TO LOCAL AUTHORITIES,Investment,CITY OF YORK COUNCIL,24/12/2021," £35,168.00 ",PUB,None,Grants
"Ministry of Housing, Communities and Local Government",Homes England,REV GRNTS TO LOCAL AUTHORITIES,Investment,DERBY CITY COUNCIL,14/12/2021," £1,815.00 ",PUB,None,Grants
"Ministry of Housing, Communities and Local Government",Homes England,REV GRNTS TO LOCAL AUTHORITIES,Investment,DERBY CITY COUNCIL,21/12/2021," £27,000.00 ",PUB,None,Grants
"Ministry of Housing, Communities and Local Government",Homes England,REV GRNTS TO LOCAL AUTHORITIES,Investment,DERBY CITY COUNCIL,21/12/2021," £27,000.00 ",PUB,None,Grants
"Ministry of Housing, Communities and Local Government",Homes England,REV GRNTS TO LOCAL AUTHORITIES,Investment,DERBY CITY COUNCIL,21/12/2021," £27,000.00 ",PUB,None,Grants
"Ministry of Housing, Communities and Local Government",Homes England,REV GRNTS TO LOCAL AUTHORITIES,Investment,DERBY CITY COUNCIL,22/12/2021," £30,000.00 ",PUB,None,Grants
"Ministry of Housing, Communities and Local Government",Homes England,REV GRNTS TO LOCAL AUTHORITIES,Investment,DERBY CITY COUNCIL,22/12/2021," £30,000.00 ",PUB,None,Grants
"Ministry of Housing, Communities and Local Government",Homes England,REV GRNTS TO LOCAL AUTHORITIES,Investment,DERBY CITY COUNCIL,22/12/2021," £30,000.00 ",PUB,None,Grants
"Ministry of Housing, Communities and Local Government",Homes England,REV GRNTS TO LOCAL AUTHORITIES,Investment,DERBY CITY COUNCIL,23/12/2021," £3,000.00 ",PUB,None,Grants
"Ministry of Housing, Communities and Local Government",Homes England,REV GRNTS TO LOCAL AUTHORITIES,Investment,DERBY CITY COUNCIL,23/12/2021," £3,000.00 ",PUB,None,Grants
"Ministry of Housing, Communities and Local Government",Homes England,REV GRNTS TO LOCAL AUTHORITIES,Investment,DERBY CITY COUNCIL,24/12/2021," £1,991.00 ",PUB,None,Grants
"Ministry of Housing, Communities and Local Government",Homes England,REV GRNTS TO LOCAL AUTHORITIES,Investment,DERBY CITY COUNCIL,24/12/2021," £1,815.00 ",PUB,None,Grants
"Ministry of Housing, Communities and Local Government",Homes England,REV GRNTS TO LOCAL AUTHORITIES,Investment,DERBY CITY COUNCIL,24/12/2021," £1,815.00 ",PUB,None,Grants
"Ministry of Housing, Communities and Local Government",Homes England,REV GRNTS TO LOCAL AUTHORITIES,Investment,DERBY CITY COUNCIL,24/12/2021," £1,176.00 ",PUB,None,Grants
"Ministry of Housing, Communities and Local Government",Homes England,REV GRNTS TO LOCAL AUTHORITIES,Investment,DERBY CITY COUNCIL,24/12/2021," £1,991.00 ",PUB,None,Grants
"Ministry of Housing, Communities and Local Government",Homes England,REV GRNTS TO LOCAL AUTHORITIES,Investment,DERBY CITY COUNCIL,24/12/2021," £1,991.00 ",PUB,None,Grants
"Ministry of Housing, Communities and Local Government",Homes England,REV GRNTS TO LOCAL AUTHORITIES,Investment,DERBY CITY COUNCIL,24/12/2021," £1,176.00 ",PUB,None,Grants
"Ministry of Housing, Communities and Local Government",Homes England,REV GRNTS TO LOCAL AUTHORITIES,Investment,DERBY CITY COUNCIL,24/12/2021," £1,991.00 ",PUB,None,Grants
"Ministry of Housing, Communities and Local Government",Homes England,REV GRNTS TO LOCAL AUTHORITIES,Investment,DERBY CITY COUNCIL,24/12/2021," £1,815.00 ",PUB,None,Grants
"Ministry of Housing, Communities and Local Government",Homes England,REV GRNTS TO LOCAL AUTHORITIES,Investment,DERBY CITY COUNCIL,24/12/2021," £1,815.00 ",PUB,None,Grants
"Ministry of Housing, Communities and Local Government",Homes England,REV GRNTS TO LOCAL AUTHORITIES,Investment,DERBY CITY COUNCIL,24/12/2021," £1,815.00 ",PUB,None,Grants
"Ministry of Housing, Communities and Local Government",Homes England,REV GRNTS TO LOCAL AUTHORITIES,Investment,DERBY CITY COUNCIL,24/12/2021," £1,815.00 ",PUB,None,Grants
"Ministry of Housing, Communities and Local Government",Homes England,REV GRNTS TO LOCAL AUTHORITIES,Investment,DERBY CITY COUNCIL,24/12/2021," £1,815.00 ",PUB,None,Grants
"Ministry of Housing, Communities and Local Government",Homes England,REV GRNTS TO LOCAL AUTHORITIES,Investment,DERBY CITY COUNCIL,24/12/2021," £1,815.00 ",PUB,None,Grants
"Ministry of Housing, Communities and Local Government",Homes England,REV GRNTS TO LOCAL AUTHORITIES,Investment,DERBY CITY COUNCIL,24/12/2021," £1,815.00 ",PUB,None,Grants
"Ministry of Housing, Communities and Local Government",Homes England,REV GRNTS TO LOCAL AUTHORITIES,Investment,DERBY CITY COUNCIL,24/12/2021," £1,176.00 ",PUB,None,Grants
"Ministry of Housing, Communities and Local Government",Homes England,REV GRNTS TO LOCAL AUTHORITIES,Investment,DERBY CITY COUNCIL,24/12/2021," £1,815.00 ",PUB,None,Grants
"Ministry of Housing, Communities and Local Government",Homes England,REV GRNTS TO LOCAL AUTHORITIES,Investment,DERBY CITY COUNCIL,24/12/2021," £1,991.00 ",PUB,None,Grants
"Ministry of Housing, Communities and Local Government",Homes England,REV GRNTS TO LOCAL AUTHORITIES,Investment,DERBY CITY COUNCIL,24/12/2021," £1,815.00 ",PUB,None,Grants
"Ministry of Housing, Communities and Local Government",Homes England,REV GRNTS TO LOCAL AUTHORITIES,Investment,DERBY CITY COUNCIL,24/12/2021," £1,815.00 ",PUB,None,Grants
"Ministry of Housing, Communities and Local Government",Homes England,REV GRNTS TO LOCAL AUTHORITIES,Investment,DERBY CITY COUNCIL,24/12/2021," £1,815.00 ",PUB,None,Grants
"Ministry of Housing, Communities and Local Government",Homes England,REV GRNTS TO LOCAL AUTHORITIES,Investment,DERBY CITY COUNCIL,24/12/2021," £1,991.00 ",PUB,None,Grants
"Ministry of Housing, Communities and Local Government",Homes England,REV GRNTS TO LOCAL AUTHORITIES,Investment,DERBY CITY COUNCIL,24/12/2021," £1,815.00 ",PUB,None,Grants
"Ministry of Housing, Communities and Local Government",Homes England,REV GRNTS TO LOCAL AUTHORITIES,Investment,NOTTINGHAM CITY COUNCIL,24/12/2021," £1,430.00 ",PUB,None,Grants
"Ministry of Housing, Communities and Local Government",Homes England,REV GRNTS TO LOCAL AUTHORITIES,Investment,NOTTINGHAM CITY COUNCIL,24/12/2021," £1,705.00 ",PUB,None,Grants
"Ministry of Housing, Communities and Local Government",Homes England,REV GRNTS TO LOCAL AUTHORITIES,Investment,NOTTINGHAM CITY COUNCIL,24/12/2021," £1,430.00 ",PUB,None,Grants
"Ministry of Housing, Communities and Local Government",Homes England,REV GRNTS TO LOCAL AUTHORITIES,Investment,NOTTINGHAM CITY COUNCIL,24/12/2021," £2,530.00 ",PUB,None,Grants
"Ministry of Housing, Communities and Local Government",Homes England,REV GRNTS TO LOCAL AUTHORITIES,Investment,NOTTINGHAM CITY COUNCIL,24/12/2021," £3,041.00 ",PUB,None,Grants
"Ministry of Housing, Communities and Local Government",Homes England,REV GRNTS TO LOCAL AUTHORITIES,Investment,NOTTINGHAM CITY COUNCIL,24/12/2021," £1,430.00 ",PUB,None,Grants
"Ministry of Housing, Communities and Local Government",Homes England,REV GRNTS TO LOCAL AUTHORITIES,Investment,NOTTINGHAM CITY COUNCIL,24/12/2021," £1,430.00 ",PUB,None,Grants
"Ministry of Housing, Communities and Local Government",Homes England,REV GRNTS TO LOCAL AUTHORITIES,Investment,NOTTINGHAM CITY COUNCIL,24/12/2021," £2,530.00 ",PUB,None,Grants
"Ministry of Housing, Communities and Local Government",Homes England,REV GRNTS TO LOCAL AUTHORITIES,Investment,NOTTINGHAM CITY COUNCIL,24/12/2021," £1,705.00 ",PUB,None,Grants
"Ministry of Housing, Communities and Local Government",Homes England,REV GRNTS TO LOCAL AUTHORITIES,Investment,NOTTINGHAM CITY COUNCIL,24/12/2021," £1,430.00 ",PUB,None,Grants
"Ministry of Housing, Communities and Local Government",Homes England,REV GRNTS TO LOCAL AUTHORITIES,Investment,NOTTINGHAM CITY COUNCIL,24/12/2021," £1,705.00 ",PUB,None,Grants
"Ministry of Housing, Communities and Local Government",Homes England,CAP GRNTS TO LOCAL AUTHORITIES,Investment,SHROPSHIRE COUNCIL,21/12/2021," £31,200.00 ",PUB,None,Grants
"Ministry of Housing, Communities and Local Government",Homes England,CAP GRNTS TO LOCAL AUTHORITIES,Investment,SHROPSHIRE COUNCIL,21/12/2021," £192,000.00 ",PUB,None,Grants
"Ministry of Housing, Communities and Local Government",Homes England,CAP GRNTS TO LOCAL AUTHORITIES,Investment,SHROPSHIRE COUNCIL,21/12/2021," £470,400.00 ",PUB,None,Grants
"Ministry of Housing, Communities and Local Government",Homes England,CAP GRNTS TO LOCAL AUTHORITIES,Investment,SHROPSHIRE COUNCIL,22/12/2021," £2,246,199.15 ",PUB,None,Grants
"Ministry of Housing, Communities and Local Government",Homes England,CAP GRNTS TO LOCAL AUTHORITIES,Investment,CORNWALL COUNCIL,07/12/2021," £42,000.00 ",PUB,None,Grants
"Ministry of Housing, Communities and Local Government",Homes England,CAP GRNTS TO LOCAL AUTHORITIES,Investment,CORNWALL COUNCIL,07/12/2021," £252,000.00 ",PUB,None,Grants
"Ministry of Housing, Communities and Local Government",Homes England,CAP GRNTS TO LOCAL AUTHORITIES,Investment,CORNWALL COUNCIL,07/12/2021," £465,750.00 ",PUB,None,Grants
"Ministry of Housing, Communities and Local Government",Homes England,CAP GRNTS TO LOCAL AUTHORITIES,Investment,CORNWALL COUNCIL,07/12/2021," £168,000.00 ",PUB,None,Grants
"Ministry of Housing, Communities and Local Government",Homes England,CAP GRNTS TO LOCAL AUTHORITIES,Investment,CORNWALL COUNCIL,07/12/2021," £983,250.00 ",PUB,None,Grants
"Ministry of Housing, Communities and Local Government",Homes England,CAP GRNTS TO LOCAL AUTHORITIES,Investment,CORNWALL COUNCIL,07/12/2021," £84,000.00 ",PUB,None,Grants
"Ministry of Housing, Communities and Local Government",Homes England,CAP GRNTS TO LOCAL AUTHORITIES,Investment,CORNWALL COUNCIL,24/12/2021," £105,000.00 ",PUB,None,Grants
"Ministry of Housing, Communities and Local Government",Homes England,CAP GRNTS TO LOCAL AUTHORITIES,Investment,CORNWALL COUNCIL,24/12/2021," £327,750.00 ",PUB,None,Grants
"Ministry of Housing, Communities and Local Government",Homes England,CAP GRNTS TO LOCAL AUTHORITIES,Investment,CORNWALL COUNCIL,24/12/2021," £14,000.00 ",PUB,None,Grants
"Ministry of Housing, Communities and Local Government",Homes England,REV GRNTS TO LOCAL AUTHORITIES,Investment,WILTSHIRE COUNCIL,24/12/2021," £7,213.00 ",PUB,None,Grants
"Ministry of Housing, Communities and Local Government",Homes England,REV GRNTS TO LOCAL AUTHORITIES,Investment,SOUTHEND-ON-SEA BOROUGH COUNCIL,03/12/2021," £1,699.00 ",PUB,None,Grants
"Ministry of Housing, Communities and Local Government",Homes England,REV GRNTS TO LOCAL AUTHORITIES,Investment,SOUTHEND-ON-SEA BOROUGH COUNCIL,03/12/2021," £1,728.00 ",PUB,None,Grants
"Ministry of Housing, Communities and Local Government",Homes England,REV GRNTS TO LOCAL AUTHORITIES,Investment,SOUTHEND-ON-SEA BOROUGH COUNCIL,03/12/2021," £1,413.00 ",PUB,None,Grants
"Ministry of Housing, Communities and Local Government",Homes England,REV GRNTS TO LOCAL AUTHORITIES,Investment,SOUTHEND-ON-SEA BOROUGH COUNCIL,03/12/2021," £1,653.00 ",PUB,None,Grants
"Ministry of Housing, Communities and Local Government",Homes England,REV GRNTS TO LOCAL AUTHORITIES,Investment,SOUTHEND-ON-SEA BOROUGH COUNCIL,03/12/2021," £1,728.00 ",PUB,None,Grants
"Ministry of Housing, Communities and Local Government",Homes England,REV GRNTS TO LOCAL AUTHORITIES,Investment,SOUTHEND-ON-SEA BOROUGH COUNCIL,03/12/2021," £1,536.00 ",PUB,None,Grants
"Ministry of Housing, Communities and Local Government",Homes England,REV GRNTS TO LOCAL AUTHORITIES,Investment,SOUTHEND-ON-SEA BOROUGH COUNCIL,03/12/2021," £1,797.00 ",PUB,None,Grants
"Ministry of Housing, Communities and Local Government",Homes England,REV GRNTS TO LOCAL AUTHORITIES,Investment,SOUTHEND-ON-SEA BOROUGH COUNCIL,03/12/2021," £1,585.00 ",PUB,None,Grants
"Ministry of Housing, Communities and Local Government",Homes England,REV GRNTS TO LOCAL AUTHORITIES,Investment,SOUTHEND-ON-SEA BOROUGH COUNCIL,03/12/2021," £1,630.00 ",PUB,None,Grants
"Ministry of Housing, Communities and Local Government",Homes England,REV GRNTS TO LOCAL AUTHORITIES,Investment,SOUTHEND-ON-SEA BOROUGH COUNCIL,03/12/2021," £1,797.00 ",PUB,None,Grants
"Ministry of Housing, Communities and Local Government",Homes England,REV GRNTS TO LOCAL AUTHORITIES,Investment,SOUTHEND-ON-SEA BOROUGH COUNCIL,03/12/2021," £1,535.00 ",PUB,None,Grants
"Ministry of Housing, Communities and Local Government",Homes England,REV GRNTS TO LOCAL AUTHORITIES,Investment,SOUTHEND-ON-SEA BOROUGH COUNCIL,03/12/2021," £1,797.00 ",PUB,None,Grants
"Ministry of Housing, Communities and Local Government",Homes England,REV GRNTS TO LOCAL AUTHORITIES,Investment,SOUTHEND-ON-SEA BOROUGH COUNCIL,03/12/2021," £1,536.00 ",PUB,None,Grants
"Ministry of Housing, Communities and Local Government",Homes England,REV GRNTS TO LOCAL AUTHORITIES,Investment,SOUTHEND-ON-SEA BOROUGH COUNCIL,16/12/2021," £1,535.00 ",PUB,None,Grants
"Ministry of Housing, Communities and Local Government",Homes England,REV GRNTS TO LOCAL AUTHORITIES,Investment,SOUTHEND-ON-SEA BOROUGH COUNCIL,16/12/2021," £1,797.00 ",PUB,None,Grants
"Ministry of Housing, Communities and Local Government",Homes England,REV GRNTS TO LOCAL AUTHORITIES,Investment,SOUTHEND-ON-SEA BOROUGH COUNCIL,16/12/2021," £1,653.00 ",PUB,None,Grants
"Ministry of Housing, Communities and Local Government",Homes England,REV GRNTS TO LOCAL AUTHORITIES,Investment,SOUTHEND-ON-SEA BOROUGH COUNCIL,16/12/2021," £1,797.00 ",PUB,None,Grants
"Ministry of Housing, Communities and Local Government",Homes England,REV GRNTS TO LOCAL AUTHORITIES,Investment,SOUTHEND-ON-SEA BOROUGH COUNCIL,16/12/2021," £1,630.00 ",PUB,None,Grants
"Ministry of Housing, Communities and Local Government",Homes England,REV GRNTS TO LOCAL AUTHORITIES,Investment,SOUTHEND-ON-SEA BOROUGH COUNCIL,16/12/2021," £1,536.00 ",PUB,None,Grants
"Ministry of Housing, Communities and Local Government",Homes England,REV GRNTS TO LOCAL AUTHORITIES,Investment,SOUTHEND-ON-SEA BOROUGH COUNCIL,16/12/2021," £1,413.00 ",PUB,None,Grants
"Ministry of Housing, Communities and Local Government",Homes England,REV GRNTS TO LOCAL AUTHORITIES,Investment,SOUTHEND-ON-SEA BOROUGH COUNCIL,16/12/2021," £1,728.00 ",PUB,None,Grants
"Ministry of Housing, Communities and Local Government",Homes England,REV GRNTS TO LOCAL AUTHORITIES,Investment,SOUTHEND-ON-SEA BOROUGH COUNCIL,16/12/2021," £1,728.00 ",PUB,None,Grants
"Ministry of Housing, Communities and Local Government",Homes England,REV GRNTS TO LOCAL AUTHORITIES,Investment,SOUTHEND-ON-SEA BOROUGH COUNCIL,16/12/2021," £1,585.00 ",PUB,None,Grants
"Ministry of Housing, Communities and Local Government",Homes England,REV GRNTS TO LOCAL AUTHORITIES,Investment,SOUTHEND-ON-SEA BOROUGH COUNCIL,16/12/2021," £1,699.00 ",PUB,None,Grants
"Ministry of Housing, Communities and Local Government",Homes England,REV GRNTS TO LOCAL AUTHORITIES,Investment,SOUTHEND-ON-SEA BOROUGH COUNCIL,16/12/2021," £1,536.00 ",PUB,None,Grants
"Ministry of Housing, Communities and Local Government",Homes England,REV GRNTS TO LOCAL AUTHORITIES,Investment,SOUTHEND-ON-SEA BOROUGH COUNCIL,16/12/2021," £1,797.00 ",PUB,None,Grants
"Ministry of Housing, Communities and Local Government",Homes England,REV GRNTS TO LOCAL AUTHORITIES,Investment,SOUTHEND-ON-SEA BOROUGH COUNCIL,21/12/2021," £7,190.00 ",PUB,None,Grants
"Ministry of Housing, Communities and Local Government",Homes England,REV GRNTS TO LOCAL AUTHORITIES,Investment,SOUTHEND-ON-SEA BOROUGH COUNCIL,24/12/2021," £1,797.00 ",PUB,None,Grants
"Ministry of Housing, Communities and Local Government",Homes England,REV GRNTS TO LOCAL AUTHORITIES,Investment,SOUTHEND-ON-SEA BOROUGH COUNCIL,24/12/2021," £1,699.00 ",PUB,None,Grants
"Ministry of Housing, Communities and Local Government",Homes England,REV GRNTS TO LOCAL AUTHORITIES,Investment,SOUTHEND-ON-SEA BOROUGH COUNCIL,24/12/2021," £1,653.00 ",PUB,None,Grants
"Ministry of Housing, Communities and Local Government",Homes England,REV GRNTS TO LOCAL AUTHORITIES,Investment,SOUTHEND-ON-SEA BOROUGH COUNCIL,24/12/2021," £1,536.00 ",PUB,None,Grants
"Ministry of Housing, Communities and Local Government",Homes England,REV GRNTS TO LOCAL AUTHORITIES,Investment,SOUTHEND-ON-SEA BOROUGH COUNCIL,24/12/2021," £1,630.00 ",PUB,None,Grants
"Ministry of Housing, Communities and Local Government",Homes England,REV GRNTS TO LOCAL AUTHORITIES,Investment,SOUTHEND-ON-SEA BOROUGH COUNCIL,24/12/2021," £1,585.00 ",PUB,None,Grants
"Ministry of Housing, Communities and Local Government",Homes England,REV GRNTS TO LOCAL AUTHORITIES,Investment,SOUTHEND-ON-SEA BOROUGH COUNCIL,24/12/2021," £1,535.00 ",PUB,None,Grants
"Ministry of Housing, Communities and Local Government",Homes England,REV GRNTS TO LOCAL AUTHORITIES,Investment,SOUTHEND-ON-SEA BOROUGH COUNCIL,24/12/2021," £1,536.00 ",PUB,None,Grants
"Ministry of Housing, Communities and Local Government",Homes England,REV GRNTS TO LOCAL AUTHORITIES,Investment,SOUTHEND-ON-SEA BOROUGH COUNCIL,24/12/2021," £1,797.00 ",PUB,None,Grants
"Ministry of Housing, Communities and Local Government",Homes England,REV GRNTS TO LOCAL AUTHORITIES,Investment,SOUTHEND-ON-SEA BOROUGH COUNCIL,24/12/2021," £1,797.00 ",PUB,None,Grants
"Ministry of Housing, Communities and Local Government",Homes England,REV GRNTS TO LOCAL AUTHORITIES,Investment,SOUTHEND-ON-SEA BOROUGH COUNCIL,24/12/2021," £1,728.00 ",PUB,None,Grants
"Ministry of Housing, Communities and Local Government",Homes England,REV GRNTS TO LOCAL AUTHORITIES,Investment,SOUTHEND-ON-SEA BOROUGH COUNCIL,24/12/2021," £1,413.00 ",PUB,None,Grants
"Ministry of Housing, Communities and Local Government",Homes England,REV GRNTS TO LOCAL AUTHORITIES,Investment,SOUTHEND-ON-SEA BOROUGH COUNCIL,24/12/2021," £1,728.00 ",PUB,None,Grants
"Ministry of Housing, Communities and Local Government",Homes England,REV GRNTS TO LOCAL AUTHORITIES,Investment,SOUTHEND-ON-SEA BOROUGH COUNCIL,24/12/2021," £7,190.00 ",PUB,None,Grants
"Ministry of Housing, Communities and Local Government",Homes England,REV GRNTS TO LOCAL AUTHORITIES,Investment,SOUTHEND-ON-SEA BOROUGH COUNCIL,24/12/2021," £7,190.00 ",PUB,None,Grants
"Ministry of Housing, Communities and Local Government",Homes England,REV GRNTS TO LOCAL AUTHORITIES,Investment,BRIGHTON & HOVE CITY COUNCIL,24/12/2021," £1,575.00 ",PUB,None,Grants
"Ministry of Housing, Communities and Local Government",Homes England,REV GRNTS TO LOCAL AUTHORITIES,Investment,BRIGHTON & HOVE CITY COUNCIL,24/12/2021," £1,575.00 ",PUB,None,Grants
"Ministry of Housing, Communities and Local Government",Homes England,REV GRNTS TO LOCAL AUTHORITIES,Investment,BRIGHTON & HOVE CITY COUNCIL,24/12/2021," £1,575.00 ",PUB,None,Grants
"Ministry of Housing, Communities and Local Government",Homes England,REV GRNTS TO LOCAL AUTHORITIES,Investment,BRIGHTON & HOVE CITY COUNCIL,24/12/2021," £1,575.00 ",PUB,None,Grants
"Ministry of Housing, Communities and Local Government",Homes England,REV GRNTS TO LOCAL AUTHORITIES,Investment,BRIGHTON & HOVE CITY COUNCIL,24/12/2021," £1,575.00 ",PUB,None,Grants
"Ministry of Housing, Communities and Local Government",Homes England,REV GRNTS TO LOCAL AUTHORITIES,Investment,BRIGHTON & HOVE CITY COUNCIL,24/12/2021," £1,575.00 ",PUB,None,Grants
"Ministry of Housing, Communities and Local Government",Homes England,REV GRNTS TO LOCAL AUTHORITIES,Investment,BRIGHTON & HOVE CITY COUNCIL,24/12/2021," £1,575.00 ",PUB,None,Grants
"Ministry of Housing, Communities and Local Government",Homes England,REV GRNTS TO LOCAL AUTHORITIES,Investment,BRIGHTON & HOVE CITY COUNCIL,24/12/2021," £1,575.00 ",PUB,None,Grants
"Ministry of Housing, Communities and Local Government",Homes England,REV GRNTS TO LOCAL AUTHORITIES,Investment,BRIGHTON & HOVE CITY COUNCIL,24/12/2021," £1,575.00 ",PUB,None,Grants
"Ministry of Housing, Communities and Local Government",Homes England,REV GRNTS TO LOCAL AUTHORITIES,Investment,BRIGHTON & HOVE CITY COUNCIL,24/12/2021," £1,575.00 ",PUB,None,Grants
"Ministry of Housing, Communities and Local Government",Homes England,REV GRNTS TO LOCAL AUTHORITIES,Investment,BRIGHTON & HOVE CITY COUNCIL,24/12/2021," £1,575.00 ",PUB,None,Grants
"Ministry of Housing, Communities and Local Government",Homes England,REV GRNTS TO LOCAL AUTHORITIES,Investment,BRIGHTON & HOVE CITY COUNCIL,24/12/2021," £1,575.00 ",PUB,None,Grants
"Ministry of Housing, Communities and Local Government",Homes England,REV GRNTS TO LOCAL AUTHORITIES,Investment,BRIGHTON & HOVE CITY COUNCIL,24/12/2021," £1,575.00 ",PUB,None,Grants
"Ministry of Housing, Communities and Local Government",Homes England,REV GRNTS TO LOCAL AUTHORITIES,Investment,BRIGHTON & HOVE CITY COUNCIL,24/12/2021," £1,575.00 ",PUB,None,Grants
"Ministry of Housing, Communities and Local Government",Homes England,REV GRNTS TO LOCAL AUTHORITIES,Investment,BRIGHTON & HOVE CITY COUNCIL,24/12/2021," £1,575.00 ",PUB,None,Grants
"Ministry of Housing, Communities and Local Government",Homes England,REV GRNTS TO LOCAL AUTHORITIES,Investment,BRIGHTON & HOVE CITY COUNCIL,24/12/2021," £1,575.00 ",PUB,None,Grants
"Ministry of Housing, Communities and Local Government",Homes England,REV GRNTS TO LOCAL AUTHORITIES,Investment,BRIGHTON & HOVE CITY COUNCIL,24/12/2021," £1,575.00 ",PUB,None,Grants
"Ministry of Housing, Communities and Local Government",Homes England,REV GRNTS TO LOCAL AUTHORITIES,Investment,BRIGHTON & HOVE CITY COUNCIL,24/12/2021," £1,575.00 ",PUB,None,Grants
"Ministry of Housing, Communities and Local Government",Homes England,REV GRNTS TO LOCAL AUTHORITIES,Investment,BRIGHTON & HOVE CITY COUNCIL,24/12/2021," £1,575.00 ",PUB,None,Grants
"Ministry of Housing, Communities and Local Government",Homes England,REV GRNTS TO LOCAL AUTHORITIES,Investment,BRIGHTON & HOVE CITY COUNCIL,24/12/2021," £1,575.00 ",PUB,None,Grants
"Ministry of Housing, Communities and Local Government",Homes England,REV GRNTS TO LOCAL AUTHORITIES,Investment,BRIGHTON & HOVE CITY COUNCIL,24/12/2021," £1,575.00 ",PUB,None,Grants
"Ministry of Housing, Communities and Local Government",Homes England,REV GRNTS TO LOCAL AUTHORITIES,Investment,BRIGHTON & HOVE CITY COUNCIL,24/12/2021," £1,575.00 ",PUB,None,Grants
"Ministry of Housing, Communities and Local Government",Homes England,REV GRNTS TO LOCAL AUTHORITIES,Investment,BRIGHTON & HOVE CITY COUNCIL,24/12/2021," £1,575.00 ",PUB,None,Grants
"Ministry of Housing, Communities and Local Government",Homes England,REV GRNTS TO LOCAL AUTHORITIES,Investment,BRIGHTON & HOVE CITY COUNCIL,24/12/2021," £1,575.00 ",PUB,None,Grants
"Ministry of Housing, Communities and Local Government",Homes England,REV GRNTS TO LOCAL AUTHORITIES,Investment,BRIGHTON & HOVE CITY COUNCIL,24/12/2021," £1,575.00 ",PUB,None,Grants
"Ministry of Housing, Communities and Local Government",Homes England,REV GRNTS TO LOCAL AUTHORITIES,Investment,BRIGHTON & HOVE CITY COUNCIL,24/12/2021," £1,575.00 ",PUB,None,Grants
"Ministry of Housing, Communities and Local Government",Homes England,REV GRNTS TO LOCAL AUTHORITIES,Investment,BRIGHTON & HOVE CITY COUNCIL,24/12/2021," £1,575.00 ",PUB,None,Grants
"Ministry of Housing, Communities and Local Government",Homes England,REV GRNTS TO LOCAL AUTHORITIES,Investment,BRIGHTON & HOVE CITY COUNCIL,24/12/2021," £1,575.00 ",PUB,None,Grants
"Ministry of Housing, Communities and Local Government",Homes England,REV GRNTS TO LOCAL AUTHORITIES,Investment,BRIGHTON & HOVE CITY COUNCIL,24/12/2021," £1,575.00 ",PUB,None,Grants
"Ministry of Housing, Communities and Local Government",Homes England,REV GRNTS TO LOCAL AUTHORITIES,Investment,BRIGHTON & HOVE CITY COUNCIL,24/12/2021," £1,575.00 ",PUB,None,Grants
"Ministry of Housing, Communities and Local Government",Homes England,CAP GRNTS TO LOCAL AUTHORITIES,Investment,PORTSMOUTH CITY COUNCIL,15/12/2021," £1,197,000.00 ",PUB,None,Grants
"Ministry of Housing, Communities and Local Government",Homes England,CAP GRNTS TO LOCAL AUTHORITIES,Investment,PORTSMOUTH CITY COUNCIL,15/12/2021," £38,250.00 ",PUB,None,Grants
"Ministry of Housing, Communities and Local Government",Homes England,CAP GRNTS TO LOCAL AUTHORITIES,Investment,PORTSMOUTH CITY COUNCIL,21/12/2021," £12,750.00 ",PUB,None,Grants
"Ministry of Housing, Communities and Local Government",Homes England,REV GRNTS TO LOCAL AUTHORITIES,Investment,PORTSMOUTH CITY COUNCIL,24/12/2021," £104,788.00 ",PUB,None,Grants
"Ministry of Housing, Communities and Local Government",Homes England,REV GRNTS TO LOCAL AUTHORITIES,Investment,PORTSMOUTH CITY COUNCIL,24/12/2021," £15,709.00 ",PUB,None,Grants
"Ministry of Housing, Communities and Local Government",Homes England,REV GRNTS TO LOCAL AUTHORITIES,Investment,PORTSMOUTH CITY COUNCIL,24/12/2021," £69,905.00 ",PUB,None,Grants
"Ministry of Housing, Communities and Local Government",Homes England,SERVICE CHARGE,Development,ASDA STORES LTD,22/12/2021, £342.96 ,LAR,80131500,Lease and rental of property or building
"Ministry of Housing, Communities and Local Government",Homes England,SERVICE CHARGE,Development,ASDA STORES LTD,22/12/2021, £758.09 ,LAR,80131500,Lease and rental of property or building
"Ministry of Housing, Communities and Local Government",Homes England,SERVICE CHARGES,Development,COVENTRY CITY COUNCIL,21/12/2021," £16,482.00 ",PUB,80131500,Lease and rental of property or building
"Ministry of Housing, Communities and Local Government",Homes England,RENT,Development,COVENTRY CITY COUNCIL,22/12/2021," £81,764.70 ",PUB,80131500,Lease and rental of property or building
"Ministry of Housing, Communities and Local Government",Homes England,REV GRNTS TO LOCAL AUTHORITIES,Investment,EXETER CITY COUNCIL,24/12/2021," £9,500.00 ",PUB,None,Grants
"Ministry of Housing, Communities and Local Government",Homes England,REV GRNTS TO LOCAL AUTHORITIES,Investment,EXETER CITY COUNCIL,24/12/2021," £8,407.00 ",PUB,None,Grants
"Ministry of Housing, Communities and Local Government",Homes England,PENSION SCHEME CONTRIBUTIONS,Corporate Allocations,LPFA,17/12/2021, £402.13 ,SMA,84131700,Pension funds
"Ministry of Housing, Communities and Local Government",Homes England,REV GRNTS TO LOCAL AUTHORITIES,Investment,EASTBOURNE BOROUGH COUNCIL,24/12/2021," £3,667.00 ",PUB,None,Grants
"Ministry of Housing, Communities and Local Government",Homes England,REV GRNTS TO LOCAL AUTHORITIES,Investment,EASTBOURNE BOROUGH COUNCIL,24/12/2021," £3,667.00 ",PUB,None,Grants
"Ministry of Housing, Communities and Local Government",Homes England,REV GRNTS TO LOCAL AUTHORITIES,Investment,EASTBOURNE BOROUGH COUNCIL,24/12/2021," £3,578.00 ",PUB,None,Grants
"Ministry of Housing, Communities and Local Government",Homes England,REV GRNTS TO LOCAL AUTHORITIES,Investment,WEALDEN DISTRICT COUNCIL,24/12/2021," £10,750.00 ",PUB,None,Grants
"Ministry of Housing, Communities and Local Government",Homes England,CAP GRNTS TO LOCAL AUTHORITIES,Investment,HARLOW COUNCIL,07/12/2021," £480,000.00 ",PUB,None,Grants
"Ministry of Housing, Communities and Local Government",Homes England,CAP GRNTS TO LOCAL AUTHORITIES,Investment,UTTLESFORD DISTRICT COUNCIL,14/12/2021," £114,000.00 ",PUB,None,Grants
"Ministry of Housing, Communities and Local Government",Homes England,ESTATE GENERAL MAINTENANCE,Development,IDVERDE LIMITED,01/12/2021, £872.46 ,LAR,72101500,Building maintenance and repair services
"Ministry of Housing, Communities and Local Government",Homes England,ESTATE GENERAL MAINTENANCE,Development,IDVERDE LIMITED,21/12/2021," £1,047.34 ",LAR,72101500,Building maintenance and repair services
"Ministry of Housing, Communities and Local Government",Homes England,ESTATE GENERAL MAINTENANCE,Development,IDVERDE LIMITED,22/12/2021, £550.53 ,LAR,72101500,Building maintenance and repair services
"Ministry of Housing, Communities and Local Government",Homes England,ESTATE GENERAL MAINTENANCE,Development,IDVERDE LIMITED,22/12/2021, £255.00 ,LAR,72101500,Building maintenance and repair services
"Ministry of Housing, Communities and Local Government",Homes England,ESTATE GENERAL MAINTENANCE,Development,LOWTHER FORESTRY GROUP,03/12/2021," £1,312.69 ",SMA,72101500,Building maintenance and repair services
"Ministry of Housing, Communities and Local Government",Homes England,ESTATE GENERAL MAINTENANCE,Development,LOWTHER FORESTRY GROUP,03/12/2021," £2,363.70 ",SMA,72101500,Building maintenance and repair services
"Ministry of Housing, Communities and Local Government",Homes England,FENCE MAINTENANCE,Development,LOWTHER FORESTRY GROUP,17/12/2021," £2,102.40 ",SMA,72102900,Facility maintenance and repair services
"Ministry of Housing, Communities and Local Government",Homes England,REV GRNTS TO LOCAL AUTHORITIES,Investment,EAST HERTFORDSHIRE DISTRICT COUNCIL,24/12/2021," £18,953.00 ",PUB,None,Grants
"Ministry of Housing, Communities and Local Government",Homes England,CAP GRNTS TO LOCAL AUTHORITIES,Investment,ST ALBANS CITY & DISTRICT COUNCIL,20/12/2021," £30,000.00 ",PUB,None,Grants
"Ministry of Housing, Communities and Local Government",Homes England,REV GRNTS TO LOCAL AUTHORITIES,Investment,STEVENGE BOROUGH COUNCIL,24/12/2021," £5,687.00 ",PUB,None,Grants
"Ministry of Housing, Communities and Local Government",Homes England,REV GRNTS TO LOCAL AUTHORITIES,Investment,STEVENGE BOROUGH COUNCIL,24/12/2021," £12,512.00 ",PUB,None,Grants
"Ministry of Housing, Communities and Local Government",Homes England,REV GRNTS TO LOCAL AUTHORITIES,Investment,STEVENGE BOROUGH COUNCIL,24/12/2021," £9,100.00 ",PUB,None,Grants
"Ministry of Housing, Communities and Local Government",Homes England,CAP GRNTS TO LOCAL AUTHORITIES,Investment,ASHFORD BOROUGH COUNCIL,01/12/2021," £284,035.00 ",PUB,None,Grants
"Ministry of Housing, Communities and Local Government",Homes England,REV GRNTS TO LOCAL AUTHORITIES,Investment,CANTERBURY CITY COUNCIL,24/12/2021," £3,737.00 ",PUB,None,Grants
"Ministry of Housing, Communities and Local Government",Homes England,REV GRNTS TO LOCAL AUTHORITIES,Investment,DOVER DISTRICT COUNCIL,24/12/2021," £1,377.00 ",PUB,None,Grants
"Ministry of Housing, Communities and Local Government",Homes England,REV GRNTS TO LOCAL AUTHORITIES,Investment,DOVER DISTRICT COUNCIL,24/12/2021," £1,377.00 ",PUB,None,Grants
"Ministry of Housing, Communities and Local Government",Homes England,REV GRNTS TO LOCAL AUTHORITIES,Investment,DOVER DISTRICT COUNCIL,24/12/2021," £1,377.00 ",PUB,None,Grants
"Ministry of Housing, Communities and Local Government",Homes England,CAP GRNTS TO LOCAL AUTHORITIES,Investment,HINCKLEY & BOSWORTH BOROUGH COUNCIL,16/12/2021," £300,000.00 ",PUB,None,Grants
"Ministry of Housing, Communities and Local Government",Homes England,POSTAGE/COURIERS,Development,MK LONDON LINK,02/12/2021, £839.99 ,SMA,78102200,Postal and small parcel and courier services
"Ministry of Housing, Communities and Local Government",Homes England,POSTAGE/COURIERS,Development,MK LONDON LINK,02/12/2021, £590.64 ,SMA,78102200,Postal and small parcel and courier services
"Ministry of Housing, Communities and Local Government",Homes England,POSTAGE/COURIERS,Development,MK LONDON LINK,21/12/2021, £458.64 ,SMA,78102200,Postal and small parcel and courier services
"Ministry of Housing, Communities and Local Government",Homes England,FENCE MAINTENANCE,Development,GROUND CONTROL LIMITED,20/12/2021," £2,001.60 ",LAR,72102900,Facility maintenance and repair services
"Ministry of Housing, Communities and Local Government",Homes England,FENCE MAINTENANCE,Development,GROUND CONTROL LIMITED,20/12/2021," £8,880.00 ",LAR,72102900,Facility maintenance and repair services
"Ministry of Housing, Communities and Local Government",Homes England,REV GRNTS TO LOCAL AUTHORITIES,Investment,CITY OF LINCOLN COUNCIL,03/12/2021," £22,050.00 ",PUB,None,Grants
"Ministry of Housing, Communities and Local Government",Homes England,REV GRNTS TO LOCAL AUTHORITIES,Investment,CITY OF LINCOLN COUNCIL,10/12/2021," £22,050.00 ",PUB,None,Grants
"Ministry of Housing, Communities and Local Government",Homes England,REV GRNTS TO LOCAL AUTHORITIES,Investment,CITY OF LINCOLN COUNCIL,22/12/2021," £24,500.00 ",PUB,None,Grants
"Ministry of Housing, Communities and Local Government",Homes England,REV GRNTS TO LOCAL AUTHORITIES,Investment,CITY OF LINCOLN COUNCIL,24/12/2021," £24,500.00 ",PUB,None,Grants
"Ministry of Housing, Communities and Local Government",Homes England,CAP GRNTS TO LOCAL AUTHORITIES,Investment,NORTH KESTEVEN DISTRICT COUNCIL,17/12/2021," £13,695.00 ",PUB,None,Grants
"Ministry of Housing, Communities and Local Government",Homes England,REV GRNTS TO LOCAL AUTHORITIES,Investment,NORTH KESTEVEN DISTRICT COUNCIL,24/12/2021," £3,945.00 ",PUB,None,Grants
"Ministry of Housing, Communities and Local Government",Homes England,REV GRNTS TO LOCAL AUTHORITIES,Investment,SOUTH HOLLAND DISTRICT COUNCIL,24/12/2021," £12,164.00 ",PUB,None,Grants
"Ministry of Housing, Communities and Local Government",Homes England,REV GRNTS TO LOCAL AUTHORITIES,Investment,SOUTH HOLLAND DISTRICT COUNCIL,24/12/2021," £4,101.00 ",PUB,None,Grants
"Ministry of Housing, Communities and Local Government",Homes England,REV GRNTS TO LOCAL AUTHORITIES,Investment,SOUTH HOLLAND DISTRICT COUNCIL,24/12/2021," £29,252.00 ",PUB,None,Grants
"Ministry of Housing, Communities and Local Government",Homes England,REV GRNTS TO LOCAL AUTHORITIES,Investment,WEST NORTHAMPTONSHIRE COUNCIL,24/12/2021, £700.00 ,PUB,None,Grants
"Ministry of Housing, Communities and Local Government",Homes England,REV GRNTS TO LOCAL AUTHORITIES,Investment,WEST NORTHAMPTONSHIRE COUNCIL,24/12/2021, £700.00 ,PUB,None,Grants
"Ministry of Housing, Communities and Local Government",Homes England,REV GRNTS TO LOCAL AUTHORITIES,Investment,WEST NORTHAMPTONSHIRE COUNCIL,24/12/2021, £700.00 ,PUB,None,Grants
"Ministry of Housing, Communities and Local Government",Homes England,REV GRNTS TO LOCAL AUTHORITIES,Investment,WEST NORTHAMPTONSHIRE COUNCIL,24/12/2021, £700.00 ,PUB,None,Grants
"Ministry of Housing, Communities and Local Government",Homes England,REV GRNTS TO LOCAL AUTHORITIES,Investment,WEST NORTHAMPTONSHIRE COUNCIL,24/12/2021, £700.00 ,PUB,None,Grants
"Ministry of Housing, Communities and Local Government",Homes England,REV GRNTS TO LOCAL AUTHORITIES,Investment,WEST NORTHAMPTONSHIRE COUNCIL,24/12/2021, £700.00 ,PUB,None,Grants
"Ministry of Housing, Communities and Local Government",Homes England,REV GRNTS TO LOCAL AUTHORITIES,Investment,WEST NORTHAMPTONSHIRE COUNCIL,24/12/2021, £700.00 ,PUB,None,Grants
"Ministry of Housing, Communities and Local Government",Homes England,REV GRNTS TO LOCAL AUTHORITIES,Investment,WEST NORTHAMPTONSHIRE COUNCIL,24/12/2021, £700.00 ,PUB,None,Grants
"Ministry of Housing, Communities and Local Government",Homes England,REV GRNTS TO LOCAL AUTHORITIES,Investment,WEST NORTHAMPTONSHIRE COUNCIL,24/12/2021, £700.00 ,PUB,None,Grants
"Ministry of Housing, Communities and Local Government",Homes England,REV GRNTS TO LOCAL AUTHORITIES,Investment,WEST NORTHAMPTONSHIRE COUNCIL,24/12/2021, £700.00 ,PUB,None,Grants
"Ministry of Housing, Communities and Local Government",Homes England,REV GRNTS TO LOCAL AUTHORITIES,Investment,WEST NORTHAMPTONSHIRE COUNCIL,24/12/2021, £700.00 ,PUB,None,Grants
"Ministry of Housing, Communities and Local Government",Homes England,REV GRNTS TO LOCAL AUTHORITIES,Investment,WEST NORTHAMPTONSHIRE COUNCIL,24/12/2021, £700.00 ,PUB,None,Grants
"Ministry of Housing, Communities and Local Government",Homes England,REV GRNTS TO LOCAL AUTHORITIES,Investment,WEST NORTHAMPTONSHIRE COUNCIL,24/12/2021, £700.00 ,PUB,None,Grants
"Ministry of Housing, Communities and Local Government",Homes England,REV GRNTS TO LOCAL AUTHORITIES,Investment,WEST NORTHAMPTONSHIRE COUNCIL,24/12/2021, £700.00 ,PUB,None,Grants
"Ministry of Housing, Communities and Local Government",Homes England,REV GRNTS TO LOCAL AUTHORITIES,Investment,WEST NORTHAMPTONSHIRE COUNCIL,24/12/2021, £700.00 ,PUB,None,Grants
"Ministry of Housing, Communities and Local Government",Homes England,CAP GRNTS TO LOCAL AUTHORITIES,Investment,CRAVEN DISTRICT COUNCIL,07/12/2021," £45,000.00 ",PUB,None,Grants
"Ministry of Housing, Communities and Local Government",Homes England,REV GRNTS TO LOCAL AUTHORITIES,Investment,THE COUNCIL OF THE BOROUGH OF HARROGATE,24/12/2021," £2,383.00 ",PUB,None,Grants
"Ministry of Housing, Communities and Local Government",Homes England,REV GRNTS TO LOCAL AUTHORITIES,Investment,THE COUNCIL OF THE BOROUGH OF HARROGATE,24/12/2021," £2,469.00 ",PUB,None,Grants
"Ministry of Housing, Communities and Local Government",Homes England,REV GRNTS TO LOCAL AUTHORITIES,Investment,THE COUNCIL OF THE BOROUGH OF HARROGATE,24/12/2021," £2,469.00 ",PUB,None,Grants
"Ministry of Housing, Communities and Local Government",Homes England,REV GRNTS TO LOCAL AUTHORITIES,Investment,RYEDALE DISTRICT COUNCIL,16/12/2021," £7,827.00 ",PUB,None,Grants
"Ministry of Housing, Communities and Local Government",Homes England,REV GRNTS TO LOCAL AUTHORITIES,Investment,RYEDALE DISTRICT COUNCIL,24/12/2021," £4,394.00 ",PUB,None,Grants
"Ministry of Housing, Communities and Local Government",Homes England,CAP GRNTS TO LOCAL AUTHORITIES,Investment,ASHFIELD DISTRICT COUNCIL,13/12/2021," £20,000.00 ",PUB,None,Grants
"Ministry of Housing, Communities and Local Government",Homes England,REV GRNTS TO LOCAL AUTHORITIES,Investment,NEWARK AND SHERWOOD DISTRICT COUNCIL,24/12/2021," £7,380.00 ",PUB,None,Grants
"Ministry of Housing, Communities and Local Government",Homes England,REV GRNTS TO LOCAL AUTHORITIES,Investment,OXFORD CITY COUNCIL,24/12/2021," £1,970.00 ",PUB,None,Grants
"Ministry of Housing, Communities and Local Government",Homes England,REV GRNTS TO LOCAL AUTHORITIES,Investment,OXFORD CITY COUNCIL,24/12/2021," £1,970.00 ",PUB,None,Grants
"Ministry of Housing, Communities and Local Government",Homes England,REV GRNTS TO LOCAL AUTHORITIES,Investment,OXFORD CITY COUNCIL,24/12/2021," £1,970.00 ",PUB,None,Grants
"Ministry of Housing, Communities and Local Government",Homes England,REV GRNTS TO LOCAL AUTHORITIES,Investment,OXFORD CITY COUNCIL,24/12/2021," £1,964.00 ",PUB,None,Grants
"Ministry of Housing, Communities and Local Government",Homes England,REV GRNTS TO LOCAL AUTHORITIES,Investment,OXFORD CITY COUNCIL,24/12/2021," £1,970.00 ",PUB,None,Grants
"Ministry of Housing, Communities and Local Government",Homes England,CAP GRNTS TO LOCAL AUTHORITIES,Investment,CHESHIRE WEST & CHESTER COUNCIL,15/12/2021," £971,567.54 ",PUB,None,Grants
"Ministry of Housing, Communities and Local Government",Homes England,CAP GRNTS TO LOCAL AUTHORITIES,Investment,SUNDERLAND CITY COUNCIL,21/12/2021," £277,907.44 ",PUB,None,Grants
"Ministry of Housing, Communities and Local Government",Homes England,CAP GRNTS TO LOCAL AUTHORITIES,Investment,CORNWALL COUNCIL,20/12/2021," £41,447.78 ",PUB,None,Grants
"Ministry of Housing, Communities and Local Government",Homes England,CAP GRNTS TO LOCAL AUTHORITIES,Investment,CORNWALL COUNCIL,21/12/2021," £257,764.22 ",PUB,None,Grants
"Ministry of Housing, Communities and Local Government",Homes England,CAP GRNTS TO LOCAL AUTHORITIES,Investment,CUMBRIA COUNTY COUNCIL,21/12/2021," £2,813,586.43 ",PUB,None,Grants
"Ministry of Housing, Communities and Local Government",Homes England,CAP GRNTS TO LOCAL AUTHORITIES,Investment,MEDWAY COUNCIL,21/12/2021," £510,458.46 ",PUB,None,Grants
"Ministry of Housing, Communities and Local Government",Homes England,CAP GRNTS TO LOCAL AUTHORITIES,Investment,DEVON COUNTY COUNCIL,20/12/2021," £343,104.72 ",PUB,None,Grants
"Ministry of Housing, Communities and Local Government",Homes England,REV GRNTS TO LOCAL AUTHORITIES,Investment,DEVON COUNTY COUNCIL,21/12/2021," £7,750.00 ",PUB,None,Grants
"Ministry of Housing, Communities and Local Government",Homes England,MISC PROFESSIONAL FEES,"Markets, Partners & Places",SHEFFIELD CITY COUNCIL,23/12/2021," £50,000.00 ",PUB,None,Contributions
"Ministry of Housing, Communities and Local Government",Homes England,CAP GRNTS TO LOCAL AUTHORITIES,Investment,STOKE ON TRENT CITY COUNCIL,17/12/2021," £859,301.00 ",PUB,None,Grants
"Ministry of Housing, Communities and Local Government",Homes England,CAP GRNTS TO LOCAL AUTHORITIES,Investment,CAMBRIDGE CITY COUNCIL,21/12/2021," £1,267,359.84 ",PUB,None,Grants
"Ministry of Housing, Communities and Local Government",Homes England,REV GRNTS TO LOCAL AUTHORITIES,Investment,WAVERLEY BOROUGH COUNCIL,24/12/2021," £1,924.00 ",PUB,None,Grants
"Ministry of Housing, Communities and Local Government",Homes England,REV GRNTS TO LOCAL AUTHORITIES,Investment,WOKING BOROUGH COUNCIL,13/12/2021," £34,065.00 ",PUB,None,Grants
"Ministry of Housing, Communities and Local Government",Homes England,REV GRNTS TO LOCAL AUTHORITIES,Investment,WOKING BOROUGH COUNCIL,13/12/2021," £34,065.00 ",PUB,None,Grants
"Ministry of Housing, Communities and Local Government",Homes England,REV GRNTS TO LOCAL AUTHORITIES,Investment,WOKING BOROUGH COUNCIL,16/12/2021," £37,850.00 ",PUB,None,Grants
"Ministry of Housing, Communities and Local Government",Homes England,REV GRNTS TO LOCAL AUTHORITIES,Investment,WOKING BOROUGH COUNCIL,16/12/2021," £37,850.00 ",PUB,None,Grants
"Ministry of Housing, Communities and Local Government",Homes England,REV GRNTS TO LOCAL AUTHORITIES,Investment,WOKING BOROUGH COUNCIL,17/12/2021," £3,785.00 ",PUB,None,Grants
"Ministry of Housing, Communities and Local Government",Homes England,REV GRNTS TO LOCAL AUTHORITIES,Investment,WOKING BOROUGH COUNCIL,17/12/2021," £3,785.00 ",PUB,None,Grants
"Ministry of Housing, Communities and Local Government",Homes England,REV GRNTS TO LOCAL AUTHORITIES,Investment,WOKING BOROUGH COUNCIL,24/12/2021," £26,000.00 ",PUB,None,Grants
"Ministry of Housing, Communities and Local Government",Homes England,CAP GRNTS TO LOCAL AUTHORITIES,Investment,WARWICK DISTRICT COUNCIL,01/12/2021," £59,250.00 ",PUB,None,Grants
"Ministry of Housing, Communities and Local Government",Homes England,CAP GRNTS TO LOCAL AUTHORITIES,Investment,WARWICK DISTRICT COUNCIL,01/12/2021," £126,875.00 ",PUB,None,Grants
"Ministry of Housing, Communities and Local Government",Homes England,CAP GRNTS TO LOCAL AUTHORITIES,Investment,WARWICK DISTRICT COUNCIL,01/12/2021," £126,875.00 ",PUB,None,Grants
"Ministry of Housing, Communities and Local Government",Homes England,CAP GRNTS TO LOCAL AUTHORITIES,Investment,WARWICK DISTRICT COUNCIL,23/12/2021," £126,875.00 ",PUB,None,Grants
"Ministry of Housing, Communities and Local Government",Homes England,CAPITAL GRANTS TO RPs,Investment,BOLTON AT HOME LIMITED,07/12/2021," £9,000.00 ",LAR,None,Grants
"Ministry of Housing, Communities and Local Government",Homes England,CAPITAL GRANTS TO RPs,Investment,BOLTON AT HOME LIMITED,10/12/2021," £9,000.00 ",LAR,None,Grants
"Ministry of Housing, Communities and Local Government",Homes England,CAPITAL GRANTS TO RPs,Investment,FIRST CHOICE HOMES OLDHAM LIMITED,01/12/2021," £9,000.00 ",LAR,None,Grants
"Ministry of Housing, Communities and Local Government",Homes England,CAPITAL GRANTS TO RPs,Investment,FIRST CHOICE HOMES OLDHAM LIMITED,01/12/2021," £9,000.00 ",LAR,None,Grants
"Ministry of Housing, Communities and Local Government",Homes England,CAPITAL GRANTS TO RPs,Investment,FIRST CHOICE HOMES OLDHAM LIMITED,13/12/2021," £9,000.00 ",LAR,None,Grants
"Ministry of Housing, Communities and Local Government",Homes England,CAPITAL GRANTS TO RPs,Investment,FIRST CHOICE HOMES OLDHAM LIMITED,24/12/2021," £38,000.00 ",LAR,None,Grants
"Ministry of Housing, Communities and Local Government",Homes England,CAPITAL GRANTS TO RPs,Investment,GLOUCESTER CITY HOMES,24/12/2021," £52,500.00 ",MED,None,Grants
"Ministry of Housing, Communities and Local Government",Homes England,CAPITAL GRANTS TO RPs,Investment,GLOUCESTER CITY HOMES,24/12/2021," £43,750.00 ",MED,None,Grants
"Ministry of Housing, Communities and Local Government",Homes England,REV GRNTS TO LOCAL AUTHORITIES,Investment,ROCHDALE BOROUGHWIDE HOUSING LIMITED,22/12/2021," £20,250.00 ",LAR,None,Grants
"Ministry of Housing, Communities and Local Government",Homes England,REV GRNTS TO LOCAL AUTHORITIES,Investment,ROCHDALE BOROUGHWIDE HOUSING LIMITED,23/12/2021," £22,500.00 ",LAR,None,Grants
"Ministry of Housing, Communities and Local Government",Homes England,REVENUE GRANTS TO RPs,Investment,LEAZES HOMES LIMITED,24/12/2021," £1,740.00 ",LAR,None,Grants
"Ministry of Housing, Communities and Local Government",Homes England,CAPITAL GRANTS TO RPs,Investment,HEART OF MEDWAY HOUSING ASSOCIATION LTD,13/12/2021," £607,500.00 ",LAR,None,Grants
"Ministry of Housing, Communities and Local Government",Homes England,CAPITAL GRANTS TO RPs,Investment,SAGE HOUSING LIMITED,01/12/2021," £79,842.00 ",MED,None,Grants
"Ministry of Housing, Communities and Local Government",Homes England,CAPITAL GRANTS TO RPs,Investment,SAGE HOUSING LIMITED,09/12/2021," £19,010.00 ",MED,None,Grants
"Ministry of Housing, Communities and Local Government",Homes England,CAPITAL GRANTS TO RPs,Investment,SAGE HOUSING LIMITED,20/12/2021," £132,000.00 ",MED,None,Grants
"Ministry of Housing, Communities and Local Government",Homes England,CAPITAL GRANTS TO RPs,Investment,SAGE HOUSING LIMITED,24/12/2021," £24,500.00 ",MED,None,Grants
"Ministry of Housing, Communities and Local Government",Homes England,CAPITAL GRANTS TO RPs,Investment,SAGE HOUSING LIMITED,24/12/2021," £9,750.00 ",MED,None,Grants
"Ministry of Housing, Communities and Local Government",Homes England,CAPITAL GRANTS TO RPs,Investment,SAGE HOUSING LIMITED,24/12/2021," £19,500.00 ",MED,None,Grants
"Ministry of Housing, Communities and Local Government",Homes England,CAPITAL GRANTS TO RPs,Investment,SAGE HOUSING LIMITED,24/12/2021," £49,000.00 ",MED,None,Grants
"Ministry of Housing, Communities and Local Government",Homes England,CAPITAL GRANTS TO RPs,Investment,YMCA DOWNSLINK GROUP,02/12/2021," £1,614,950.00 ",LAR,None,Grants
"Ministry of Housing, Communities and Local Government",Homes England,CAPITAL GRANTS TO RPs,Investment,KARBON HOMES LIMITED - ISOS HOUSING LIMITED,23/12/2021," £184,000.00 ",LAR,None,Grants
"Ministry of Housing, Communities and Local Government",Homes England,CAPITAL GRANTS TO RPs,Investment,KEELMAN HOMES,03/12/2021," £28,500.00 ",LAR,None,Grants
"Ministry of Housing, Communities and Local Government",Homes England,CAPITAL GRANTS TO RPs,Investment,KEELMAN HOMES,17/12/2021," £7,937.00 ",LAR,None,Grants
"Ministry of Housing, Communities and Local Government",Homes England,CAPITAL GRANTS TO RPs,Investment,KEELMAN HOMES,24/12/2021," £56,250.00 ",LAR,None,Grants
"Ministry of Housing, Communities and Local Government",Homes England,CAPITAL GRANTS TO RPs,Investment,REGENDA LIMITED,20/12/2021," £9,000.00 ",LAR,None,Grants
"Ministry of Housing, Communities and Local Government",Homes England,CAPITAL GRANTS TO RPs,Investment,REGENDA LIMITED,20/12/2021," £9,000.00 ",LAR,None,Grants
"Ministry of Housing, Communities and Local Government",Homes England,CAPITAL GRANTS TO RPs,Investment,REGENDA LIMITED,24/12/2021," £9,000.00 ",LAR,None,Grants
"Ministry of Housing, Communities and Local Government",Homes England,CAPITAL GRANTS TO RPs,Investment,REGENDA LIMITED,24/12/2021," £9,000.00 ",LAR,None,Grants
"Ministry of Housing, Communities and Local Government",Homes England,REV GRNTS TO LOCAL AUTHORITIES,Investment,ACTION HOUSING AND SUPPORT,24/12/2021," £2,900.00 ",MED,None,Grants
"Ministry of Housing, Communities and Local Government",Homes England,CAPITAL GRANTS TO RPs,Investment,HUMANKIND CHARITY,24/12/2021," £30,257.00 ",LAR,None,Grants
"Ministry of Housing, Communities and Local Government",Homes England,CAPITAL GRANTS TO RPs,Investment,THE GUINNESS PARTNERSHIP LIMITED,10/12/2021," £594,000.00 ",LAR,None,Grants
"Ministry of Housing, Communities and Local Government",Homes England,CAPITAL GRANTS TO RPs,Investment,THE GUINNESS PARTNERSHIP LIMITED,24/12/2021," £9,000.00 ",LAR,None,Grants
"Ministry of Housing, Communities and Local Government",Homes England,CAPITAL GRANTS TO RPs,Investment,THE GUINNESS PARTNERSHIP LIMITED,24/12/2021," £9,000.00 ",LAR,None,Grants
"Ministry of Housing, Communities and Local Government",Homes England,CAPITAL GRANTS TO RPs,Investment,BRIDGE-IT HOUSING UK TEAM LTD,06/12/2021," £12,128.00 ",SMA,None,Grants
"Ministry of Housing, Communities and Local Government",Homes England,CAPITAL GRANTS TO RPs,Investment,J & M RESIDENTIAL LETTINGS LIMITED,08/12/2021," £9,000.00 ",SMA,None,Grants
"Ministry of Housing, Communities and Local Government",Homes England,CAPITAL GRANTS TO RPs,Investment,J & M RESIDENTIAL LETTINGS LIMITED,08/12/2021," £9,000.00 ",SMA,None,Grants
"Ministry of Housing, Communities and Local Government",Homes England,REV GRNTS TO LOCAL AUTHORITIES,Investment,ST RICHARD OF CHICHESTER CHRSTIAN CARE,24/12/2021," £2,507.00 ",MED,None,Grants
"Ministry of Housing, Communities and Local Government",Homes England,REV GRNTS TO LOCAL AUTHORITIES,Investment,ST RICHARD OF CHICHESTER CHRSTIAN CARE,24/12/2021," £5,017.00 ",MED,None,Grants
"Ministry of Housing, Communities and Local Government",Homes England,CAPITAL GRANTS TO RPs,Investment,HIGHSTONE HOUSING ASSOCIATION,24/12/2021," £109,375.00 ",MIC,None,Grants
"Ministry of Housing, Communities and Local Government",Homes England,CAPITAL GRANTS TO RPs,Investment,DEVON AND CORNWALL HOUSING LIMITED,01/12/2021," £93,750.00 ",LAR,None,Grants
"Ministry of Housing, Communities and Local Government",Homes England,CAPITAL GRANTS TO RPs,Investment,DEVON AND CORNWALL HOUSING LIMITED,06/12/2021," £72,000.00 ",LAR,None,Grants
"Ministry of Housing, Communities and Local Government",Homes England,CAPITAL GRANTS TO RPs,Investment,DEVON AND CORNWALL HOUSING LIMITED,06/12/2021," £38,720.00 ",LAR,None,Grants
"Ministry of Housing, Communities and Local Government",Homes England,CAPITAL GRANTS TO RPs,Investment,DEVON AND CORNWALL HOUSING LIMITED,09/12/2021," £11,000.00 ",LAR,None,Grants
"Ministry of Housing, Communities and Local Government",Homes England,CAPITAL GRANTS TO RPs,Investment,DEVON AND CORNWALL HOUSING LIMITED,23/12/2021," £14,000.00 ",LAR,None,Grants
"Ministry of Housing, Communities and Local Government",Homes England,CAPITAL GRANTS TO RPs,Investment,DEVON AND CORNWALL HOUSING LIMITED,24/12/2021," £60,000.00 ",LAR,None,Grants
"Ministry of Housing, Communities and Local Government",Homes England,CAPITAL GRANTS TO RPs,Investment,DEVON AND CORNWALL HOUSING LIMITED,24/12/2021," £79,750.00 ",LAR,None,Grants
"Ministry of Housing, Communities and Local Government",Homes England,CAPITAL GRANTS TO RPs,Investment,DEVON AND CORNWALL HOUSING LIMITED,24/12/2021," £295,687.00 ",LAR,None,Grants
"Ministry of Housing, Communities and Local Government",Homes England,CAPITAL GRANTS TO RPs,Investment,KARBON HOMES,07/12/2021," £450,000.00 ",LAR,None,Grants
"Ministry of Housing, Communities and Local Government",Homes England,CAPITAL GRANTS TO RPs,Investment,KARBON HOMES,15/12/2021," £9,000.00 ",LAR,None,Grants
"Ministry of Housing, Communities and Local Government",Homes England,CAPITAL GRANTS TO RPs,Investment,KARBON HOMES,15/12/2021," £9,000.00 ",LAR,None,Grants
"Ministry of Housing, Communities and Local Government",Homes England,CAPITAL GRANTS TO RPs,Investment,KARBON HOMES,15/12/2021," £9,000.00 ",LAR,None,Grants
"Ministry of Housing, Communities and Local Government",Homes England,CAPITAL GRANTS TO RPs,Investment,KARBON HOMES,15/12/2021," £9,000.00 ",LAR,None,Grants
"Ministry of Housing, Communities and Local Government",Homes England,CAPITAL GRANTS TO RPs,Investment,KARBON HOMES,17/12/2021," £9,000.00 ",LAR,None,Grants
"Ministry of Housing, Communities and Local Government",Homes England,CAPITAL GRANTS TO RPs,Investment,KARBON HOMES,17/12/2021," £9,000.00 ",LAR,None,Grants
"Ministry of Housing, Communities and Local Government",Homes England,REVENUE GRANTS TO RPs,Investment,NOTTINGHAM CITY HOMES REGISTERED PROVIDER LIM,24/12/2021, £786.00 ,LAR,None,Grants
"Ministry of Housing, Communities and Local Government",Homes England,REVENUE GRANTS TO RPs,Investment,NOTTINGHAM CITY HOMES REGISTERED PROVIDER LIM,24/12/2021, £786.00 ,LAR,None,Grants
"Ministry of Housing, Communities and Local Government",Homes England,REVENUE GRANTS TO RPs,Investment,NOTTINGHAM CITY HOMES REGISTERED PROVIDER LIM,24/12/2021, £786.00 ,LAR,None,Grants
"Ministry of Housing, Communities and Local Government",Homes England,REVENUE GRANTS TO RPs,Investment,NOTTINGHAM CITY HOMES REGISTERED PROVIDER LIM,24/12/2021, £786.00 ,LAR,None,Grants
"Ministry of Housing, Communities and Local Government",Homes England,REVENUE GRANTS TO RPs,Investment,NOTTINGHAM CITY HOMES REGISTERED PROVIDER LIM,24/12/2021, £786.00 ,LAR,None,Grants
"Ministry of Housing, Communities and Local Government",Homes England,REVENUE GRANTS TO RPs,Investment,NOTTINGHAM CITY HOMES REGISTERED PROVIDER LIM,24/12/2021, £786.00 ,LAR,None,Grants
"Ministry of Housing, Communities and Local Government",Homes England,REVENUE GRANTS TO RPs,Investment,NOTTINGHAM CITY HOMES REGISTERED PROVIDER LIM,24/12/2021, £786.00 ,LAR,None,Grants
"Ministry of Housing, Communities and Local Government",Homes England,REVENUE GRANTS TO RPs,Investment,NOTTINGHAM CITY HOMES REGISTERED PROVIDER LIM,24/12/2021, £786.00 ,LAR,None,Grants
"Ministry of Housing, Communities and Local Government",Homes England,CAPITAL GRANTS TO RPs,Investment,CLARION HOUSING ASSOCIATION LIMITED,02/12/2021," £13,500.00 ",LAR,None,Grants
"Ministry of Housing, Communities and Local Government",Homes England,CAPITAL GRANTS TO RPs,Investment,CLARION HOUSING ASSOCIATION LIMITED,02/12/2021," £11,000.00 ",LAR,None,Grants
"Ministry of Housing, Communities and Local Government",Homes England,CAPITAL GRANTS TO RPs,Investment,CLARION HOUSING ASSOCIATION LIMITED,15/12/2021," £10,000.00 ",LAR,None,Grants
"Ministry of Housing, Communities and Local Government",Homes England,CAPITAL GRANTS TO RPs,Investment,BERNICIA GROUP,01/12/2021," £9,000.00 ",LAR,None,Grants
"Ministry of Housing, Communities and Local Government",Homes England,CAPITAL GRANTS TO RPs,Investment,LIVEWEST HOMES LIMITED,10/12/2021," £6,000,000.00 ",LAR,None,Grants
"Ministry of Housing, Communities and Local Government",Homes England,REV GRNTS TO LOCAL AUTHORITIES,Investment,P3 HOUSING LTD,03/12/2021," £16,512.00 ",LAR,None,Grants
"Ministry of Housing, Communities and Local Government",Homes England,REV GRNTS TO LOCAL AUTHORITIES,Investment,P3 HOUSING LTD,03/12/2021," £15,846.00 ",LAR,None,Grants
"Ministry of Housing, Communities and Local Government",Homes England,REV GRNTS TO LOCAL AUTHORITIES,Investment,P3 HOUSING LTD,07/12/2021," £18,347.00 ",LAR,None,Grants
"Ministry of Housing, Communities and Local Government",Homes England,REV GRNTS TO LOCAL AUTHORITIES,Investment,P3 HOUSING LTD,10/12/2021," £16,425.00 ",LAR,None,Grants
"Ministry of Housing, Communities and Local Government",Homes England,REV GRNTS TO LOCAL AUTHORITIES,Investment,P3 HOUSING LTD,13/12/2021," £14,219.00 ",LAR,None,Grants
"Ministry of Housing, Communities and Local Government",Homes England,REV GRNTS TO LOCAL AUTHORITIES,Investment,P3 HOUSING LTD,14/12/2021," £17,606.00 ",LAR,None,Grants
"Ministry of Housing, Communities and Local Government",Homes England,REV GRNTS TO LOCAL AUTHORITIES,Investment,P3 HOUSING LTD,21/12/2021," £1,835.00 ",LAR,None,Grants
"Ministry of Housing, Communities and Local Government",Homes England,REV GRNTS TO LOCAL AUTHORITIES,Investment,P3 HOUSING LTD,24/12/2021," £44,875.00 ",LAR,None,Grants
"Ministry of Housing, Communities and Local Government",Homes England,REV GRNTS TO LOCAL AUTHORITIES,Investment,P3 HOUSING LTD,24/12/2021," £3,889.00 ",LAR,None,Grants
"Ministry of Housing, Communities and Local Government",Homes England,REV GRNTS TO LOCAL AUTHORITIES,Investment,P3 HOUSING LTD,24/12/2021," £10,000.00 ",LAR,None,Grants
"Ministry of Housing, Communities and Local Government",Homes England,CAPITAL GRANTS TO RPs,Investment,TORUS62 LIMITED,10/12/2021," £13,145,675.00 ",LAR,None,Grants
"Ministry of Housing, Communities and Local Government",Homes England,CAPITAL GRANTS TO RPs,Investment,TORUS62 LIMITED,23/12/2021," £9,000.00 ",LAR,None,Grants
"Ministry of Housing, Communities and Local Government",Homes England,CAPITAL GRANTS TO RPs,Investment,TORUS62 LIMITED,23/12/2021," £9,000.00 ",LAR,None,Grants
"Ministry of Housing, Communities and Local Government",Homes England,CAPITAL GRANTS TO RPs,Investment,TORUS62 LIMITED,23/12/2021," £9,000.00 ",LAR,None,Grants
"Ministry of Housing, Communities and Local Government",Homes England,CAPITAL GRANTS TO RPs,Investment,TORUS62 LIMITED,23/12/2021," £9,000.00 ",LAR,None,Grants
"Ministry of Housing, Communities and Local Government",Homes England,CAPITAL GRANTS TO RPs,Investment,TORUS62 LIMITED,23/12/2021," £9,000.00 ",LAR,None,Grants
"Ministry of Housing, Communities and Local Government",Homes England,CAPITAL GRANTS TO RPs,Investment,TORUS62 LIMITED,23/12/2021," £9,000.00 ",LAR,None,Grants
"Ministry of Housing, Communities and Local Government",Homes England,CAPITAL GRANTS TO RPs,Investment,TORUS62 LIMITED,23/12/2021," £9,000.00 ",LAR,None,Grants
"Ministry of Housing, Communities and Local Government",Homes England,CAPITAL GRANTS TO RPs,Investment,TORUS62 LIMITED,23/12/2021," £9,000.00 ",LAR,None,Grants
"Ministry of Housing, Communities and Local Government",Homes England,CAPITAL GRANTS TO RPs,Investment,TORUS62 LIMITED,23/12/2021," £9,000.00 ",LAR,None,Grants
"Ministry of Housing, Communities and Local Government",Homes England,REV GRNTS TO LOCAL AUTHORITIES,Investment,TORUS62 LIMITED,24/12/2021," £45,708.00 ",LAR,None,Grants
"Ministry of Housing, Communities and Local Government",Homes England,REV GRNTS TO LOCAL AUTHORITIES,Investment,BCP COUNCIL,24/12/2021," £1,088.00 ",PUB,None,Grants
"Ministry of Housing, Communities and Local Government",Homes England,REV GRNTS TO LOCAL AUTHORITIES,Investment,BCP COUNCIL,24/12/2021," £1,091.00 ",PUB,None,Grants
"Ministry of Housing, Communities and Local Government",Homes England,REV GRNTS TO LOCAL AUTHORITIES,Investment,BCP COUNCIL,24/12/2021," £1,088.00 ",PUB,None,Grants
"Ministry of Housing, Communities and Local Government",Homes England,REV GRNTS TO LOCAL AUTHORITIES,Investment,BCP COUNCIL,24/12/2021," £1,088.00 ",PUB,None,Grants
"Ministry of Housing, Communities and Local Government",Homes England,REV GRNTS TO LOCAL AUTHORITIES,Investment,BCP COUNCIL,24/12/2021," £1,088.00 ",PUB,None,Grants
"Ministry of Housing, Communities and Local Government",Homes England,REV GRNTS TO LOCAL AUTHORITIES,Investment,BCP COUNCIL,24/12/2021," £1,088.00 ",PUB,None,Grants
"Ministry of Housing, Communities and Local Government",Homes England,REV GRNTS TO LOCAL AUTHORITIES,Investment,BCP COUNCIL,24/12/2021," £1,088.00 ",PUB,None,Grants
"Ministry of Housing, Communities and Local Government",Homes England,REV GRNTS TO LOCAL AUTHORITIES,Investment,BCP COUNCIL,24/12/2021," £1,088.00 ",PUB,None,Grants
"Ministry of Housing, Communities and Local Government",Homes England,REV GRNTS TO LOCAL AUTHORITIES,Investment,BCP COUNCIL,24/12/2021," £1,088.00 ",PUB,None,Grants
"Ministry of Housing, Communities and Local Government",Homes England,REV GRNTS TO LOCAL AUTHORITIES,Investment,BCP COUNCIL,24/12/2021," £1,088.00 ",PUB,None,Grants
"Ministry of Housing, Communities and Local Government",Homes England,CAP GRNTS TO LOCAL AUTHORITIES,Investment,SUNDERLAND CITY COUNCIL,24/12/2021," £48,750.00 ",PUB,None,Grants
"Ministry of Housing, Communities and Local Government",Homes England,REV GRNTS TO LOCAL AUTHORITIES,Investment,NORTH NORFOLK DISTRICT COUNCIL,23/12/2021," £33,250.00 ",PUB,None,Grants
"Ministry of Housing, Communities and Local Government",Homes England,REV GRNTS TO LOCAL AUTHORITIES,Investment,DORSET COUNCIL,06/12/2021," £30,000.00 ",PUB,None,Grants
"Ministry of Housing, Communities and Local Government",Homes England,REV GRNTS TO LOCAL AUTHORITIES,Investment,DORSET COUNCIL,14/12/2021," £30,000.00 ",PUB,None,Grants
"Ministry of Housing, Communities and Local Government",Homes England,REV GRNTS TO LOCAL AUTHORITIES,Investment,DORSET COUNCIL,20/12/2021," £171,000.00 ",PUB,None,Grants
"Ministry of Housing, Communities and Local Government",Homes England,REV GRNTS TO LOCAL AUTHORITIES,Investment,DORSET COUNCIL,20/12/2021," £3,000.00 ",PUB,None,Grants
"Ministry of Housing, Communities and Local Government",Homes England,REV GRNTS TO LOCAL AUTHORITIES,Investment,DORSET COUNCIL,20/12/2021," £3,000.00 ",PUB,None,Grants
"Ministry of Housing, Communities and Local Government",Homes England,REV GRNTS TO LOCAL AUTHORITIES,Investment,DORSET COUNCIL,24/12/2021," £3,000.00 ",PUB,None,Grants
"Ministry of Housing, Communities and Local Government",Homes England,REV GRNTS TO LOCAL AUTHORITIES,Investment,DORSET COUNCIL,24/12/2021," £3,000.00 ",PUB,None,Grants
"Ministry of Housing, Communities and Local Government",Homes England,REV GRNTS TO LOCAL AUTHORITIES,Investment,DORSET COUNCIL,24/12/2021," £1,590.00 ",PUB,None,Grants
"Ministry of Housing, Communities and Local Government",Homes England,REV GRNTS TO LOCAL AUTHORITIES,Investment,DORSET COUNCIL,24/12/2021," £1,590.00 ",PUB,None,Grants
"Ministry of Housing, Communities and Local Government",Homes England,REV GRNTS TO LOCAL AUTHORITIES,Investment,DORSET COUNCIL,24/12/2021," £1,590.00 ",PUB,None,Grants
"Ministry of Housing, Communities and Local Government",Homes England,REV GRNTS TO LOCAL AUTHORITIES,Investment,DORSET COUNCIL,24/12/2021," £1,590.00 ",PUB,None,Grants
"Ministry of Housing, Communities and Local Government",Homes England,REV GRNTS TO LOCAL AUTHORITIES,Investment,DORSET COUNCIL,24/12/2021," £1,590.00 ",PUB,None,Grants
"Ministry of Housing, Communities and Local Government",Homes England,REV GRNTS TO LOCAL AUTHORITIES,Investment,DORSET COUNCIL,24/12/2021," £1,590.00 ",PUB,None,Grants
"Ministry of Housing, Communities and Local Government",Homes England,REV GRNTS TO LOCAL AUTHORITIES,Investment,DORSET COUNCIL,24/12/2021," £1,590.00 ",PUB,None,Grants
"Ministry of Housing, Communities and Local Government",Homes England,REV GRNTS TO LOCAL AUTHORITIES,Investment,DORSET COUNCIL,24/12/2021," £1,590.00 ",PUB,None,Grants
"Ministry of Housing, Communities and Local Government",Homes England,REV GRNTS TO LOCAL AUTHORITIES,Investment,DORSET COUNCIL,24/12/2021," £1,590.00 ",PUB,None,Grants
"Ministry of Housing, Communities and Local Government",Homes England,REV GRNTS TO LOCAL AUTHORITIES,Investment,DORSET COUNCIL,24/12/2021," £1,590.00 ",PUB,None,Grants
"Ministry of Housing, Communities and Local Government",Homes England,CAPITAL GRANTS TO RPs,Investment,WOOLFARDISWORTHY SPORTS & COMMUNITY HALL,01/12/2021," £32,500.00 ",PUB,None,Grants
"Ministry of Housing, Communities and Local Government",Homes England,REV GRNTS TO LOCAL AUTHORITIES,Investment,TELFORD & WREKIN COUNCIL,24/12/2021," £2,450.00 ",PUB,None,Grants
"Ministry of Housing, Communities and Local Government",Homes England,REV GRNTS TO LOCAL AUTHORITIES,Investment,TELFORD & WREKIN COUNCIL,24/12/2021," £2,450.00 ",PUB,None,Grants
"Ministry of Housing, Communities and Local Government",Homes England,REV GRNTS TO LOCAL AUTHORITIES,Investment,TELFORD & WREKIN COUNCIL,24/12/2021," £2,450.00 ",PUB,None,Grants
"Ministry of Housing, Communities and Local Government",Homes England,REV GRNTS TO LOCAL AUTHORITIES,Investment,TELFORD & WREKIN COUNCIL,24/12/2021," £12,255.00 ",PUB,None,Grants
"Ministry of Housing, Communities and Local Government",Homes England,REV GRNTS TO LOCAL AUTHORITIES,Investment,TELFORD & WREKIN COUNCIL,24/12/2021," £2,450.00 ",PUB,None,Grants
"Ministry of Housing, Communities and Local Government",Homes England,REV GRNTS TO LOCAL AUTHORITIES,Investment,TELFORD & WREKIN COUNCIL,24/12/2021," £2,450.00 ",PUB,None,Grants
"Ministry of Housing, Communities and Local Government",Homes England,REV GRNTS TO LOCAL AUTHORITIES,Investment,TELFORD & WREKIN COUNCIL,24/12/2021," £2,450.00 ",PUB,None,Grants
"Ministry of Housing, Communities and Local Government",Homes England,REV GRNTS TO LOCAL AUTHORITIES,Investment,TELFORD & WREKIN COUNCIL,24/12/2021," £2,450.00 ",PUB,None,Grants
"Ministry of Housing, Communities and Local Government",Homes England,REV GRNTS TO LOCAL AUTHORITIES,Investment,TELFORD & WREKIN COUNCIL,24/12/2021," £2,450.00 ",PUB,None,Grants
"Ministry of Housing, Communities and Local Government",Homes England,REV GRNTS TO LOCAL AUTHORITIES,Investment,STRATFORD ON AVON DISTRICT COUNCIL,24/12/2021," £2,778.00 ",PUB,None,Grants
"Ministry of Housing, Communities and Local Government",Homes England,REV GRNTS TO LOCAL AUTHORITIES,Investment,STRATFORD ON AVON DISTRICT COUNCIL,24/12/2021," £2,778.00 ",PUB,None,Grants
"Ministry of Housing, Communities and Local Government",Homes England,REV GRNTS TO LOCAL AUTHORITIES,Investment,STRATFORD ON AVON DISTRICT COUNCIL,24/12/2021," £2,762.00 ",PUB,None,Grants
"Ministry of Housing, Communities and Local Government",Homes England,REV GRNTS TO LOCAL AUTHORITIES,Investment,STRATFORD ON AVON DISTRICT COUNCIL,24/12/2021," £2,762.00 ",PUB,None,Grants
"Ministry of Housing, Communities and Local Government",Homes England,REV GRNTS TO LOCAL AUTHORITIES,Investment,HASTINGS BOROUGH COUNCIL,24/12/2021," £1,462.00 ",PUB,None,Grants
"Ministry of Housing, Communities and Local Government",Homes England,REV GRNTS TO LOCAL AUTHORITIES,Investment,HASTINGS BOROUGH COUNCIL,24/12/2021," £4,387.00 ",PUB,None,Grants
"Ministry of Housing, Communities and Local Government",Homes England,REV GRNTS TO LOCAL AUTHORITIES,Investment,BEDFORD BOROUGH COUNCIL,24/12/2021," £79,617.00 ",PUB,None,Grants
"Ministry of Housing, Communities and Local Government",Homes England,REV GRNTS TO LOCAL AUTHORITIES,Investment,ROTHER DISTRICT COUNCIL,24/12/2021," £10,750.00 ",PUB,None,Grants
"Ministry of Housing, Communities and Local Government",Homes England,REV GRNTS TO LOCAL AUTHORITIES,Investment,TORVISTA HOMES LIMITED,22/12/2021," £2,494.00 ",LAR,None,Grants
"Ministry of Housing, Communities and Local Government",Homes England,REV GRNTS TO LOCAL AUTHORITIES,Investment,TORVISTA HOMES LIMITED,22/12/2021," £2,494.00 ",LAR,None,Grants
"Ministry of Housing, Communities and Local Government",Homes England,REV GRNTS TO LOCAL AUTHORITIES,Investment,TORVISTA HOMES LIMITED,24/12/2021," £2,870.00 ",LAR,None,Grants
"Ministry of Housing, Communities and Local Government",Homes England,REV GRNTS TO LOCAL AUTHORITIES,Investment,TORVISTA HOMES LIMITED,24/12/2021," £2,870.00 ",LAR,None,Grants
"Ministry of Housing, Communities and Local Government",Homes England,REV GRNTS TO LOCAL AUTHORITIES,Investment,TORVISTA HOMES LIMITED,24/12/2021," £2,103.00 ",LAR,None,Grants
"Ministry of Housing, Communities and Local Government",Homes England,REV GRNTS TO LOCAL AUTHORITIES,Investment,TORVISTA HOMES LIMITED,24/12/2021," £2,774.00 ",LAR,None,Grants
"Ministry of Housing, Communities and Local Government",Homes England,REV GRNTS TO LOCAL AUTHORITIES,Investment,TORVISTA HOMES LIMITED,24/12/2021," £2,678.00 ",LAR,None,Grants
"Ministry of Housing, Communities and Local Government",Homes England,REV GRNTS TO LOCAL AUTHORITIES,Investment,TORVISTA HOMES LIMITED,24/12/2021," £2,870.00 ",LAR,None,Grants
"Ministry of Housing, Communities and Local Government",Homes England,REV GRNTS TO LOCAL AUTHORITIES,Investment,TORVISTA HOMES LIMITED,24/12/2021," £2,870.00 ",LAR,None,Grants
"Ministry of Housing, Communities and Local Government",Homes England,REV GRNTS TO LOCAL AUTHORITIES,Investment,TORVISTA HOMES LIMITED,24/12/2021," £2,870.00 ",LAR,None,Grants
"Ministry of Housing, Communities and Local Government",Homes England,REV GRNTS TO LOCAL AUTHORITIES,Investment,TORVISTA HOMES LIMITED,24/12/2021," £1,250.00 ",LAR,None,Grants
"Ministry of Housing, Communities and Local Government",Homes England,REV GRNTS TO LOCAL AUTHORITIES,Investment,TORVISTA HOMES LIMITED,24/12/2021," £1,246.00 ",LAR,None,Grants
"Ministry of Housing, Communities and Local Government",Homes England,REV GRNTS TO LOCAL AUTHORITIES,Investment,TORVISTA HOMES LIMITED,24/12/2021," £1,202.00 ",LAR,None,Grants
"Ministry of Housing, Communities and Local Government",Homes England,REV GRNTS TO LOCAL AUTHORITIES,Investment,TORVISTA HOMES LIMITED,24/12/2021," £1,250.00 ",LAR,None,Grants
"Ministry of Housing, Communities and Local Government",Homes England,REV GRNTS TO LOCAL AUTHORITIES,Investment,TORVISTA HOMES LIMITED,24/12/2021," £1,202.00 ",LAR,None,Grants
"Ministry of Housing, Communities and Local Government",Homes England,REV GRNTS TO LOCAL AUTHORITIES,Investment,TORVISTA HOMES LIMITED,24/12/2021," £1,250.00 ",LAR,None,Grants
"Ministry of Housing, Communities and Local Government",Homes England,REV GRNTS TO LOCAL AUTHORITIES,Investment,TORVISTA HOMES LIMITED,24/12/2021," £1,246.00 ",LAR,None,Grants
"Ministry of Housing, Communities and Local Government",Homes England,REV GRNTS TO LOCAL AUTHORITIES,Investment,TORVISTA HOMES LIMITED,24/12/2021," £1,250.00 ",LAR,None,Grants
"Ministry of Housing, Communities and Local Government",Homes England,REV GRNTS TO LOCAL AUTHORITIES,Investment,TORVISTA HOMES LIMITED,24/12/2021," £1,250.00 ",LAR,None,Grants
"Ministry of Housing, Communities and Local Government",Homes England,REV GRNTS TO LOCAL AUTHORITIES,Investment,TORVISTA HOMES LIMITED,24/12/2021," £1,202.00 ",LAR,None,Grants
"Ministry of Housing, Communities and Local Government",Homes England,REV GRNTS TO LOCAL AUTHORITIES,Investment,TORVISTA HOMES LIMITED,24/12/2021," £1,250.00 ",LAR,None,Grants
"Ministry of Housing, Communities and Local Government",Homes England,REV GRNTS TO LOCAL AUTHORITIES,Investment,TORVISTA HOMES LIMITED,24/12/2021," £1,250.00 ",LAR,None,Grants
"Ministry of Housing, Communities and Local Government",Homes England,REV GRNTS TO LOCAL AUTHORITIES,Investment,TORVISTA HOMES LIMITED,24/12/2021," £1,250.00 ",LAR,None,Grants
"Ministry of Housing, Communities and Local Government",Homes England,REV GRNTS TO LOCAL AUTHORITIES,Investment,TORVISTA HOMES LIMITED,24/12/2021," £1,202.00 ",LAR,None,Grants
"Ministry of Housing, Communities and Local Government",Homes England,REV GRNTS TO LOCAL AUTHORITIES,Investment,REIGATE & BANSTEAD BOROUGH COUNCIL,24/12/2021," £180,500.00 ",PUB,None,Grants
"Ministry of Housing, Communities and Local Government",Homes England,CAPITAL GRANTS TO RPs,Investment,WITTON LODGE COMMUNITY INTEREST COMPANY,24/12/2021," £37,463.00 ",SMA,None,Grants
"Ministry of Housing, Communities and Local Government",Homes England,CAPITAL GRANTS TO RPs,Investment,WITTON LODGE COMMUNITY INTEREST COMPANY,24/12/2021," £37,463.00 ",SMA,None,Grants
"Ministry of Housing, Communities and Local Government",Homes England,CAPITAL GRANTS TO RPs,Investment,WITTON LODGE COMMUNITY INTEREST COMPANY,24/12/2021," £37,463.00 ",SMA,None,Grants
"Ministry of Housing, Communities and Local Government",Homes England,CAPITAL GRANTS TO RPs,Investment,WITTON LODGE COMMUNITY INTEREST COMPANY,24/12/2021," £37,463.00 ",SMA,None,Grants
"Ministry of Housing, Communities and Local Government",Homes England,CAPITAL GRANTS TO RPs,Investment,WITTON LODGE COMMUNITY INTEREST COMPANY,24/12/2021," £37,463.00 ",SMA,None,Grants
"Ministry of Housing, Communities and Local Government",Homes England,CAPITAL GRANTS TO RPs,Investment,WITTON LODGE COMMUNITY INTEREST COMPANY,24/12/2021," £12,487.00 ",SMA,None,Grants
"Ministry of Housing, Communities and Local Government",Homes England,CAPITAL GRANTS TO RPs,Investment,WITTON LODGE COMMUNITY INTEREST COMPANY,24/12/2021," £12,487.00 ",SMA,None,Grants
"Ministry of Housing, Communities and Local Government",Homes England,CAPITAL GRANTS TO RPs,Investment,WITTON LODGE COMMUNITY INTEREST COMPANY,24/12/2021," £12,487.00 ",SMA,None,Grants
"Ministry of Housing, Communities and Local Government",Homes England,CAPITAL GRANTS TO RPs,Investment,WITTON LODGE COMMUNITY INTEREST COMPANY,24/12/2021," £12,487.00 ",SMA,None,Grants
"Ministry of Housing, Communities and Local Government",Homes England,CAPITAL GRANTS TO RPs,Investment,WITTON LODGE COMMUNITY INTEREST COMPANY,24/12/2021," £12,487.00 ",SMA,None,Grants
"Ministry of Housing, Communities and Local Government",Homes England,ECONOMIC CONSULTANCY PANEL,Development,AMION CONSULTING LTD,08/12/2021," £3,840.00 ",SMA,80131800,Real estate management services
"Ministry of Housing, Communities and Local Government",Homes England,CONTRACT WORKS,"Markets, Partners & Places",ALUN GRIFFITHS (CONTRACTORS) LTD,07/12/2021," £49,581.96 ",LAR,72103300,Infrastructure maintenance and repair services
"Ministry of Housing, Communities and Local Government",Homes England,ST FUND LOANS ADDITIONS,Investment,AQUINNA DEVELOPMENTS LIMITED,14/12/2021," £314,575.00 ",SMA,None,Loans
"Ministry of Housing, Communities and Local Government",Homes England,ENGINEERING FEES,Development,ATKINS LTD,01/12/2021," £2,829.46 ",LAR,81101500,Civil Engineering
"Ministry of Housing, Communities and Local Government",Homes England,OTHER PROFESSIONAL FEES,Development,ATKINS LTD,16/12/2021," £7,200.00 ",LAR,80131800,Real estate management services
"Ministry of Housing, Communities and Local Government",Homes England,OTHER PROFESSIONAL FEES,Development,ATKINS LTD,16/12/2021," £7,200.00 ",LAR,80131800,Real estate management services
"Ministry of Housing, Communities and Local Government",Homes England,PLANNING APPLICATIONS,"Markets, Partners & Places",ATKINS LTD,16/12/2021," £30,000.00 ",LAR,80131800,Real estate management services
"Ministry of Housing, Communities and Local Government",Homes England,ENGINEERING FEES,"Markets, Partners & Places",ATKINS LTD,16/12/2021," £12,000.00 ",LAR,81101500,Civil Engineering
"Ministry of Housing, Communities and Local Government",Homes England,ENGINEERING FEES,Development,ATKINS LTD,17/12/2021, £600.00 ,LAR,81101500,Civil Engineering
"Ministry of Housing, Communities and Local Government",Homes England,OTHER PROFESSIONAL FEES,Development,ATKINS LTD,20/12/2021," £59,760.00 ",LAR,80131800,Real estate management services
"Ministry of Housing, Communities and Local Government",Homes England,ENGINEERING FEES,Development,ATKINS LTD,21/12/2021," £1,454.65 ",LAR,81101500,Civil Engineering
"Ministry of Housing, Communities and Local Government",Homes England,MISC PROFESSIONAL FEES,Development,ADAM ARCHITECTURE,08/12/2021," £4,500.00 ",SMA,81101500,Civil Engineering
"Ministry of Housing, Communities and Local Government",Homes England,MISC PROFESSIONAL FEES,Development,ADAM ARCHITECTURE,08/12/2021, £567.00 ,SMA,81101500,Civil Engineering
"Ministry of Housing, Communities and Local Government",Homes England,OTHER PROFESSIONAL FEES,Development,ADAM ARCHITECTURE,10/12/2021," £5,046.00 ",SMA,80131800,Real estate management services
"Ministry of Housing, Communities and Local Government",Homes England,OTHER PROFESSIONAL FEES,Development,ADAM ARCHITECTURE,10/12/2021," £6,300.00 ",SMA,80131800,Real estate management services
"Ministry of Housing, Communities and Local Government",Homes England,OTHER PROFESSIONAL FEES,Development,ADAM ARCHITECTURE,10/12/2021," £6,300.00 ",SMA,80131800,Real estate management services
"Ministry of Housing, Communities and Local Government",Homes England,ST FUND LOANS ADDITIONS,Investment,ANCHOR HOMES (NORTH WEST) LTD,20/12/2021," £100,498.58 ",MIC,None,Loans
"Ministry of Housing, Communities and Local Government",Homes England,ESTATE GENERAL MAINTENANCE,Development,AJP LOGISTICS LIMITED,22/12/2021," £5,988.00 ",SMA,72101500,Building maintenance and repair services
"Ministry of Housing, Communities and Local Government",Homes England,ESTATE GENERAL MAINTENANCE,Development,AJP LOGISTICS LIMITED,22/12/2021," £2,034.00 ",SMA,72101500,Building maintenance and repair services
"Ministry of Housing, Communities and Local Government",Homes England,CAR LEASING - HIRE CHARGES,"Markets, Partners & Places",LEASEPLAN UK LIMITED,16/12/2021, £283.42 ,LAR,25101500,Passenger motor vehicles
"Ministry of Housing, Communities and Local Government",Homes England,BUILDINGS-ELECTRICITY,Development,ALEX WARD ELECTRICAL CONTRACTORS LTD,02/12/2021," £1,500.00 ",MIC,83101800,Electric utilities
"Ministry of Housing, Communities and Local Government",Homes England,ESTATE GENERAL MAINTENANCE,Development,ALEX WARD ELECTRICAL CONTRACTORS LTD,02/12/2021," £2,940.00 ",MIC,72101500,Building maintenance and repair services
"Ministry of Housing, Communities and Local Government",Homes England,CAR LEASING - HIRE CHARGES,Investment,ALPHABET (GB) LTD,08/12/2021, £292.50 ,LAR,25101500,Passenger motor vehicles
"Ministry of Housing, Communities and Local Government",Homes England,CAR LEASING - HIRE CHARGES,Development,ALPHABET (GB) LTD,08/12/2021, £257.22 ,LAR,25101500,Passenger motor vehicles
"Ministry of Housing, Communities and Local Government",Homes England,CAR LEASING - HIRE CHARGES,Development,ALPHABET (GB) LTD,08/12/2021, £337.86 ,LAR,25101500,Passenger motor vehicles
"Ministry of Housing, Communities and Local Government",Homes England,SUBS TO OTHER BODIES,Chief Risk Officer,ANTI MONEY LAUNDERING PROFESSIONALS LTD,23/12/2021, £906.00 ,MIC,94101600,Professional associations
"Ministry of Housing, Communities and Local Government",Homes England,DATA CENTRE,Cido,AUTH0 INC,09/12/2021," £21,394.47 ",LAR,81112000,Data Services
"Ministry of Housing, Communities and Local Government",Homes England,CONTRACT WORKS,"Markets, Partners & Places",AE YATES LTD,08/12/2021," £145,534.85 ",MED,72103300,Infrastructure maintenance and repair services
"Ministry of Housing, Communities and Local Government",Homes England,CONTRACT WORKS,"Markets, Partners & Places",AE YATES LTD,21/12/2021," £20,822.12 ",MED,72103300,Infrastructure maintenance and repair services
"Ministry of Housing, Communities and Local Government",Homes England,ST FUND LOANS ADDITIONS,Investment,AUDLEY GROUP DEVELOPMENTS 1 LTD,21/12/2021," £2,849,795.00 ",MIC,None,Loans
"Ministry of Housing, Communities and Local Government",Homes England,CONTRACT WORKS,Development,AUSTIN WILKINSON DEMOLITION LTD,03/12/2021," £1,800.00 ",SMA,72101500,Building maintenance and repair services
"Ministry of Housing, Communities and Local Government",Homes England,EXTERNAL BUILDING MAINTENANCE,"Markets, Partners & Places",ALLIUM ENVIRONMENTAL LTD,01/12/2021, £288.00 ,SMA,72101500,Building maintenance and repair services
"Ministry of Housing, Communities and Local Government",Homes England,MANAGEMENT COSTS,"Markets, Partners & Places",ALLIUM ENVIRONMENTAL LTD,02/12/2021, £288.00 ,SMA,80131800,Real estate management services
"Ministry of Housing, Communities and Local Government",Homes England,EXTERNAL BUILDING MAINTENANCE,"Markets, Partners & Places",ALLIUM ENVIRONMENTAL LTD,23/12/2021, £288.00 ,SMA,72101500,Building maintenance and repair services
"Ministry of Housing, Communities and Local Government",Homes England,MANAGEMENT COSTS,"Markets, Partners & Places",ALLIUM ENVIRONMENTAL LTD,23/12/2021, £288.00 ,SMA,80131800,Real estate management services
"Ministry of Housing, Communities and Local Government",Homes England,OTHER PROFESSIONAL FEES,"Markets, Partners & Places",AURORA HEALTH PHYSICS SERVICES LTD,16/12/2021," £2,944.80 ",SMA,80131800,Real estate management services
"Ministry of Housing, Communities and Local Government",Homes England,LANDSCAPE MAINT-BUILT ESTATE,Development,ALBEN LANDSCAPES LIMITED,07/12/2021, £420.00 ,SMA,72102900,Facility maintenance and repair services
"Ministry of Housing, Communities and Local Government",Homes England,ESTATE GENERAL MAINTENANCE,Development,ALBEN LANDSCAPES LIMITED,16/12/2021, £639.64 ,SMA,72101500,Building maintenance and repair services
"Ministry of Housing, Communities and Local Government",Homes England,PRINTING & STATIONERY,Development,APS GROUP,17/12/2021, £854.74 ,LAR,44121600,Desk supplies
"Ministry of Housing, Communities and Local Government",Homes England,AGENCY STAFF,Corporate Resources,ALLEN LANE LIMITED,02/12/2021," £3,795.00 ",SMA,80111600,Temporary personnel services
"Ministry of Housing, Communities and Local Government",Homes England,AGENCY STAFF,Corporate Resources,ALLEN LANE LIMITED,02/12/2021," £4,290.00 ",SMA,80111600,Temporary personnel services
"Ministry of Housing, Communities and Local Government",Homes England,AGENCY STAFF,Corporate Resources,ALLEN LANE LIMITED,02/12/2021," £5,280.00 ",SMA,80111600,Temporary personnel services
"Ministry of Housing, Communities and Local Government",Homes England,AGENCY STAFF,Corporate Resources,ALLEN LANE LIMITED,02/12/2021," £3,630.00 ",SMA,80111600,Temporary personnel services
"Ministry of Housing, Communities and Local Government",Homes England,AGENCY STAFF,Corporate Resources,ALLEN LANE LIMITED,02/12/2021," £2,277.00 ",SMA,80111600,Temporary personnel services
"Ministry of Housing, Communities and Local Government",Homes England,AGENCY STAFF,Corporate Resources,ALLEN LANE LIMITED,02/12/2021," £3,630.00 ",SMA,80111600,Temporary personnel services
"Ministry of Housing, Communities and Local Government",Homes England,AGENCY STAFF,Corporate Resources,ALLEN LANE LIMITED,02/12/2021," £4,657.50 ",SMA,80111600,Temporary personnel services
"Ministry of Housing, Communities and Local Government",Homes England,AGENCY STAFF,Corporate Resources,ALLEN LANE LIMITED,02/12/2021," £5,692.50 ",SMA,80111600,Temporary personnel services
"Ministry of Housing, Communities and Local Government",Homes England,AGENCY STAFF,Corporate Resources,ALLEN LANE LIMITED,09/12/2021," £3,795.00 ",SMA,80111600,Temporary personnel services
"Ministry of Housing, Communities and Local Government",Homes England,AGENCY STAFF,Corporate Resources,ALLEN LANE LIMITED,09/12/2021," £4,290.00 ",SMA,80111600,Temporary personnel services
"Ministry of Housing, Communities and Local Government",Homes England,AGENCY STAFF,Corporate Resources,ALLEN LANE LIMITED,09/12/2021," £3,267.00 ",SMA,80111600,Temporary personnel services
"Ministry of Housing, Communities and Local Government",Homes England,SUNDRIES,Corporate Resources,ALLEN LANE LIMITED,09/12/2021," £3,795.00 ",SMA,80111600,Temporary personnel services
"Ministry of Housing, Communities and Local Government",Homes England,AGENCY STAFF,Corporate Resources,ALLEN LANE LIMITED,09/12/2021," £3,630.00 ",SMA,80111600,Temporary personnel services
"Ministry of Housing, Communities and Local Government",Homes England,AGENCY STAFF,Corporate Resources,ALLEN LANE LIMITED,16/12/2021," £3,415.50 ",SMA,80111600,Temporary personnel services
"Ministry of Housing, Communities and Local Government",Homes England,AGENCY STAFF,Corporate Resources,ALLEN LANE LIMITED,16/12/2021," £4,290.00 ",SMA,80111600,Temporary personnel services
"Ministry of Housing, Communities and Local Government",Homes England,AGENCY STAFF,Corporate Resources,ALLEN LANE LIMITED,16/12/2021," £5,280.00 ",SMA,80111600,Temporary personnel services
"Ministry of Housing, Communities and Local Government",Homes England,AGENCY STAFF,Corporate Resources,ALLEN LANE LIMITED,16/12/2021," £3,630.00 ",SMA,80111600,Temporary personnel services
"Ministry of Housing, Communities and Local Government",Homes England,AGENCY STAFF,Corporate Resources,ALLEN LANE LIMITED,16/12/2021," £3,795.00 ",SMA,80111600,Temporary personnel services
"Ministry of Housing, Communities and Local Government",Homes England,AGENCY STAFF,Corporate Resources,ALLEN LANE LIMITED,16/12/2021," £3,630.00 ",SMA,80111600,Temporary personnel services
"Ministry of Housing, Communities and Local Government",Homes England,AGENCY STAFF,Corporate Resources,ALLEN LANE LIMITED,16/12/2021," £4,657.50 ",SMA,80111600,Temporary personnel services
"Ministry of Housing, Communities and Local Government",Homes England,AGENCY STAFF,Corporate Resources,ALLEN LANE LIMITED,21/12/2021," £3,795.00 ",SMA,80111600,Temporary personnel services
"Ministry of Housing, Communities and Local Government",Homes England,AGENCY STAFF,Corporate Resources,ALLEN LANE LIMITED,21/12/2021," £3,795.00 ",SMA,80111600,Temporary personnel services
"Ministry of Housing, Communities and Local Government",Homes England,AGENCY STAFF,Corporate Resources,ALLEN LANE LIMITED,21/12/2021," £7,590.00 ",SMA,80111600,Temporary personnel services
"Ministry of Housing, Communities and Local Government",Homes England,AGENCY STAFF,Corporate Resources,ALLEN LANE LIMITED,21/12/2021," £3,795.00 ",SMA,80111600,Temporary personnel services
"Ministry of Housing, Communities and Local Government",Homes England,AGENCY STAFF,Corporate Resources,ALLEN LANE LIMITED,21/12/2021," £3,795.00 ",SMA,80111600,Temporary personnel services
"Ministry of Housing, Communities and Local Government",Homes England,ESTATE GENERAL MAINTENANCE,Development,AIREDALE FORESTRY,01/12/2021," £2,731.20 ",SMA,72101500,Building maintenance and repair services
"Ministry of Housing, Communities and Local Government",Homes England,OTHER PROFESSIONAL FEES,Development,AIREDALE FORESTRY,01/12/2021," £3,935.42 ",SMA,80131800,Real estate management services
"Ministry of Housing, Communities and Local Government",Homes England,ESTATE GENERAL MAINTENANCE,Development,AIREDALE FORESTRY,16/12/2021," £1,232.24 ",SMA,72101500,Building maintenance and repair services
"Ministry of Housing, Communities and Local Government",Homes England,ESTATE GENERAL MAINTENANCE,Development,AIREDALE FORESTRY,22/12/2021, £400.07 ,SMA,72101500,Building maintenance and repair services
"Ministry of Housing, Communities and Local Government",Homes England,ESTATE GENERAL MAINTENANCE,Development,AIREDALE FORESTRY,22/12/2021, £827.98 ,SMA,72101500,Building maintenance and repair services
"Ministry of Housing, Communities and Local Government",Homes England,ESTATE GENERAL MAINTENANCE,Development,AIREDALE FORESTRY,22/12/2021," £1,212.00 ",SMA,72101500,Building maintenance and repair services
"Ministry of Housing, Communities and Local Government",Homes England,CAR LEASING - HIRE CHARGES,Sras,ALD AUTOMOTIVE,08/12/2021, £252.30 ,LAR,25101500,Passenger motor vehicles
"Ministry of Housing, Communities and Local Government",Homes England,BESPOKE DEVELOPMENT SUPPORT,Cido,ASSIST KNOWLEDGE DEVELOPMENT LTD,06/12/2021," £1,530.00 ",SMA,80111600,Temporary personnel services
"Ministry of Housing, Communities and Local Government",Homes England,BESPOKE DEVELOPMENT SUPPORT,Cido,ASSIST KNOWLEDGE DEVELOPMENT LTD,06/12/2021," £1,530.00 ",SMA,80111600,Temporary personnel services
"Ministry of Housing, Communities and Local Government",Homes England,CONTRACT WORKS,Investment,ASHFORDS,10/12/2021," £4,363.20 ",LAR,80121600,Business law services
"Ministry of Housing, Communities and Local Government",Homes England,CONTRACT WORKS,Investment,ASHFORDS,10/12/2021," £12,600.00 ",LAR,80121600,Business law services
"Ministry of Housing, Communities and Local Government",Homes England,DISPOSAL FEES - LEGAL,"Markets, Partners & Places",ASHFORDS,15/12/2021," £1,279.20 ",LAR,80121600,Business law services
"Ministry of Housing, Communities and Local Government",Homes England,LEGAL FEES (ADMIN ONLY),Corporate Resources,ASHFORDS,24/12/2021," £1,268.40 ",LAR,80121600,Business law services
"Ministry of Housing, Communities and Local Government",Homes England,MISC PROFESSIONAL FEES,Development,APEX ENGINEERING SERVICES LTD,01/12/2021, £456.00 ,SMA,80131800,Real estate management services
"Ministry of Housing, Communities and Local Government",Homes England,MISC PROFESSIONAL FEES,Development,APEX ENGINEERING SERVICES LTD,17/12/2021, £912.00 ,SMA,80131800,Real estate management services
"Ministry of Housing, Communities and Local Government",Homes England,CAR LEASING - HIRE CHARGES,Development,ARNOLD CLARK FINANCE LIMITED,08/12/2021, £250.93 ,LAR,25101500,Passenger motor vehicles
"Ministry of Housing, Communities and Local Government",Homes England,CAR LEASING - HIRE CHARGES,Development,ARNOLD CLARK FINANCE LIMITED,08/12/2021, £311.78 ,LAR,25101500,Passenger motor vehicles
"Ministry of Housing, Communities and Local Government",Homes England,CAR LEASING - HIRE CHARGES,Development,ARNOLD CLARK FINANCE LIMITED,08/12/2021, £259.43 ,LAR,25101500,Passenger motor vehicles
"Ministry of Housing, Communities and Local Government",Homes England,CAR LEASING - HIRE CHARGES,Development,ARNOLD CLARK FINANCE LIMITED,08/12/2021, £274.82 ,LAR,25101500,Passenger motor vehicles
"Ministry of Housing, Communities and Local Government",Homes England,CAR LEASING - HIRE CHARGES,Development,ARNOLD CLARK FINANCE LIMITED,08/12/2021, £254.11 ,LAR,25101500,Passenger motor vehicles
"Ministry of Housing, Communities and Local Government",Homes England,CAR LEASING - HIRE CHARGES,"Markets, Partners & Places",ARNOLD CLARK FINANCE LIMITED,08/12/2021, £268.67 ,LAR,25101500,Passenger motor vehicles
"Ministry of Housing, Communities and Local Government",Homes England,CAR LEASING - HIRE CHARGES,"Markets, Partners & Places",ARNOLD CLARK FINANCE LIMITED,08/12/2021, £354.99 ,LAR,25101500,Passenger motor vehicles
"Ministry of Housing, Communities and Local Government",Homes England,CAR LEASING - HIRE CHARGES,Investment,ARNOLD CLARK FINANCE LIMITED,08/12/2021, £267.53 ,LAR,25101500,Passenger motor vehicles
"Ministry of Housing, Communities and Local Government",Homes England,CAR LEASING - HIRE CHARGES,Development,ARNOLD CLARK FINANCE LIMITED,20/12/2021, £279.44 ,LAR,25101500,Passenger motor vehicles
"Ministry of Housing, Communities and Local Government",Homes England,CAR LEASING - HIRE CHARGES,Development,ARNOLD CLARK FINANCE LIMITED,21/12/2021, £318.38 ,LAR,25101500,Passenger motor vehicles
"Ministry of Housing, Communities and Local Government",Homes England,CAR LEASING - HIRE CHARGES,Development,ARNOLD CLARK FINANCE LIMITED,21/12/2021, £426.34 ,LAR,25101500,Passenger motor vehicles
"Ministry of Housing, Communities and Local Government",Homes England,LEGAL FEES (PROGRAMME - RDEL),"Markets, Partners & Places",BERWIN LEIGHTON PAISNER,01/12/2021, £554.40 ,LAR,80121600,Business law services
"Ministry of Housing, Communities and Local Government",Homes England,LEGAL FEES (PROGRAMME - RDEL),Investment,BERWIN LEIGHTON PAISNER,01/12/2021," £13,560.00 ",LAR,80121600,Business law services
"Ministry of Housing, Communities and Local Government",Homes England,LEGAL FEES (PROGRAMME - RDEL),Investment,BERWIN LEIGHTON PAISNER,01/12/2021, £960.00 ,LAR,80121600,Business law services
"Ministry of Housing, Communities and Local Government",Homes England,DISPOSAL FEES - LEGAL,"Markets, Partners & Places",BERWIN LEIGHTON PAISNER,02/12/2021," £5,390.40 ",LAR,80121600,Business law services
"Ministry of Housing, Communities and Local Government",Homes England,LEGAL FEES (PROGRAMME - RDEL),Investment,BERWIN LEIGHTON PAISNER,07/12/2021," £2,400.00 ",LAR,80121600,Business law services
"Ministry of Housing, Communities and Local Government",Homes England,MISC PROFESSIONAL FEES,Development,BERWIN LEIGHTON PAISNER,07/12/2021," £11,400.00 ",LAR,80121600,Business law services
"Ministry of Housing, Communities and Local Government",Homes England,LEGAL FEES (PROGRAMME - RDEL),Development,BERWIN LEIGHTON PAISNER,08/12/2021, £645.60 ,LAR,80121600,Business law services
"Ministry of Housing, Communities and Local Government",Homes England,AHP HOMEBUY AGENTS FEES,Investment,BERWIN LEIGHTON PAISNER,09/12/2021," £1,069.20 ",LAR,80121600,Business law services
"Ministry of Housing, Communities and Local Government",Homes England,AHP HOMEBUY AGENTS FEES,Investment,BERWIN LEIGHTON PAISNER,13/12/2021," £3,088.80 ",LAR,80121600,Business law services
"Ministry of Housing, Communities and Local Government",Homes England,LEGAL FEES (PROGRAMME - CDEL),"Markets, Partners & Places",BERWIN LEIGHTON PAISNER,14/12/2021," £1,740.00 ",LAR,80121600,Business law services
"Ministry of Housing, Communities and Local Government",Homes England,LEGAL FEES (PROGRAMME - RDEL),Investment,BERWIN LEIGHTON PAISNER,14/12/2021," £17,650.56 ",LAR,80121600,Business law services
"Ministry of Housing, Communities and Local Government",Homes England,LEGAL FEES (PROGRAMME - RDEL),Investment,BERWIN LEIGHTON PAISNER,15/12/2021," £3,300.00 ",LAR,80121600,Business law services
"Ministry of Housing, Communities and Local Government",Homes England,MISC PROFESSIONAL FEES,Development,BERWIN LEIGHTON PAISNER,17/12/2021," £2,846.40 ",LAR,80121600,Business law services
"Ministry of Housing, Communities and Local Government",Homes England,DISPOSAL FEES - LEGAL,"Markets, Partners & Places",BERWIN LEIGHTON PAISNER,20/12/2021," £7,009.20 ",LAR,80121600,Business law services
"Ministry of Housing, Communities and Local Government",Homes England,MISC PROFESSIONAL FEES,Cido,BJSS LIMITED,16/12/2021," £152,650.50 ",LAR,81112000,Data Services
"Ministry of Housing, Communities and Local Government",Homes England,PROF FEES LOANS CAPITALISED,Investment,BROWNE JACOBSON LLP,01/12/2021," £4,447.20 ",LAR,80121600,Business law services
"Ministry of Housing, Communities and Local Government",Homes England,LEGAL FEES (PROGRAMME - CDEL),Development,BROWNE JACOBSON LLP,02/12/2021," £15,000.00 ",LAR,80121600,Business law services
"Ministry of Housing, Communities and Local Government",Homes England,LEGAL FEES (PROGRAMME - RDEL),Development,BROWNE JACOBSON LLP,02/12/2021," £3,000.00 ",LAR,80121600,Business law services
"Ministry of Housing, Communities and Local Government",Homes England,LEGAL FEES (PROGRAMME - CDEL),Development,BROWNE JACOBSON LLP,03/12/2021," £1,500.00 ",LAR,80121600,Business law services
"Ministry of Housing, Communities and Local Government",Homes England,DISPOSAL FEES - LEGAL,Development,BROWNE JACOBSON LLP,03/12/2021," £12,000.00 ",LAR,80121600,Business law services
"Ministry of Housing, Communities and Local Government",Homes England,LEGAL FEES (PROGRAMME - CDEL),"Markets, Partners & Places",BROWNE JACOBSON LLP,03/12/2021," £6,261.00 ",LAR,80121600,Business law services
"Ministry of Housing, Communities and Local Government",Homes England,LEGAL FEES (PROGRAMME - RDEL),Development,BROWNE JACOBSON LLP,07/12/2021," £12,314.72 ",LAR,80121600,Business law services
"Ministry of Housing, Communities and Local Government",Homes England,LEGAL FEES (PROGRAMME - CDEL),Development,BROWNE JACOBSON LLP,08/12/2021," £1,200.00 ",LAR,80121600,Business law services
"Ministry of Housing, Communities and Local Government",Homes England,DISPOSAL FEES - LEGAL,"Markets, Partners & Places",BROWNE JACOBSON LLP,14/12/2021," £11,400.00 ",LAR,80121600,Business law services
"Ministry of Housing, Communities and Local Government",Homes England,LEGAL FEES (PROGRAMME - RDEL),Investment,BROWNE JACOBSON LLP,16/12/2021," £1,211.52 ",LAR,80121600,Business law services
"Ministry of Housing, Communities and Local Government",Homes England,LEGAL FEES (PROGRAMME - CDEL),Development,BROWNE JACOBSON LLP,20/12/2021, £420.00 ,LAR,80121600,Business law services
"Ministry of Housing, Communities and Local Government",Homes England,LEGAL FEES (PROGRAMME - RDEL),Development,BROWNE JACOBSON LLP,21/12/2021," £3,600.00 ",LAR,80121600,Business law services
"Ministry of Housing, Communities and Local Government",Homes England,LEGAL FEES (PROGRAMME - CDEL),Development,BROWNE JACOBSON LLP,23/12/2021, £595.20 ,LAR,80121600,Business law services
"Ministry of Housing, Communities and Local Government",Homes England,DISPOSAL FEES - LEGAL,"Markets, Partners & Places",BROWNE JACOBSON LLP,23/12/2021," £6,026.40 ",LAR,80121600,Business law services
"Ministry of Housing, Communities and Local Government",Homes England,LEGAL FEES (PROGRAMME - RDEL),Development,BROWNE JACOBSON LLP,24/12/2021," £3,000.00 ",LAR,80121600,Business law services
"Ministry of Housing, Communities and Local Government",Homes England,MASTERPLANNING FEES,Development,BUILDING DESIGN PARTNERSHIP,01/12/2021," £120,000.00 ",LAR,81101500,Civil Engineering
"Ministry of Housing, Communities and Local Government",Homes England,RI - MONIITORING SURVEYOR FEES,Investment,BUILDING DESIGN PARTNERSHIP,13/12/2021," £2,112.00 ",LAR,81101500,Civil Engineering
"Ministry of Housing, Communities and Local Government",Homes England,CAP GRNTS TO LOCAL AUTHORITIES,Investment,BUCKINGHAMSHIRE COUNTY COUNCIL,21/12/2021," £2,087,342.40 ",PUB,None,Grants
"Ministry of Housing, Communities and Local Government",Homes England,CAP GRNTS TO LOCAL AUTHORITIES,Investment,BUCKINGHAMSHIRE COUNTY COUNCIL,22/12/2021," £257,932.69 ",PUB,None,Grants
"Ministry of Housing, Communities and Local Government",Homes England,CAP GRNTS TO LOCAL AUTHORITIES,Investment,BUCKINGHAMSHIRE COUNTY COUNCIL,22/12/2021," £1,836,435.13 ",PUB,None,Grants
"Ministry of Housing, Communities and Local Government",Homes England,ST FUND LOANS ADDITIONS,Investment,BROADFIELD HOMES LTD,15/12/2021," £106,875.72 ",LAR,None,Loans
"Ministry of Housing, Communities and Local Government",Homes England,MISC PROFESSIONAL FEES,Development,DESIGN WEST,08/12/2021, £480.00 ,SMA,80101500,Business and corporate management consultation services
"Ministry of Housing, Communities and Local Government",Homes England,MISC PROFESSIONAL FEES,"Markets, Partners & Places",STANTEC UK LIMITED,01/12/2021," £6,420.00 ",LAR,80131800,Real estate management services
"Ministry of Housing, Communities and Local Government",Homes England,OTHER PROFESSIONAL FEES,"Markets, Partners & Places",STANTEC UK LIMITED,01/12/2021," £3,000.00 ",LAR,80131800,Real estate management services
"Ministry of Housing, Communities and Local Government",Homes England,MASTERPLANNING FEES,"Markets, Partners & Places",STANTEC UK LIMITED,01/12/2021," £15,559.80 ",LAR,81101500,Civil Engineering
"Ministry of Housing, Communities and Local Government",Homes England,ENGINEERING FEES,Development,STANTEC UK LIMITED,07/12/2021," £13,980.00 ",LAR,81101500,Civil Engineering
"Ministry of Housing, Communities and Local Government",Homes England,ENGINEERING FEES,Development,STANTEC UK LIMITED,07/12/2021," £7,524.00 ",LAR,81101500,Civil Engineering
"Ministry of Housing, Communities and Local Government",Homes England,PROJECT MANAGEMENT,"Markets, Partners & Places",STANTEC UK LIMITED,21/12/2021," £12,519.00 ",LAR,80101600,Project management
"Ministry of Housing, Communities and Local Government",Homes England,RI - MONIITORING SURVEYOR FEES,Investment,STANTEC UK LIMITED,22/12/2021," £3,000.00 ",LAR,81101500,Civil Engineering
"Ministry of Housing, Communities and Local Government",Homes England,AGENCY STAFF,Development,BADENOCH & CLARK,06/12/2021," £2,097.00 ",LAR,80111600,Temporary personnel services
"Ministry of Housing, Communities and Local Government",Homes England,AGENCY STAFF,Development,BADENOCH & CLARK,10/12/2021," £2,097.00 ",LAR,80111600,Temporary personnel services
"Ministry of Housing, Communities and Local Government",Homes England,AGENCY STAFF,Development,BADENOCH & CLARK,14/12/2021," £2,097.00 ",LAR,80111600,Temporary personnel services
"Ministry of Housing, Communities and Local Government",Homes England,RI - MONIITORING SURVEYOR FEES,Investment,RIDER LEVETT BUCKNALL UK LTD,16/12/2021," £1,569.60 ",LAR,81101500,Civil Engineering
"Ministry of Housing, Communities and Local Government",Homes England,RI - MONIITORING SURVEYOR FEES,Investment,RIDER LEVETT BUCKNALL UK LTD,16/12/2021," £1,569.60 ",LAR,81101500,Civil Engineering
"Ministry of Housing, Communities and Local Government",Homes England,MOBILES,Cido,BRITISH TELECOMMUNICATIONS PLC,06/12/2021, £401.66 ,LAR,83111500,Local and long distance telephone communications
"Ministry of Housing, Communities and Local Government",Homes England,MOBILES,Cido,BRITISH TELECOMMUNICATIONS PLC,06/12/2021, £401.68 ,LAR,83111500,Local and long distance telephone communications
"Ministry of Housing, Communities and Local Government",Homes England,PRINTING & STATIONERY,Development,BANNER,02/12/2021," £1,455.01 ",LAR,44121600,Desk supplies
"Ministry of Housing, Communities and Local Government",Homes England,PRINTING & STATIONERY,Development,BANNER,02/12/2021," £2,001.34 ",LAR,44121600,Desk supplies
"Ministry of Housing, Communities and Local Government",Homes England,ST FUND LOANS ADDITIONS,Investment,BLUNDELLSANDS INVESTMENTS LIMITED,16/12/2021," £199,790.00 ",MIC,None,Loans
"Ministry of Housing, Communities and Local Government",Homes England,BUILDINGS-GAS,"Markets, Partners & Places",BRITISH GAS BUSINESS,01/12/2021, £669.03 ,LAR,83101600,Oil and gas utilities
"Ministry of Housing, Communities and Local Government",Homes England,BUILDINGS-ELECTRICITY,Development,BRITISH GAS BUSINESS,23/12/2021," £1,663.03 ",LAR,83101800,Electric utilities
"Ministry of Housing, Communities and Local Government",Homes England,BUILDINGS-VACANT RATES,Development,BIRMINGHAM CITY COUNCIL,03/12/2021," £2,413.66 ",PUB,80131500,Lease and rental of property or building
"Ministry of Housing, Communities and Local Government",Homes England,ST FUND LOANS ADDITIONS,Investment,BROTHER DEVELOPMENTS (WORSTHORNE) LTD,16/12/2021," £231,823.74 ",SMA,None,Loans
"Ministry of Housing, Communities and Local Government",Homes England,MISC PROFESSIONAL FEES,Sras,MICHAEL BURRELL,15/12/2021," £1,575.00 ",MIC,86101800,In service training and manpower development
"Ministry of Housing, Communities and Local Government",Homes England,CAP GRNTS TO LOCAL AUTHORITIES,Investment,BRISTOL CITY COUNCIL,15/12/2021," £258,961.91 ",PUB,None,Grants
"Ministry of Housing, Communities and Local Government",Homes England,CAP GRNTS TO LOCAL AUTHORITIES,Investment,BRISTOL CITY COUNCIL,20/12/2021," £18,394.00 ",PUB,None,Grants
"Ministry of Housing, Communities and Local Government",Homes England,MASTERPLANNING FEES,Development,BSG ECOLOGY,17/12/2021," £1,770.00 ",MED,81101500,Civil Engineering
"Ministry of Housing, Communities and Local Government",Homes England,OTHER LTF LOAN ADDITIONS,Investment,BL CW Developments Limited,22/12/2021," £2,159,533.49 ",SMA,None,Loans
"Ministry of Housing, Communities and Local Government",Homes England,ST FUND LOANS ADDITIONS,Investment,BRYNKINALT FARMING LTD,01/12/2021," £355,092.00 ",LAR,None,Loans
"Ministry of Housing, Communities and Local Government",Homes England,OTHER PROFESSIONAL FEES,Development,BTS,14/12/2021, £698.29 ,MIC,80131800,Real estate management services
"Ministry of Housing, Communities and Local Government",Homes England,ST FUND LOANS ADDITIONS,Investment,BUCHANAN ESTATES LIMITED,21/12/2021," £82,632.37 ",SMA,None,Loans
"Ministry of Housing, Communities and Local Government",Homes England,CONTRACT WORKS,"Markets, Partners & Places",BOND DEMOLITION LIMITED,02/12/2021," £7,668.54 ",SMA,72141500,Land preparation services
"Ministry of Housing, Communities and Local Government",Homes England,ST FUND LOANS ADDITIONS,Investment,BROADLEAF NORWICH ROAD LIMITED,14/12/2021," £124,458.52 ",LAR,None,Loans
"Ministry of Housing, Communities and Local Government",Homes England,ST FUND LOANS ADDITIONS,Investment,BERI PROPERTIES LIMITED,08/12/2021," £6,157.00 ",SMA,None,Loans
"Ministry of Housing, Communities and Local Government",Homes England,1ST PT COST/FEE INC UNINS LOSS,Development,BC LEGAL (OFFICE ACCOUNT),17/12/2021," £1,416.00 ",SMA,80121600,Business law services
"Ministry of Housing, Communities and Local Government",Homes England,1ST PT COST/FEE INC UNINS LOSS,Development,BC LEGAL (OFFICE ACCOUNT),17/12/2021," £1,236.00 ",SMA,80121600,Business law services
"Ministry of Housing, Communities and Local Government",Homes England,ST FUND LOANS ADDITIONS,Investment,BE21 LTD,15/12/2021," £28,566.00 ",LAR,None,Loans
"Ministry of Housing, Communities and Local Government",Homes England,MISC PROFESSIONAL FEES,Investment,BOSTON HALE LTD,06/12/2021," £78,187.20 ",SMA,80111600,Temporary personnel services
"Ministry of Housing, Communities and Local Government",Homes England,ST FUND LOANS ADDITIONS,Investment,BELFIELD KINGSKERSWELL LLP,14/12/2021," £263,000.00 ",SMA,None,Loans
"Ministry of Housing, Communities and Local Government",Homes England,ESTATE GENERAL MAINTENANCE,"Markets, Partners & Places",BIRMINGHAM CITY COUNCIL,21/12/2021, £386.40 ,PUB,72101500,Building maintenance and repair services
"Ministry of Housing, Communities and Local Government",Homes England,LT FUND LOANS (PS) ADDITIONS,Investment,BXS LIMITED PARTNERSHIP,07/12/2021," £4,147,512.33 ",MED,None,Loans
"Ministry of Housing, Communities and Local Government",Homes England,LT FUND LOANS (PS) ADDITIONS,Investment,BXS LIMITED PARTNERSHIP,21/12/2021," £6,191,635.14 ",MED,None,Loans
"Ministry of Housing, Communities and Local Government",Homes England,RI - MONIITORING SURVEYOR FEES,Investment,BNP PARIBAS REAL ESTATE,01/12/2021, £840.00 ,LAR,81101500,Civil Engineering
"Ministry of Housing, Communities and Local Government",Homes England,RI - MONIITORING SURVEYOR FEES,Investment,BNP PARIBAS REAL ESTATE,01/12/2021," £1,020.00 ",LAR,81101500,Civil Engineering
"Ministry of Housing, Communities and Local Government",Homes England,RI - MONIITORING SURVEYOR FEES,Investment,BNP PARIBAS REAL ESTATE,01/12/2021," £1,020.00 ",LAR,81101500,Civil Engineering
"Ministry of Housing, Communities and Local Government",Homes England,RI - MONIITORING SURVEYOR FEES,Investment,BNP PARIBAS REAL ESTATE,01/12/2021," £1,020.00 ",LAR,81101500,Civil Engineering
"Ministry of Housing, Communities and Local Government",Homes England,RI - MONIITORING SURVEYOR FEES,Investment,BNP PARIBAS REAL ESTATE,01/12/2021," £1,050.00 ",LAR,81101500,Civil Engineering
"Ministry of Housing, Communities and Local Government",Homes England,RI - MONIITORING SURVEYOR FEES,Investment,BNP PARIBAS REAL ESTATE,01/12/2021, £960.00 ,LAR,81101500,Civil Engineering
"Ministry of Housing, Communities and Local Government",Homes England,RI - MONIITORING SURVEYOR FEES,Investment,BNP PARIBAS REAL ESTATE,01/12/2021," £1,170.00 ",LAR,81101500,Civil Engineering
"Ministry of Housing, Communities and Local Government",Homes England,RI - MONIITORING SURVEYOR FEES,Investment,BNP PARIBAS REAL ESTATE,01/12/2021," £1,020.00 ",LAR,81101500,Civil Engineering
"Ministry of Housing, Communities and Local Government",Homes England,RI - MONIITORING SURVEYOR FEES,Investment,BNP PARIBAS REAL ESTATE,02/12/2021," £1,140.00 ",LAR,81101500,Civil Engineering
"Ministry of Housing, Communities and Local Government",Homes England,RI - MONIITORING SURVEYOR FEES,Investment,BNP PARIBAS REAL ESTATE,03/12/2021, £840.00 ,LAR,81101500,Civil Engineering
"Ministry of Housing, Communities and Local Government",Homes England,RI - MONIITORING SURVEYOR FEES,Investment,BNP PARIBAS REAL ESTATE,09/12/2021, £840.00 ,LAR,81101500,Civil Engineering
"Ministry of Housing, Communities and Local Government",Homes England,RI - MONIITORING SURVEYOR FEES,Investment,BNP PARIBAS REAL ESTATE,10/12/2021, £840.00 ,LAR,81101500,Civil Engineering
"Ministry of Housing, Communities and Local Government",Homes England,RI - SITE VALUATION FEES,Investment,BNP PARIBAS REAL ESTATE,16/12/2021," £5,220.00 ",LAR,80131800,Real estate management services
"Ministry of Housing, Communities and Local Government",Homes England,RI - SITE VALUATION FEES,Investment,BNP PARIBAS REAL ESTATE,16/12/2021," £5,400.00 ",LAR,80131800,Real estate management services
"Ministry of Housing, Communities and Local Government",Homes England,RI - MONIITORING SURVEYOR FEES,Investment,BNP PARIBAS REAL ESTATE,23/12/2021," £1,050.00 ",LAR,81101500,Civil Engineering
"Ministry of Housing, Communities and Local Government",Homes England,LANDSCAPE MAINT-BUILT ESTATE,Development,BROOKFIELD CONTRACTING & FARMING LTD,09/12/2021, £286.99 ,SMA,72102900,Facility maintenance and repair services
"Ministry of Housing, Communities and Local Government",Homes England,PROF FEES EQUITY CAPITALISED,Investment,BOND DICKINSON LLP,03/12/2021," £1,800.00 ",LAR,80121600,Business law services
"Ministry of Housing, Communities and Local Government",Homes England,LEGAL FEES (PROGRAMME - RDEL),Investment,BOND DICKINSON LLP,07/12/2021," £5,252.40 ",LAR,80121600,Business law services
"Ministry of Housing, Communities and Local Government",Homes England,LEGAL FEES (PROGRAMME - RDEL),Investment,BOND DICKINSON LLP,08/12/2021," £9,159.00 ",LAR,80121600,Business law services
"Ministry of Housing, Communities and Local Government",Homes England,CONTRACT WORKS,Investment,BRITISH TELECOM - OPENREACH,07/12/2021," £17,289.00 ",LAR,72103300,Infrastructure maintenance and repair services
"Ministry of Housing, Communities and Local Government",Homes England,CAP GRNTS TO PRIVATE SECTOR,Investment,REVOLUTION PROPERTY MANAGEMENT LTD,02/12/2021," £150,382.29 ",SMA,None,Grants
"Ministry of Housing, Communities and Local Government",Homes England,CAP GRNTS PUB SECTOR EXCL L A,Investment,SIX HILLS MANAGEMENT LTD,14/12/2021," £1,157,859.00 ",MIC,None,Grants
"Ministry of Housing, Communities and Local Government",Homes England,CAP GRNTS TO PRIVATE SECTOR,Investment,SKYLINE PLAZA RTM COMPANY LTD,14/12/2021," £886,059.15 ",MIC,None,Grants
"Ministry of Housing, Communities and Local Government",Homes England,CAP GRNTS PUB SECTOR EXCL L A,Investment,CROSSWAYS (SLOUGH) MANAGEMENT COMPANY LIMITED,01/12/2021," £828,747.00 ",SMA,None,Grants
"Ministry of Housing, Communities and Local Government",Homes England,CAP GRNTS TO PRIVATE SECTOR,Investment,FREML (RESIDENTIAL) LTD,01/12/2021," £179,676.00 ",MIC,None,Grants
"Ministry of Housing, Communities and Local Government",Homes England,CAP GRNTS TO PRIVATE SECTOR,Investment,AZURE PLYMOUTH LIMITED,15/12/2021," £424,255.32 ",SMA,None,Grants
"Ministry of Housing, Communities and Local Government",Homes England,CAP GRNTS PUB SECTOR EXCL L A,Investment,THANET DISTRICT COUNCIL,23/12/2021," £372,547.08 ",PUB,None,Grants
"Ministry of Housing, Communities and Local Government",Homes England,PROF FEES LOANS CAPITALISED,Investment,CAMPBELL REITH,02/12/2021," £4,500.00 ",MED,81101500,Civil Engineering
"Ministry of Housing, Communities and Local Government",Homes England,RI - MONIITORING SURVEYOR FEES,Investment,CAMPBELL REITH,02/12/2021," £2,280.00 ",MED,81101500,Civil Engineering
"Ministry of Housing, Communities and Local Government",Homes England,RI - MONIITORING SURVEYOR FEES,Investment,CAMPBELL REITH,02/12/2021," £1,302.00 ",MED,81101500,Civil Engineering
"Ministry of Housing, Communities and Local Government",Homes England,MASTERPLANNING FEES,"Markets, Partners & Places",CAMPBELL REITH,08/12/2021," £41,990.26 ",MED,81101500,Civil Engineering
"Ministry of Housing, Communities and Local Government",Homes England,OTHER PROFESSIONAL FEES,"Markets, Partners & Places",CAMPBELL REITH,08/12/2021," £6,888.16 ",MED,80131800,Real estate management services
"Ministry of Housing, Communities and Local Government",Homes England,MISC PROFESSIONAL FEES,"Markets, Partners & Places",CAMPBELL REITH,08/12/2021," £9,000.00 ",MED,80131800,Real estate management services
"Ministry of Housing, Communities and Local Government",Homes England,RI - MONIITORING SURVEYOR FEES,Investment,CAMPBELL REITH,10/12/2021," £1,320.00 ",MED,81101500,Civil Engineering
"Ministry of Housing, Communities and Local Government",Homes England,RI - MONIITORING SURVEYOR FEES,Investment,CAMPBELL REITH,10/12/2021," £1,320.00 ",MED,81101500,Civil Engineering
"Ministry of Housing, Communities and Local Government",Homes England,PROF FEES LOANS CAPITALISED,Investment,CAMPBELL REITH,15/12/2021," £3,900.00 ",MED,81101500,Civil Engineering
"Ministry of Housing, Communities and Local Government",Homes England,RI - MONIITORING SURVEYOR FEES,Investment,CAMPBELL REITH,15/12/2021," £1,260.00 ",MED,81101500,Civil Engineering
"Ministry of Housing, Communities and Local Government",Homes England,RI - MONIITORING SURVEYOR FEES,Investment,CAMPBELL REITH,16/12/2021," £1,320.00 ",MED,81101500,Civil Engineering
"Ministry of Housing, Communities and Local Government",Homes England,RI - MONIITORING SURVEYOR FEES,Investment,CAMPBELL REITH,17/12/2021," £2,280.00 ",MED,81101500,Civil Engineering
"Ministry of Housing, Communities and Local Government",Homes England,ENGINEERING FEES,Investment,CAMPBELL REITH,17/12/2021," £4,200.00 ",MED,81101500,Civil Engineering
"Ministry of Housing, Communities and Local Government",Homes England,PLANNING APPLICATIONS,Development,CAMPBELL REITH,20/12/2021," £2,580.00 ",MED,80131800,Real estate management services
"Ministry of Housing, Communities and Local Government",Homes England,PLANNING APPLICATIONS,Development,CAMPBELL REITH,20/12/2021," £2,580.00 ",MED,80131800,Real estate management services
"Ministry of Housing, Communities and Local Government",Homes England,ENGINEERING FEES,Development,CAMPBELL REITH,20/12/2021," £2,895.00 ",MED,81101500,Civil Engineering
"Ministry of Housing, Communities and Local Government",Homes England,ENGINEERING FEES,Development,CAMPBELL REITH,20/12/2021," £2,955.00 ",MED,81101500,Civil Engineering
"Ministry of Housing, Communities and Local Government",Homes England,ENGINEERING FEES,Development,CAMPBELL REITH,20/12/2021," £7,872.90 ",MED,81101500,Civil Engineering
"Ministry of Housing, Communities and Local Government",Homes England,RI - MONIITORING SURVEYOR FEES,Investment,CAMPBELL REITH,20/12/2021," £1,302.00 ",MED,81101500,Civil Engineering
"Ministry of Housing, Communities and Local Government",Homes England,RI - MONIITORING SURVEYOR FEES,Investment,CAMPBELL REITH,21/12/2021," £1,302.00 ",MED,81101500,Civil Engineering
"Ministry of Housing, Communities and Local Government",Homes England,DISPOSAL FEES - PROPERTY AGENT,"Markets, Partners & Places",CARTER JONAS,01/12/2021," £1,980.00 ",LAR,80131600,Sale of property and building
"Ministry of Housing, Communities and Local Government",Homes England,RI - MONIITORING SURVEYOR FEES,Investment,CARTER JONAS,02/12/2021," £1,380.00 ",LAR,81101500,Civil Engineering
"Ministry of Housing, Communities and Local Government",Homes England,DISPOSAL FEES - PROPERTY AGENT,Development,CARTER JONAS,13/12/2021," £5,043.00 ",LAR,80131600,Sale of property and building
"Ministry of Housing, Communities and Local Government",Homes England,VALUATION FEES,Development,CARTER JONAS,21/12/2021," £4,800.00 ",LAR,80131800,Real estate management services
"Ministry of Housing, Communities and Local Government",Homes England,MANAGEMENT COSTS,Development,CARTER JONAS,24/12/2021," £29,400.00 ",LAR,80131800,Real estate management services
"Ministry of Housing, Communities and Local Government",Homes England,BUILDINGS-GAS,"Markets, Partners & Places",CORONA ENERGY,13/12/2021, £908.46 ,LAR,83101600,Oil and gas utilities
"Ministry of Housing, Communities and Local Government",Homes England,GAS,Development,CORONA ENERGY,13/12/2021, £978.66 ,LAR,83101600,Oil and gas utilities
"Ministry of Housing, Communities and Local Government",Homes England,BUILDINGS-GAS,Development,CORONA ENERGY,15/12/2021, £314.40 ,LAR,83101600,Oil and gas utilities
"Ministry of Housing, Communities and Local Government",Homes England,BUILDINGS-GAS,Development,CORONA ENERGY,15/12/2021, £291.92 ,LAR,83101600,Oil and gas utilities
"Ministry of Housing, Communities and Local Government",Homes England,LANDSCAPE MAINT-BUILT ESTATE,Development,C A STAMP GROUNDS & AGRICULTURE,07/12/2021," £1,020.00 ",SMA,72102900,Facility maintenance and repair services
"Ministry of Housing, Communities and Local Government",Homes England,LANDSCAPE MAINT-BUILT ESTATE,Development,C A STAMP GROUNDS & AGRICULTURE,07/12/2021," £1,140.00 ",SMA,72102900,Facility maintenance and repair services
"Ministry of Housing, Communities and Local Government",Homes England,ST FUND LOANS ADDITIONS,Investment,CREATE DEVELOPMENTS (LONGRIDGE) LTD,09/12/2021," £375,372.00 ",LAR,None,Loans
"Ministry of Housing, Communities and Local Government",Homes England,TRAINING COURSES & CONFERENCES,Chief Risk Officer,CCL ACADEMY LIMITED,08/12/2021, £958.80 ,MIC,86101800,In service training and manpower development
"Ministry of Housing, Communities and Local Government",Homes England,DATA CENTRE,Cido,CROWN HOSTING DATA CENTRES LIMITED,08/12/2021, £698.58 ,SMA,81112000,Data Services
"Ministry of Housing, Communities and Local Government",Homes England,DATA CENTRE,Cido,CROWN HOSTING DATA CENTRES LIMITED,22/12/2021," £1,860.00 ",SMA,81112000,Data Services
"Ministry of Housing, Communities and Local Government",Homes England,DATA CENTRE,Cido,CROWN HOSTING DATA CENTRES LIMITED,22/12/2021," £2,717.47 ",SMA,81112000,Data Services
"Ministry of Housing, Communities and Local Government",Homes England,DATA CENTRE,Cido,CROWN HOSTING DATA CENTRES LIMITED,22/12/2021," £1,222.84 ",SMA,81112000,Data Services
"Ministry of Housing, Communities and Local Government",Homes England,L&OD STRATEGIC - HR USE ONLY,Corporate Resources,CATH BROWN CONSULTANCY,21/12/2021," £1,020.00 ",SMA,86101800,In service training and manpower development
"Ministry of Housing, Communities and Local Government",Homes England,ESTATE GENERAL MAINTENANCE,Development,CHAFFIN WORKS,07/12/2021," £2,231.52 ",MED,72101500,Building maintenance and repair services
"Ministry of Housing, Communities and Local Government",Homes England,SECURITY,Development,CIVIL ENFORCEMENT AGENTS LTD,15/12/2021," £5,550.00 ",MIC,92121500,Guard services
"Ministry of Housing, Communities and Local Government",Homes England,SECURITY,Development,COAST 2 COAST SECURITY LTD,01/12/2021," £9,913.46 ",MED,92121500,Guard services
"Ministry of Housing, Communities and Local Government",Homes England,ST FUND LOANS ADDITIONS,Investment,COURT PROPERTY HOMES LIMITED,14/12/2021," £120,021.86 ",MIC,None,Loans
"Ministry of Housing, Communities and Local Government",Homes England,RI - MONIITORING SURVEYOR FEES,Investment,COLLIERS INTERNATIONAL PROPERTY CONSULTANTS,02/12/2021, £840.00 ,LAR,81101500,Civil Engineering
"Ministry of Housing, Communities and Local Government",Homes England,RI - MONIITORING SURVEYOR FEES,Investment,COLLIERS INTERNATIONAL PROPERTY CONSULTANTS,02/12/2021, £900.00 ,LAR,81101500,Civil Engineering
"Ministry of Housing, Communities and Local Government",Homes England,RI - MONIITORING SURVEYOR FEES,Investment,COLLIERS INTERNATIONAL PROPERTY CONSULTANTS,03/12/2021, £810.00 ,LAR,81101500,Civil Engineering
"Ministry of Housing, Communities and Local Government",Homes England,RI - MONIITORING SURVEYOR FEES,Investment,COLLIERS INTERNATIONAL PROPERTY CONSULTANTS,08/12/2021, £840.00 ,LAR,81101500,Civil Engineering
"Ministry of Housing, Communities and Local Government",Homes England,RI - MONIITORING SURVEYOR FEES,Investment,COLLIERS INTERNATIONAL PROPERTY CONSULTANTS,08/12/2021," £1,320.00 ",LAR,81101500,Civil Engineering
"Ministry of Housing, Communities and Local Government",Homes England,RI - MONIITORING SURVEYOR FEES,Investment,COLLIERS INTERNATIONAL PROPERTY CONSULTANTS,09/12/2021, £810.00 ,LAR,81101500,Civil Engineering
"Ministry of Housing, Communities and Local Government",Homes England,RI - MONIITORING SURVEYOR FEES,Investment,COLLIERS INTERNATIONAL PROPERTY CONSULTANTS,09/12/2021, £900.00 ,LAR,81101500,Civil Engineering
"Ministry of Housing, Communities and Local Government",Homes England,PROF FEES LOANS CAPITALISED,Investment,COLLIERS INTERNATIONAL PROPERTY CONSULTANTS,09/12/2021, £810.00 ,LAR,81101500,Civil Engineering
"Ministry of Housing, Communities and Local Government",Homes England,RI - MONIITORING SURVEYOR FEES,Investment,COLLIERS INTERNATIONAL PROPERTY CONSULTANTS,09/12/2021, £900.00 ,LAR,81101500,Civil Engineering
"Ministry of Housing, Communities and Local Government",Homes England,PROF FEES LOANS CAPITALISED,Investment,COLLIERS INTERNATIONAL PROPERTY CONSULTANTS,09/12/2021, £810.00 ,LAR,81101500,Civil Engineering
"Ministry of Housing, Communities and Local Government",Homes England,RI - MONIITORING SURVEYOR FEES,Investment,COLLIERS INTERNATIONAL PROPERTY CONSULTANTS,09/12/2021, £900.00 ,LAR,81101500,Civil Engineering
"Ministry of Housing, Communities and Local Government",Homes England,RI - MONIITORING SURVEYOR FEES,Investment,COLLIERS INTERNATIONAL PROPERTY CONSULTANTS,09/12/2021, £900.00 ,LAR,81101500,Civil Engineering
"Ministry of Housing, Communities and Local Government",Homes England,RI - MONIITORING SURVEYOR FEES,Investment,COLLIERS INTERNATIONAL PROPERTY CONSULTANTS,09/12/2021, £810.00 ,LAR,81101500,Civil Engineering
"Ministry of Housing, Communities and Local Government",Homes England,RI - MONIITORING SURVEYOR FEES,Investment,COLLIERS INTERNATIONAL PROPERTY CONSULTANTS,09/12/2021, £900.00 ,LAR,81101500,Civil Engineering
"Ministry of Housing, Communities and Local Government",Homes England,PROF FEES LOANS CAPITALISED,Investment,COLLIERS INTERNATIONAL PROPERTY CONSULTANTS,09/12/2021, £810.00 ,LAR,81101500,Civil Engineering
"Ministry of Housing, Communities and Local Government",Homes England,RI - MONIITORING SURVEYOR FEES,Investment,COLLIERS INTERNATIONAL PROPERTY CONSULTANTS,09/12/2021, £900.00 ,LAR,81101500,Civil Engineering
"Ministry of Housing, Communities and Local Government",Homes England,RI - MONIITORING SURVEYOR FEES,Investment,COLLIERS INTERNATIONAL PROPERTY CONSULTANTS,09/12/2021, £810.00 ,LAR,81101500,Civil Engineering
"Ministry of Housing, Communities and Local Government",Homes England,MANAGEMENT COSTS,Development,COLLIERS INTERNATIONAL PROPERTY CONSULTANTS,10/12/2021," £8,268.66 ",LAR,80131800,Real estate management services
"Ministry of Housing, Communities and Local Government",Homes England,MANAGEMENT COSTS,Development,COLLIERS INTERNATIONAL PROPERTY CONSULTANTS,14/12/2021," £8,268.66 ",LAR,80131800,Real estate management services
"Ministry of Housing, Communities and Local Government",Homes England,MANAGEMENT COSTS,Development,COLLIERS INTERNATIONAL PROPERTY CONSULTANTS,14/12/2021," £8,268.66 ",LAR,80131800,Real estate management services
"Ministry of Housing, Communities and Local Government",Homes England,RI - MONIITORING SURVEYOR FEES,Investment,COLLIERS INTERNATIONAL PROPERTY CONSULTANTS,17/12/2021," £1,320.00 ",LAR,81101500,Civil Engineering
"Ministry of Housing, Communities and Local Government",Homes England,PROF FEES LOANS CAPITALISED,Investment,COLLIERS INTERNATIONAL PROPERTY CONSULTANTS,21/12/2021," £1,980.00 ",LAR,81101500,Civil Engineering
"Ministry of Housing, Communities and Local Government",Homes England,MANAGEMENT COSTS,Development,COLLIERS INTERNATIONAL PROPERTY CONSULTANTS,21/12/2021," £8,268.66 ",LAR,80131800,Real estate management services
"Ministry of Housing, Communities and Local Government",Homes England,RI - MONIITORING SURVEYOR FEES,Investment,COLLIERS INTERNATIONAL PROPERTY CONSULTANTS,21/12/2021, £810.00 ,LAR,81101500,Civil Engineering
"Ministry of Housing, Communities and Local Government",Homes England,RI - MONIITORING SURVEYOR FEES,Investment,COLLIERS INTERNATIONAL PROPERTY CONSULTANTS,21/12/2021, £840.00 ,LAR,81101500,Civil Engineering
"Ministry of Housing, Communities and Local Government",Homes England,RI - MONIITORING SURVEYOR FEES,Investment,COLLIERS INTERNATIONAL PROPERTY CONSULTANTS,24/12/2021, £900.00 ,LAR,81101500,Civil Engineering
"Ministry of Housing, Communities and Local Government",Homes England,BESPOKE DEVELOPMENT SUPPORT,Cido,CORESTREAM,24/12/2021," £35,820.00 ",SMA,80111600,Temporary personnel services
"Ministry of Housing, Communities and Local Government",Homes England,OTHER PROFESSIONAL FEES,"Markets, Partners & Places",COGNITION LAND & WATER,01/12/2021," £28,402.34 ",SMA,80131800,Real estate management services
"Ministry of Housing, Communities and Local Government",Homes England,OTHER PROFESSIONAL FEES,"Markets, Partners & Places",COGNITION LAND & WATER,01/12/2021," £28,402.34 ",SMA,80131800,Real estate management services
"Ministry of Housing, Communities and Local Government",Homes England,LAND REMEDIATION,Development,COGNITION LAND & WATER,02/12/2021," £42,925.88 ",SMA,72141500,Land preparation services
"Ministry of Housing, Communities and Local Government",Homes England,LEGAL FEES (PROGRAMME - RDEL),Investment,CLARKE WILLMOTT LLP,02/12/2021, £720.00 ,LAR,80121600,Business law services
"Ministry of Housing, Communities and Local Government",Homes England,LEGAL FEES (PROGRAMME - RDEL),Investment,CLARKE WILLMOTT LLP,02/12/2021," £1,999.20 ",LAR,80121600,Business law services
"Ministry of Housing, Communities and Local Government",Homes England,DISPOSAL FEES - LEGAL,"Markets, Partners & Places",CLARKE WILLMOTT LLP,02/12/2021, £920.00 ,LAR,80121600,Business law services
"Ministry of Housing, Communities and Local Government",Homes England,DISPOSAL FEES - LEGAL,"Markets, Partners & Places",CLARKE WILLMOTT LLP,02/12/2021," £8,089.80 ",LAR,80121600,Business law services
"Ministry of Housing, Communities and Local Government",Homes England,LEGAL FEES (PROGRAMME - CDEL),Development,CLARKE WILLMOTT LLP,03/12/2021," £2,889.60 ",LAR,80121600,Business law services
"Ministry of Housing, Communities and Local Government",Homes England,LEGAL FEES (PROGRAMME - RDEL),Development,CLARKE WILLMOTT LLP,09/12/2021, £840.00 ,LAR,80121600,Business law services
"Ministry of Housing, Communities and Local Government",Homes England,LEGAL FEES (PROGRAMME - RDEL),Investment,CLARKE WILLMOTT LLP,16/12/2021, £655.20 ,LAR,80121600,Business law services
"Ministry of Housing, Communities and Local Government",Homes England,LEGAL FEES (PROGRAMME - RDEL),Investment,CLARKE WILLMOTT LLP,17/12/2021, £840.00 ,LAR,80121600,Business law services
"Ministry of Housing, Communities and Local Government",Homes England,DISPOSAL FEES - LEGAL,Development,CLARKE WILLMOTT LLP,17/12/2021," £1,800.00 ",LAR,80121600,Business law services
"Ministry of Housing, Communities and Local Government",Homes England,LEGAL FEES (PROGRAMME - RDEL),Development,CLARKE WILLMOTT LLP,17/12/2021," £1,080.00 ",LAR,80121600,Business law services
"Ministry of Housing, Communities and Local Government",Homes England,CLEANING,Development,CHURCHILL CONTRACT SERVICES LTD,03/12/2021," £3,669.21 ",SMA,76111500,General building and office cleaining and maintenance services
"Ministry of Housing, Communities and Local Government",Homes England,ST FUND LOANS ADDITIONS,Investment,CONNAH CONSTRUCTION LTD,17/12/2021," £59,346.99 ",MIC,None,Loans
"Ministry of Housing, Communities and Local Government",Homes England,STAFF PROFESSIONAL SUBS,Corporate Resources,CHARTERED INSTITUTE OF HOUSING,06/12/2021, £344.00 ,MED,94101600,Professional associations
"Ministry of Housing, Communities and Local Government",Homes England,STAFF PROFESSIONAL SUBS,Corporate Resources,CHARTERED INSTITUTE OF HOUSING,21/12/2021," £12,745.00 ",MED,94101600,Professional associations
"Ministry of Housing, Communities and Local Government",Homes England,CAP GRNTS TO LOCAL AUTHORITIES,Investment,CENTRAL BEDFORDSHIRE COUNCIL,20/12/2021," £2,303,775.00 ",PUB,None,Grants
"Ministry of Housing, Communities and Local Government",Homes England,CONTRACT WORKS,Development,CITY DEMOLITION CONTRACTORS (BIRMINGHAM) LTD,20/12/2021," £120,486.95 ",SMA,72141500,Land preparation services
"Ministry of Housing, Communities and Local Government",Homes England,ESTATE GENERAL MAINTENANCE,Development,C.M.A. (NEMESIS) LTD,09/12/2021, £369.60 ,SMA,72101500,Building maintenance and repair services
"Ministry of Housing, Communities and Local Government",Homes England,MANAGEMENT COSTS,Development,C.M.A. (NEMESIS) LTD,14/12/2021, £342.00 ,SMA,80131800,Real estate management services
"Ministry of Housing, Communities and Local Government",Homes England,MANAGEMENT COSTS,Development,FRANK COOPER & SON LIMITED,20/12/2021, £432.22 ,SMA,80131800,Real estate management services
"Ministry of Housing, Communities and Local Government",Homes England,OTHER PROFESSIONAL FEES,Development,CWC GROUP,07/12/2021," £735,540.74 ",MED,None,Contributions
"Ministry of Housing, Communities and Local Government",Homes England,OTHER PROFESSIONAL FEES,Development,CWC GROUP,15/12/2021," £390,164.00 ",MED,None,Contributions
"Ministry of Housing, Communities and Local Government",Homes England,ROADS AND CAR PARKS,"Markets, Partners & Places",C-ELECT ASSOCIATES LIMITED,07/12/2021, £531.60 ,SMA,72101500,Building maintenance and repair services
"Ministry of Housing, Communities and Local Government",Homes England,BUILDINGS-FIRE PREVENTION,"Markets, Partners & Places",C-ELECT ASSOCIATES LIMITED,16/12/2021," £1,565.94 ",SMA,92121700,Security systems services
"Ministry of Housing, Communities and Local Government",Homes England,CONTRACT WORKS,"Markets, Partners & Places",CAWARDEN CO LIMITED,16/12/2021," £4,279.98 ",MED,72141500,Land preparation services
"Ministry of Housing, Communities and Local Government",Homes England,ST FUND LOANS ADDITIONS,Investment,CAPITAL & CENTRIC (ARCTIC) ltd,08/12/2021," £594,910.06 ",SMA,None,Loans
"Ministry of Housing, Communities and Local Government",Homes England,ST FUND LOANS ADDITIONS,Investment,CHERRY TREE DEVELOPMENTS LTD,15/12/2021," £50,824.00 ",SMA,None,Loans
"Ministry of Housing, Communities and Local Government",Homes England,RI - MONIITORING SURVEYOR FEES,Investment,CB RICHARD ELLIS,03/12/2021," £5,880.00 ",LAR,81101500,Civil Engineering
"Ministry of Housing, Communities and Local Government",Homes England,PROPERTY SERVICES,Development,CB RICHARD ELLIS,03/12/2021," £2,700.00 ",LAR,80131800,Real estate management services
"Ministry of Housing, Communities and Local Government",Homes England,RI - MONIITORING SURVEYOR FEES,Investment,CB RICHARD ELLIS,14/12/2021," £5,880.00 ",LAR,81101500,Civil Engineering
"Ministry of Housing, Communities and Local Government",Homes England,RI - MONIITORING SURVEYOR FEES,Investment,CB RICHARD ELLIS,22/12/2021," £5,880.00 ",LAR,81101500,Civil Engineering
"Ministry of Housing, Communities and Local Government",Homes England,MANAGEMENT COSTS,Development,COLLIERS INTERNATIONAL,21/12/2021," £4,194.41 ",LAR,80131800,Real estate management services
"Ministry of Housing, Communities and Local Government",Homes England,MASTERPLANNING FEES,Development,CSA ENVIRONMENTAL,13/12/2021," £3,409.98 ",MED,81101500,Civil Engineering
"Ministry of Housing, Communities and Local Government",Homes England,ESTATE GENERAL MAINTENANCE,Development,CGM GROUP LTD,13/12/2021, £779.08 ,MED,72101500,Building maintenance and repair services
"Ministry of Housing, Communities and Local Government",Homes England,LT FUND LOANS (PS) ADDITIONS,Investment,CAMLAND HYTHE LIMITED,02/12/2021," £582,046.46 ",LAR,None,Loans
"Ministry of Housing, Communities and Local Government",Homes England,LT FUND LOANS (PS) ADDITIONS,Investment,CAMLAND HYTHE LIMITED,23/12/2021," £563,440.54 ",LAR,None,Loans
"Ministry of Housing, Communities and Local Government",Homes England,ST FUND LOANS ADDITIONS,Investment,CBH DEVELOPMENTS LTD,17/12/2021," £99,331.00 ",SMA,None,Loans
"Ministry of Housing, Communities and Local Government",Homes England,FENCE MAINTENANCE,Development,CHANNEL ENGINEERING LTD,02/12/2021, £270.00 ,SMA,72102900,Facility maintenance and repair services
"Ministry of Housing, Communities and Local Government",Homes England,EXTERNAL BUILDING MAINTENANCE,"Markets, Partners & Places",CHANNEL ENGINEERING LTD,02/12/2021, £270.00 ,SMA,72101500,Building maintenance and repair services
"Ministry of Housing, Communities and Local Government",Homes England,FENCE MAINTENANCE,"Markets, Partners & Places",CHANNEL ENGINEERING LTD,02/12/2021, £540.00 ,SMA,72102900,Facility maintenance and repair services
"Ministry of Housing, Communities and Local Government",Homes England,ESTATE GENERAL MAINTENANCE,"Markets, Partners & Places",CHANNEL ENGINEERING LTD,03/12/2021, £306.00 ,SMA,72101500,Building maintenance and repair services
"Ministry of Housing, Communities and Local Government",Homes England,ESTATE GENERAL MAINTENANCE,"Markets, Partners & Places",CHANNEL ENGINEERING LTD,06/12/2021, £546.00 ,SMA,72101500,Building maintenance and repair services
"Ministry of Housing, Communities and Local Government",Homes England,ESTATE GENERAL MAINTENANCE,"Markets, Partners & Places",CHANNEL ENGINEERING LTD,06/12/2021," £1,380.00 ",SMA,72101500,Building maintenance and repair services
"Ministry of Housing, Communities and Local Government",Homes England,FENCE MAINTENANCE,Development,CHANNEL ENGINEERING LTD,06/12/2021, £451.20 ,SMA,72102900,Facility maintenance and repair services
"Ministry of Housing, Communities and Local Government",Homes England,ESTATE GENERAL MAINTENANCE,Development,CHANNEL ENGINEERING LTD,17/12/2021, £360.00 ,SMA,72101500,Building maintenance and repair services
"Ministry of Housing, Communities and Local Government",Homes England,EXTERNAL BUILDING MAINTENANCE,"Markets, Partners & Places",CHANNEL ENGINEERING LTD,17/12/2021, £321.60 ,SMA,72101500,Building maintenance and repair services
"Ministry of Housing, Communities and Local Government",Homes England,ESTATE GENERAL MAINTENANCE,"Markets, Partners & Places",CHANNEL ENGINEERING LTD,21/12/2021, £382.80 ,SMA,72101500,Building maintenance and repair services
"Ministry of Housing, Communities and Local Government",Homes England,ESTATE GENERAL MAINTENANCE,"Markets, Partners & Places",CHANNEL ENGINEERING LTD,21/12/2021, £810.00 ,SMA,72101500,Building maintenance and repair services
"Ministry of Housing, Communities and Local Government",Homes England,ESTATE GENERAL MAINTENANCE,Development,CONNICK TREE SERVICES LTD,22/12/2021," £2,457.60 ",MED,72101500,Building maintenance and repair services
"Ministry of Housing, Communities and Local Government",Homes England,ESTATE GENERAL MAINTENANCE,Development,CARTWRIGHT LANDSCAPES,03/12/2021, £895.13 ,SMA,72101500,Building maintenance and repair services
"Ministry of Housing, Communities and Local Government",Homes England,ESTATE GENERAL MAINTENANCE,Development,CARTWRIGHT LANDSCAPES,03/12/2021, £895.13 ,SMA,72101500,Building maintenance and repair services
"Ministry of Housing, Communities and Local Government",Homes England,FENCE MAINTENANCE,Development,CARTWRIGHT LANDSCAPES,16/12/2021, £708.00 ,SMA,72102900,Facility maintenance and repair services
"Ministry of Housing, Communities and Local Government",Homes England,ESTATE GENERAL MAINTENANCE,Development,CARTWRIGHT LANDSCAPES,21/12/2021," £1,690.34 ",SMA,72101500,Building maintenance and repair services
"Ministry of Housing, Communities and Local Government",Homes England,PLANNED PREVENTATIVE MAINT CON,Development,ENGIE FM LIMITED,15/12/2021, £849.42 ,LAR,72102900,Facility maintenance and repair services
"Ministry of Housing, Communities and Local Government",Homes England,FURNITURE & EQUIPMENT-MAINT,Development,ENGIE FM LIMITED,16/12/2021," £2,140.63 ",LAR,72102900,Facility maintenance and repair services
"Ministry of Housing, Communities and Local Government",Homes England,LEGAL FEES (PROGRAMME - RDEL),Investment,MILLS & REEVE,02/12/2021," £22,312.92 ",LAR,80121600,Business law services
"Ministry of Housing, Communities and Local Government",Homes England,LEGAL FEES (PROGRAMME - RDEL),Development,MILLS & REEVE,03/12/2021, £422.40 ,LAR,80121600,Business law services
"Ministry of Housing, Communities and Local Government",Homes England,LEGAL FEES (PROGRAMME - RDEL),Development,MILLS & REEVE,07/12/2021," £1,668.00 ",LAR,80121600,Business law services
"Ministry of Housing, Communities and Local Government",Homes England,LEGAL FEES (PROGRAMME - RDEL),Development,MILLS & REEVE,07/12/2021," £2,185.75 ",LAR,80121600,Business law services
"Ministry of Housing, Communities and Local Government",Homes England,LEGAL FEES (PROGRAMME - RDEL),Development,MILLS & REEVE,08/12/2021," £1,668.00 ",LAR,80121600,Business law services
"Ministry of Housing, Communities and Local Government",Homes England,LEGAL FEES (PROGRAMME - RDEL),Development,MILLS & REEVE,21/12/2021, £443.15 ,LAR,80121600,Business law services
"Ministry of Housing, Communities and Local Government",Homes England,LEGAL FEES (PROGRAMME - RDEL),Development,MILLS & REEVE,21/12/2021," £4,008.00 ",LAR,80121600,Business law services
"Ministry of Housing, Communities and Local Government",Homes England,LEGAL FEES (PROGRAMME - RDEL),Investment,MILLS & REEVE,23/12/2021," £2,088.00 ",LAR,80121600,Business law services
"Ministry of Housing, Communities and Local Government",Homes England,DATA CENTRE,Cido,OASIS UK NORTH LIMITED,22/12/2021, £589.68 ,LAR,43222600,Network service equipment
"Ministry of Housing, Communities and Local Government",Homes England,MISC PROFESSIONAL FEES,Investment,DRIVERS JONAS DELOITTE,10/12/2021," £41,096.26 ",LAR,80111600,Temporary personnel services
"Ministry of Housing, Communities and Local Government",Homes England,MISC PROFESSIONAL FEES,Investment,DRIVERS JONAS DELOITTE,10/12/2021," £40,365.00 ",LAR,80111600,Temporary personnel services
"Ministry of Housing, Communities and Local Government",Homes England,MISC PROFESSIONAL FEES,Investment,DRIVERS JONAS DELOITTE,10/12/2021," £33,783.76 ",LAR,80111600,Temporary personnel services
"Ministry of Housing, Communities and Local Government",Homes England,MISC PROFESSIONAL FEES,Investment,DRIVERS JONAS DELOITTE,10/12/2021," £44,231.26 ",LAR,80111600,Temporary personnel services
"Ministry of Housing, Communities and Local Government",Homes England,MISC PROFESSIONAL FEES,Investment,DRIVERS JONAS DELOITTE,10/12/2021," £34,807.50 ",LAR,80111600,Temporary personnel services
"Ministry of Housing, Communities and Local Government",Homes England,PROPERTY SERVICES,"Markets, Partners & Places",DRIVERS JONAS DELOITTE,14/12/2021," £28,344.00 ",LAR,80131800,Real estate management services
"Ministry of Housing, Communities and Local Government",Homes England,MISC PROFESSIONAL FEES,"Markets, Partners & Places",DRIVERS JONAS DELOITTE,21/12/2021," £32,256.00 ",LAR,80111600,Temporary personnel services
"Ministry of Housing, Communities and Local Government",Homes England,MISC PROFESSIONAL FEES,"Markets, Partners & Places",DRIVERS JONAS DELOITTE,21/12/2021," £59,904.00 ",LAR,80111600,Temporary personnel services
"Ministry of Housing, Communities and Local Government",Homes England,MANAGEMENT COSTS,Development,CUSHMAN & WAKEFIELD DEBENHAM TIE LEUNG,01/12/2021," £4,425.54 ",LAR,80131800,Real estate management services
"Ministry of Housing, Communities and Local Government",Homes England,PROPERTY SERVICES,Development,CUSHMAN & WAKEFIELD DEBENHAM TIE LEUNG,01/12/2021," £4,380.00 ",LAR,80131800,Real estate management services
"Ministry of Housing, Communities and Local Government",Homes England,PROPERTY SERVICES,"Markets, Partners & Places",CUSHMAN & WAKEFIELD DEBENHAM TIE LEUNG,03/12/2021," £6,600.00 ",LAR,80131800,Real estate management services
"Ministry of Housing, Communities and Local Government",Homes England,RI - MONIITORING SURVEYOR FEES,Investment,CUSHMAN & WAKEFIELD DEBENHAM TIE LEUNG,03/12/2021, £870.00 ,LAR,81101500,Civil Engineering
"Ministry of Housing, Communities and Local Government",Homes England,RI - MONIITORING SURVEYOR FEES,Investment,CUSHMAN & WAKEFIELD DEBENHAM TIE LEUNG,06/12/2021, £840.00 ,LAR,81101500,Civil Engineering
"Ministry of Housing, Communities and Local Government",Homes England,RI - MONIITORING SURVEYOR FEES,Investment,CUSHMAN & WAKEFIELD DEBENHAM TIE LEUNG,06/12/2021, £840.00 ,LAR,81101500,Civil Engineering
"Ministry of Housing, Communities and Local Government",Homes England,RI - MONIITORING SURVEYOR FEES,Investment,CUSHMAN & WAKEFIELD DEBENHAM TIE LEUNG,06/12/2021," £1,200.00 ",LAR,81101500,Civil Engineering
"Ministry of Housing, Communities and Local Government",Homes England,MISC PROFESSIONAL FEES,Investment,CUSHMAN & WAKEFIELD DEBENHAM TIE LEUNG,06/12/2021," £11,806.80 ",LAR,80131800,Real estate management services
"Ministry of Housing, Communities and Local Government",Homes England,HEALTH & SAFETY SURVEYS,"Markets, Partners & Places",CUSHMAN & WAKEFIELD DEBENHAM TIE LEUNG,06/12/2021," £2,100.00 ",LAR,72101500,Building maintenance and repair services
"Ministry of Housing, Communities and Local Government",Homes England,RI - MONIITORING SURVEYOR FEES,Investment,CUSHMAN & WAKEFIELD DEBENHAM TIE LEUNG,07/12/2021," £1,056.00 ",LAR,81101500,Civil Engineering
"Ministry of Housing, Communities and Local Government",Homes England,MISC PROFESSIONAL FEES,Investment,CUSHMAN & WAKEFIELD DEBENHAM TIE LEUNG,07/12/2021," £8,401.08 ",LAR,80131800,Real estate management services
"Ministry of Housing, Communities and Local Government",Homes England,PROPERTY SERVICES,Development,CUSHMAN & WAKEFIELD DEBENHAM TIE LEUNG,07/12/2021, £600.00 ,LAR,80131800,Real estate management services
"Ministry of Housing, Communities and Local Government",Homes England,MANAGEMENT COSTS,"Markets, Partners & Places",CUSHMAN & WAKEFIELD DEBENHAM TIE LEUNG,08/12/2021, £300.00 ,LAR,80131800,Real estate management services
"Ministry of Housing, Communities and Local Government",Homes England,PROPERTY SERVICES,Development,CUSHMAN & WAKEFIELD DEBENHAM TIE LEUNG,08/12/2021, £300.00 ,LAR,80131800,Real estate management services
"Ministry of Housing, Communities and Local Government",Homes England,PROPERTY SERVICES,Development,CUSHMAN & WAKEFIELD DEBENHAM TIE LEUNG,08/12/2021, £300.00 ,LAR,80131800,Real estate management services
"Ministry of Housing, Communities and Local Government",Homes England,PROPERTY SERVICES,"Markets, Partners & Places",CUSHMAN & WAKEFIELD DEBENHAM TIE LEUNG,08/12/2021, £300.00 ,LAR,80131800,Real estate management services
"Ministry of Housing, Communities and Local Government",Homes England,MANAGEMENT COSTS,Development,CUSHMAN & WAKEFIELD DEBENHAM TIE LEUNG,08/12/2021, £300.00 ,LAR,80131800,Real estate management services
"Ministry of Housing, Communities and Local Government",Homes England,PROPERTY SERVICES,Development,CUSHMAN & WAKEFIELD DEBENHAM TIE LEUNG,08/12/2021, £300.00 ,LAR,80131800,Real estate management services
"Ministry of Housing, Communities and Local Government",Homes England,PROPERTY SERVICES,"Markets, Partners & Places",CUSHMAN & WAKEFIELD DEBENHAM TIE LEUNG,08/12/2021, £300.00 ,LAR,80131800,Real estate management services
"Ministry of Housing, Communities and Local Government",Homes England,PROPERTY SERVICES,"Markets, Partners & Places",CUSHMAN & WAKEFIELD DEBENHAM TIE LEUNG,08/12/2021, £300.00 ,LAR,80131800,Real estate management services
"Ministry of Housing, Communities and Local Government",Homes England,PROPERTY SERVICES,Development,CUSHMAN & WAKEFIELD DEBENHAM TIE LEUNG,08/12/2021, £300.00 ,LAR,80131800,Real estate management services
"Ministry of Housing, Communities and Local Government",Homes England,PROPERTY SERVICES,Development,CUSHMAN & WAKEFIELD DEBENHAM TIE LEUNG,08/12/2021, £300.00 ,LAR,80131800,Real estate management services
"Ministry of Housing, Communities and Local Government",Homes England,PROPERTY SERVICES,Development,CUSHMAN & WAKEFIELD DEBENHAM TIE LEUNG,08/12/2021, £300.00 ,LAR,80131800,Real estate management services
"Ministry of Housing, Communities and Local Government",Homes England,PROF FEES LOANS CAPITALISED,Investment,CUSHMAN & WAKEFIELD DEBENHAM TIE LEUNG,08/12/2021, £900.00 ,LAR,81101500,Civil Engineering
"Ministry of Housing, Communities and Local Government",Homes England,RI - MONIITORING SURVEYOR FEES,Investment,CUSHMAN & WAKEFIELD DEBENHAM TIE LEUNG,08/12/2021, £840.00 ,LAR,81101500,Civil Engineering
"Ministry of Housing, Communities and Local Government",Homes England,RI - MONIITORING SURVEYOR FEES,Investment,CUSHMAN & WAKEFIELD DEBENHAM TIE LEUNG,08/12/2021, £900.00 ,LAR,81101500,Civil Engineering
"Ministry of Housing, Communities and Local Government",Homes England,RI - MONIITORING SURVEYOR FEES,Investment,CUSHMAN & WAKEFIELD DEBENHAM TIE LEUNG,08/12/2021, £840.00 ,LAR,81101500,Civil Engineering
"Ministry of Housing, Communities and Local Government",Homes England,MANAGEMENT COSTS,Development,CUSHMAN & WAKEFIELD DEBENHAM TIE LEUNG,09/12/2021, £300.00 ,LAR,80131800,Real estate management services
"Ministry of Housing, Communities and Local Government",Homes England,PROPERTY SERVICES,"Markets, Partners & Places",CUSHMAN & WAKEFIELD DEBENHAM TIE LEUNG,09/12/2021, £300.00 ,LAR,80131800,Real estate management services
"Ministry of Housing, Communities and Local Government",Homes England,RI - MONIITORING SURVEYOR FEES,Investment,CUSHMAN & WAKEFIELD DEBENHAM TIE LEUNG,09/12/2021, £960.00 ,LAR,81101500,Civil Engineering
"Ministry of Housing, Communities and Local Government",Homes England,RI - MONIITORING SURVEYOR FEES,Investment,CUSHMAN & WAKEFIELD DEBENHAM TIE LEUNG,09/12/2021," £1,020.00 ",LAR,81101500,Civil Engineering
"Ministry of Housing, Communities and Local Government",Homes England,RI - MONIITORING SURVEYOR FEES,Investment,CUSHMAN & WAKEFIELD DEBENHAM TIE LEUNG,09/12/2021," £1,020.00 ",LAR,81101500,Civil Engineering
"Ministry of Housing, Communities and Local Government",Homes England,RI - MONIITORING SURVEYOR FEES,Investment,CUSHMAN & WAKEFIELD DEBENHAM TIE LEUNG,09/12/2021," £1,020.00 ",LAR,81101500,Civil Engineering
"Ministry of Housing, Communities and Local Government",Homes England,RI - MONIITORING SURVEYOR FEES,Investment,CUSHMAN & WAKEFIELD DEBENHAM TIE LEUNG,09/12/2021, £960.00 ,LAR,81101500,Civil Engineering
"Ministry of Housing, Communities and Local Government",Homes England,RI - MONIITORING SURVEYOR FEES,Investment,CUSHMAN & WAKEFIELD DEBENHAM TIE LEUNG,09/12/2021, £960.00 ,LAR,81101500,Civil Engineering
"Ministry of Housing, Communities and Local Government",Homes England,RI - MONIITORING SURVEYOR FEES,Investment,CUSHMAN & WAKEFIELD DEBENHAM TIE LEUNG,09/12/2021, £900.00 ,LAR,81101500,Civil Engineering
"Ministry of Housing, Communities and Local Government",Homes England,DISPOSAL FEES - PROPERTY AGENT,"Markets, Partners & Places",CUSHMAN & WAKEFIELD DEBENHAM TIE LEUNG,09/12/2021," £12,000.00 ",LAR,80131600,Sale of property and building
"Ministry of Housing, Communities and Local Government",Homes England,MISC PROFESSIONAL FEES,"Markets, Partners & Places",CUSHMAN & WAKEFIELD DEBENHAM TIE LEUNG,13/12/2021, £300.00 ,LAR,80131800,Real estate management services
"Ministry of Housing, Communities and Local Government",Homes England,MANAGEMENT COSTS,Development,CUSHMAN & WAKEFIELD DEBENHAM TIE LEUNG,13/12/2021, £300.00 ,LAR,80131800,Real estate management services
"Ministry of Housing, Communities and Local Government",Homes England,PROPERTY SERVICES,Development,CUSHMAN & WAKEFIELD DEBENHAM TIE LEUNG,14/12/2021," £1,530.00 ",LAR,80131800,Real estate management services
"Ministry of Housing, Communities and Local Government",Homes England,MANAGEMENT COSTS,"Markets, Partners & Places",CUSHMAN & WAKEFIELD DEBENHAM TIE LEUNG,14/12/2021," £1,896.66 ",LAR,80131800,Real estate management services
"Ministry of Housing, Communities and Local Government",Homes England,PROPERTY SERVICES,Development,CUSHMAN & WAKEFIELD DEBENHAM TIE LEUNG,14/12/2021, £790.27 ,LAR,80131800,Real estate management services
"Ministry of Housing, Communities and Local Government",Homes England,PROPERTY SERVICES,Development,CUSHMAN & WAKEFIELD DEBENHAM TIE LEUNG,14/12/2021," £2,190.00 ",LAR,80131800,Real estate management services
"Ministry of Housing, Communities and Local Government",Homes England,PROPERTY SERVICES,Development,CUSHMAN & WAKEFIELD DEBENHAM TIE LEUNG,14/12/2021," £1,725.00 ",LAR,80131800,Real estate management services
"Ministry of Housing, Communities and Local Government",Homes England,PROPERTY SERVICES,Development,CUSHMAN & WAKEFIELD DEBENHAM TIE LEUNG,14/12/2021," £1,530.00 ",LAR,80131800,Real estate management services
"Ministry of Housing, Communities and Local Government",Homes England,PROPERTY SERVICES,Development,CUSHMAN & WAKEFIELD DEBENHAM TIE LEUNG,14/12/2021," £1,680.00 ",LAR,80131800,Real estate management services
"Ministry of Housing, Communities and Local Government",Homes England,PROPERTY SERVICES,Development,CUSHMAN & WAKEFIELD DEBENHAM TIE LEUNG,14/12/2021," £2,025.00 ",LAR,80131800,Real estate management services
"Ministry of Housing, Communities and Local Government",Homes England,PROPERTY SERVICES,Development,CUSHMAN & WAKEFIELD DEBENHAM TIE LEUNG,14/12/2021," £1,725.00 ",LAR,80131800,Real estate management services
"Ministry of Housing, Communities and Local Government",Homes England,PROPERTY SERVICES,Development,CUSHMAN & WAKEFIELD DEBENHAM TIE LEUNG,14/12/2021," £1,725.00 ",LAR,80131800,Real estate management services
"Ministry of Housing, Communities and Local Government",Homes England,PROPERTY SERVICES,Development,CUSHMAN & WAKEFIELD DEBENHAM TIE LEUNG,14/12/2021," £1,725.00 ",LAR,80131800,Real estate management services
"Ministry of Housing, Communities and Local Government",Homes England,PROPERTY SERVICES,Development,CUSHMAN & WAKEFIELD DEBENHAM TIE LEUNG,14/12/2021," £5,324.48 ",LAR,80131800,Real estate management services
"Ministry of Housing, Communities and Local Government",Homes England,PROPERTY SERVICES,Development,CUSHMAN & WAKEFIELD DEBENHAM TIE LEUNG,14/12/2021, £948.34 ,LAR,80131800,Real estate management services
"Ministry of Housing, Communities and Local Government",Homes England,PROPERTY SERVICES,"Markets, Partners & Places",CUSHMAN & WAKEFIELD DEBENHAM TIE LEUNG,14/12/2021," £2,375.40 ",LAR,80131800,Real estate management services
"Ministry of Housing, Communities and Local Government",Homes England,PROPERTY SERVICES,"Markets, Partners & Places",CUSHMAN & WAKEFIELD DEBENHAM TIE LEUNG,14/12/2021," £1,580.56 ",LAR,80131800,Real estate management services
"Ministry of Housing, Communities and Local Government",Homes England,PROPERTY SERVICES,"Markets, Partners & Places",CUSHMAN & WAKEFIELD DEBENHAM TIE LEUNG,14/12/2021," £2,829.18 ",LAR,80131800,Real estate management services
"Ministry of Housing, Communities and Local Government",Homes England,PROPERTY SERVICES,Development,CUSHMAN & WAKEFIELD DEBENHAM TIE LEUNG,14/12/2021," £1,738.61 ",LAR,80131800,Real estate management services
"Ministry of Housing, Communities and Local Government",Homes England,PROPERTY SERVICES,"Markets, Partners & Places",CUSHMAN & WAKEFIELD DEBENHAM TIE LEUNG,14/12/2021," £2,928.02 ",LAR,80131800,Real estate management services
"Ministry of Housing, Communities and Local Government",Homes England,PROPERTY SERVICES,"Markets, Partners & Places",CUSHMAN & WAKEFIELD DEBENHAM TIE LEUNG,14/12/2021," £1,264.44 ",LAR,80131800,Real estate management services
"Ministry of Housing, Communities and Local Government",Homes England,MANAGEMENT COSTS,Development,CUSHMAN & WAKEFIELD DEBENHAM TIE LEUNG,14/12/2021," £2,427.73 ",LAR,80131800,Real estate management services
"Ministry of Housing, Communities and Local Government",Homes England,PROPERTY SERVICES,Development,CUSHMAN & WAKEFIELD DEBENHAM TIE LEUNG,14/12/2021, £869.30 ,LAR,80131800,Real estate management services
"Ministry of Housing, Communities and Local Government",Homes England,PROPERTY SERVICES,Development,CUSHMAN & WAKEFIELD DEBENHAM TIE LEUNG,14/12/2021," £1,058.96 ",LAR,80131800,Real estate management services
"Ministry of Housing, Communities and Local Government",Homes England,PROPERTY SERVICES,Development,CUSHMAN & WAKEFIELD DEBENHAM TIE LEUNG,14/12/2021," £2,449.85 ",LAR,80131800,Real estate management services
"Ministry of Housing, Communities and Local Government",Homes England,PROPERTY SERVICES,Development,CUSHMAN & WAKEFIELD DEBENHAM TIE LEUNG,14/12/2021, £869.30 ,LAR,80131800,Real estate management services
"Ministry of Housing, Communities and Local Government",Homes England,PROPERTY SERVICES,Development,CUSHMAN & WAKEFIELD DEBENHAM TIE LEUNG,14/12/2021," £2,925.00 ",LAR,80131800,Real estate management services
"Ministry of Housing, Communities and Local Government",Homes England,PROPERTY SERVICES,Development,CUSHMAN & WAKEFIELD DEBENHAM TIE LEUNG,14/12/2021," £1,725.00 ",LAR,80131800,Real estate management services
"Ministry of Housing, Communities and Local Government",Homes England,PROPERTY SERVICES,Development,CUSHMAN & WAKEFIELD DEBENHAM TIE LEUNG,14/12/2021," £2,325.00 ",LAR,80131800,Real estate management services
"Ministry of Housing, Communities and Local Government",Homes England,RI - MONIITORING SURVEYOR FEES,Investment,CUSHMAN & WAKEFIELD DEBENHAM TIE LEUNG,14/12/2021," £5,400.00 ",LAR,81101500,Civil Engineering
"Ministry of Housing, Communities and Local Government",Homes England,MISC PROFESSIONAL FEES,"Markets, Partners & Places",CUSHMAN & WAKEFIELD DEBENHAM TIE LEUNG,16/12/2021," £1,234.96 ",LAR,80131800,Real estate management services
"Ministry of Housing, Communities and Local Government",Homes England,MANAGEMENT COSTS,Development,CUSHMAN & WAKEFIELD DEBENHAM TIE LEUNG,16/12/2021," £1,422.49 ",LAR,80131800,Real estate management services
"Ministry of Housing, Communities and Local Government",Homes England,PROPERTY SERVICES,Development,CUSHMAN & WAKEFIELD DEBENHAM TIE LEUNG,20/12/2021," £3,536.26 ",LAR,80131800,Real estate management services
"Ministry of Housing, Communities and Local Government",Homes England,PROPERTY SERVICES,Development,CUSHMAN & WAKEFIELD DEBENHAM TIE LEUNG,20/12/2021," £1,011.55 ",LAR,80131800,Real estate management services
"Ministry of Housing, Communities and Local Government",Homes England,PROPERTY SERVICES,"Markets, Partners & Places",CUSHMAN & WAKEFIELD DEBENHAM TIE LEUNG,22/12/2021," £1,440.00 ",LAR,80131800,Real estate management services
"Ministry of Housing, Communities and Local Government",Homes England,MANAGEMENT COSTS,Development,CUSHMAN & WAKEFIELD DEBENHAM TIE LEUNG,23/12/2021," £2,212.78 ",LAR,80131800,Real estate management services
"Ministry of Housing, Communities and Local Government",Homes England,L&OD STRATEGIC - HR USE ONLY,Corporate Resources,DARWIN PRESS,15/12/2021, £619.00 ,SMA,86101800,In service training and manpower development
"Ministry of Housing, Communities and Local Government",Homes England,DEVELOPMENT MANAGEMENT,Development,DESIGN FOR HOMES,15/12/2021," £6,576.00 ",SMA,80131800,Real estate management services
"Ministry of Housing, Communities and Local Government",Homes England,MISC PROFESSIONAL FEES,Corporate Resources,DELOITTE MCS LTD,10/12/2021," £30,000.00 ",LAR,80101500,Business and corporate management consultation services
"Ministry of Housing, Communities and Local Government",Homes England,TRAINING COURSES & CONFERENCES,Investment,DNA COACH,17/12/2021," £3,948.00 ",SMA,86101800,In service training and manpower development
"Ministry of Housing, Communities and Local Government",Homes England,TRAINING COURSES & CONFERENCES,Development,DNA COACH,17/12/2021," £4,140.00 ",SMA,86101800,In service training and manpower development
"Ministry of Housing, Communities and Local Government",Homes England,TRAINING COURSES & CONFERENCES,Development,DNA COACH,17/12/2021," £2,232.00 ",SMA,86101800,In service training and manpower development
"Ministry of Housing, Communities and Local Government",Homes England,STAFF RECRUITMENT COSTS,Corporate Resources,DVV MEDIA INTERNATIONAL,24/12/2021," £1,558.80 ",LAR,80111700,Personnel Recruitment
"Ministry of Housing, Communities and Local Government",Homes England,LEGAL FEES (PROGRAMME - CDEL),"Markets, Partners & Places",DWF LLP,13/12/2021," £2,343.96 ",LAR,80121600,Business law services
"Ministry of Housing, Communities and Local Government",Homes England,DISPOSAL FEES - LEGAL,"Markets, Partners & Places",DWF LLP,21/12/2021," £1,519.92 ",LAR,80121600,Business law services
"Ministry of Housing, Communities and Local Government",Homes England,ST FUND LOANS ADDITIONS,Investment,DURLEY ROAD DEVELOPMENTS LLP,14/12/2021," £100,000.00 ",SMA,None,Loans
"Ministry of Housing, Communities and Local Government",Homes England,BUILDINGS-VACANT RATES,Development,DERBY CITY COUNCIL,17/12/2021," £2,857.08 ",PUB,80131500,Lease and rental of property or building
"Ministry of Housing, Communities and Local Government",Homes England,CONTRACT WORKS,Development,DSR DEMOLITION LIMITED,10/12/2021," £81,103.21 ",SMA,72141500,Land preparation services
"Ministry of Housing, Communities and Local Government",Homes England,CONTRACT WORKS,Development,DSR DEMOLITION LIMITED,23/12/2021," £45,651.82 ",SMA,72141500,Land preparation services
"Ministry of Housing, Communities and Local Government",Homes England,STAFF MEDICAL FEES,Corporate Resources,DIVERSITY AND ABILITY,01/12/2021, £876.00 ,SMA,86101800,In service training and manpower development
"Ministry of Housing, Communities and Local Government",Homes England,OTHER PROFESSIONAL FEES,Development,DM SAFETY & HEALTH SERVICES LIMITED,21/12/2021," £3,379.20 ",SMA,80131800,Real estate management services
"Ministry of Housing, Communities and Local Government",Homes England,NETWORKS,Cido,DAISY CORPORATE SERVICES TRADING LIMITED,08/12/2021," £8,861.29 ",LAR,81112100,Internet Services
"Ministry of Housing, Communities and Local Government",Homes England,NETWORKS,Cido,DAISY CORPORATE SERVICES TRADING LIMITED,24/12/2021," £8,861.29 ",LAR,81112100,Internet Services
"Ministry of Housing, Communities and Local Government",Homes England,LEGAL FEES (PROGRAMME - RDEL),Development,DWF LAW LLP,01/12/2021," £1,500.00 ",LAR,80121600,Business law services
"Ministry of Housing, Communities and Local Government",Homes England,LEGAL FEES (PROGRAMME - RDEL),Development,DWF LAW LLP,02/12/2021," £1,196.40 ",LAR,80121600,Business law services
"Ministry of Housing, Communities and Local Government",Homes England,LEGAL FEES (ADMIN ONLY),Corporate Resources,DWF LAW LLP,03/12/2021, £600.00 ,LAR,80121600,Business law services
"Ministry of Housing, Communities and Local Government",Homes England,LEGAL FEES (PROGRAMME - RDEL),Development,DWF LAW LLP,13/12/2021," £1,092.00 ",LAR,80121600,Business law services
"Ministry of Housing, Communities and Local Government",Homes England,LEGAL FEES (PROGRAMME - RDEL),Investment,DWF LAW LLP,15/12/2021," £3,000.00 ",LAR,80121600,Business law services
"Ministry of Housing, Communities and Local Government",Homes England,DISPOSAL FEES - LEGAL,Development,DWF LAW LLP,16/12/2021, £611.64 ,LAR,80121600,Business law services
"Ministry of Housing, Communities and Local Government",Homes England,LEGAL FEES (ADMIN ONLY),Corporate Resources,DWF LAW LLP,17/12/2021, £600.00 ,LAR,80121600,Business law services
"Ministry of Housing, Communities and Local Government",Homes England,LEGAL FEES (ADMIN ONLY),Corporate Resources,DWF LAW LLP,17/12/2021, £600.00 ,LAR,80121600,Business law services
"Ministry of Housing, Communities and Local Government",Homes England,LEGAL FEES (ADMIN ONLY),Corporate Resources,DWF LAW LLP,17/12/2021, £600.00 ,LAR,80121600,Business law services
"Ministry of Housing, Communities and Local Government",Homes England,LEGAL FEES (ADMIN ONLY),Corporate Resources,DWF LAW LLP,17/12/2021, £600.00 ,LAR,80121600,Business law services
"Ministry of Housing, Communities and Local Government",Homes England,LEGAL FEES (PROGRAMME - RDEL),Development,DWF LAW LLP,17/12/2021, £628.80 ,LAR,80121600,Business law services
"Ministry of Housing, Communities and Local Government",Homes England,PROF FEES LOANS CAPITALISED,Investment,DWF LAW LLP,21/12/2021," £12,598.10 ",LAR,80121600,Business law services
"Ministry of Housing, Communities and Local Government",Homes England,MISC PROFESSIONAL FEES,Development,DWF LAW LLP,22/12/2021, £427.80 ,LAR,80121600,Business law services
"Ministry of Housing, Communities and Local Government",Homes England,LEGAL FEES (ADMIN ONLY),Corporate Resources,DWF LAW LLP,23/12/2021, £420.00 ,LAR,80121600,Business law services
"Ministry of Housing, Communities and Local Government",Homes England,LEGAL FEES (PROGRAMME - CDEL),"Markets, Partners & Places",DWF LAW LLP,23/12/2021, £540.00 ,LAR,80121600,Business law services
"Ministry of Housing, Communities and Local Government",Homes England,AGENCY STAFF,Investment,DWF LAW LLP,23/12/2021, £600.00 ,LAR,80111600,Temporary personnel services
"Ministry of Housing, Communities and Local Government",Homes England,AGENCY STAFF,Investment,DWF LAW LLP,24/12/2021, £600.00 ,LAR,80111600,Temporary personnel services
"Ministry of Housing, Communities and Local Government",Homes England,ST FUND LOANS ADDITIONS,Investment,ETOPIA WILBURTON LIMITED,13/12/2021," £57,316.73 ",MIC,None,Loans
"Ministry of Housing, Communities and Local Government",Homes England,PACKAGE MAINTENANCE & SUBSCRIP,Cido,DB GROUP LTD T/A ESUASIVE,22/12/2021, £918.00 ,SMA,43231500,Business function specific software
"Ministry of Housing, Communities and Local Government",Homes England,LEGAL FEES (PROGRAMME - CDEL),Development,WOOD ENVIRONMENT & INFRASTRUCTURE SOLUTIONS,03/12/2021," £42,993.60 ",LAR,80121600,Business law services
"Ministry of Housing, Communities and Local Government",Homes England,ENGINEERING FEES,Development,WOOD ENVIRONMENT & INFRASTRUCTURE SOLUTIONS,03/12/2021," £7,176.00 ",LAR,81101500,Civil Engineering
"Ministry of Housing, Communities and Local Government",Homes England,PROPERTY SERVICES,"Markets, Partners & Places",WOOD ENVIRONMENT & INFRASTRUCTURE SOLUTIONS,06/12/2021," £2,818.77 ",LAR,80131800,Real estate management services
"Ministry of Housing, Communities and Local Government",Homes England,PROPERTY SERVICES,"Markets, Partners & Places",WOOD ENVIRONMENT & INFRASTRUCTURE SOLUTIONS,06/12/2021, £681.84 ,LAR,80131800,Real estate management services
"Ministry of Housing, Communities and Local Government",Homes England,PROPERTY SERVICES,"Markets, Partners & Places",WOOD ENVIRONMENT & INFRASTRUCTURE SOLUTIONS,06/12/2021," £3,866.28 ",LAR,80131800,Real estate management services
"Ministry of Housing, Communities and Local Government",Homes England,PROPERTY SERVICES,"Markets, Partners & Places",WOOD ENVIRONMENT & INFRASTRUCTURE SOLUTIONS,06/12/2021, £747.46 ,LAR,80131800,Real estate management services
"Ministry of Housing, Communities and Local Government",Homes England,PROPERTY SERVICES,"Markets, Partners & Places",WOOD ENVIRONMENT & INFRASTRUCTURE SOLUTIONS,06/12/2021," £3,294.74 ",LAR,80131800,Real estate management services
"Ministry of Housing, Communities and Local Government",Homes England,ENGINEERING FEES,Development,WOOD ENVIRONMENT & INFRASTRUCTURE SOLUTIONS,07/12/2021," £6,000.00 ",LAR,81101500,Civil Engineering
"Ministry of Housing, Communities and Local Government",Homes England,OTHER PROFESSIONAL FEES,"Markets, Partners & Places",WOOD ENVIRONMENT & INFRASTRUCTURE SOLUTIONS,07/12/2021," £3,769.24 ",LAR,80131800,Real estate management services
"Ministry of Housing, Communities and Local Government",Homes England,MASTERPLANNING FEES,Development,WOOD ENVIRONMENT & INFRASTRUCTURE SOLUTIONS,16/12/2021," £31,920.00 ",LAR,81101500,Civil Engineering
"Ministry of Housing, Communities and Local Government",Homes England,PLANNING APPLICATIONS,"Markets, Partners & Places",WOOD ENVIRONMENT & INFRASTRUCTURE SOLUTIONS,23/12/2021," £4,860.00 ",LAR,80131800,Real estate management services
"Ministry of Housing, Communities and Local Government",Homes England,MASTERPLANNING FEES,"Markets, Partners & Places",WOOD ENVIRONMENT & INFRASTRUCTURE SOLUTIONS,23/12/2021," £3,978.00 ",LAR,81101500,Civil Engineering
"Ministry of Housing, Communities and Local Government",Homes England,MASTERPLANNING FEES,"Markets, Partners & Places",WOOD ENVIRONMENT & INFRASTRUCTURE SOLUTIONS,23/12/2021," £4,260.00 ",LAR,81101500,Civil Engineering
"Ministry of Housing, Communities and Local Government",Homes England,MASTERPLANNING FEES,"Markets, Partners & Places",WOOD ENVIRONMENT & INFRASTRUCTURE SOLUTIONS,23/12/2021," £2,520.00 ",LAR,81101500,Civil Engineering
"Ministry of Housing, Communities and Local Government",Homes England,MASTERPLANNING FEES,"Markets, Partners & Places",WOOD ENVIRONMENT & INFRASTRUCTURE SOLUTIONS,23/12/2021," £2,232.00 ",LAR,81101500,Civil Engineering
"Ministry of Housing, Communities and Local Government",Homes England,PLANNING APPLICATIONS,"Markets, Partners & Places",WOOD ENVIRONMENT & INFRASTRUCTURE SOLUTIONS,23/12/2021," £1,692.00 ",LAR,80131800,Real estate management services
"Ministry of Housing, Communities and Local Government",Homes England,MASTERPLANNING FEES,"Markets, Partners & Places",WOOD ENVIRONMENT & INFRASTRUCTURE SOLUTIONS,23/12/2021," £3,360.00 ",LAR,81101500,Civil Engineering
"Ministry of Housing, Communities and Local Government",Homes England,PLANNING FEES,"Markets, Partners & Places",WOOD ENVIRONMENT & INFRASTRUCTURE SOLUTIONS,24/12/2021," £12,555.00 ",LAR,80131800,Real estate management services
"Ministry of Housing, Communities and Local Government",Homes England,ENGINEERING CONSULTANTS,"Markets, Partners & Places",WOOD ENVIRONMENT & INFRASTRUCTURE SOLUTIONS,24/12/2021," £6,720.60 ",LAR,81101500,Civil Engineering
"Ministry of Housing, Communities and Local Government",Homes England,STAFF RECRUITMENT COSTS,Corporate Resources,ESTATES GAZETTE,16/12/2021," £2,340.00 ",MED,80111700,Personnel Recruitment
"Ministry of Housing, Communities and Local Government",Homes England,CAR HIRE,Investment,ENTERPRISE RENT A CAR,21/12/2021, £496.94 ,LAR,78111800,Passenger road transportation
"Ministry of Housing, Communities and Local Government",Homes England,ST FUND LOANS ADDITIONS,Investment,EAST CHALLOWS LLP,13/12/2021," £134,698.00 ",LAR,None,Loans
"Ministry of Housing, Communities and Local Government",Homes England,L&OD STRATEGIC - HR USE ONLY,Corporate Resources,ERNST & YOUNG,21/12/2021," £9,002.58 ",LAR,86101800,In service training and manpower development
"Ministry of Housing, Communities and Local Government",Homes England,MANAGEMENT COSTS,Development,ELITE SCAFFOLDING (SOUTHERN) LTD,13/12/2021," £2,400.00 ",SMA,80131800,Real estate management services
"Ministry of Housing, Communities and Local Government",Homes England,ENGINEERING FEES,Development,EGNIOL CONSULTING LIMITED,15/12/2021," £1,500.00 ",SMA,81101500,Civil Engineering
"Ministry of Housing, Communities and Local Government",Homes England,ST FUND LOANS ADDITIONS,Investment,EDG IRONMONGER LTD,09/12/2021," £195,257.75 ",SMA,None,Loans
"Ministry of Housing, Communities and Local Government",Homes England,MOBILES,Cido,EE LTD,16/12/2021," £31,343.63 ",LAR,83111500,Local and long distance telephone communications
"Ministry of Housing, Communities and Local Government",Homes England,COMPUTERS - ADDITIONS,Cido,EE LTD,16/12/2021," £11,750.40 ",LAR,43211500,Computers
"Ministry of Housing, Communities and Local Government",Homes England,LEGAL FEES (PROGRAMME - RDEL),"Markets, Partners & Places",EVERSHEDS CLIENT ACCOUNT,07/12/2021," £35,554.80 ",LAR,80121600,Business law services
"Ministry of Housing, Communities and Local Government",Homes England,LEGAL FEES (PROGRAMME - RDEL),"Markets, Partners & Places",EVERSHEDS CLIENT ACCOUNT,07/12/2021," £1,218.00 ",LAR,80121600,Business law services
"Ministry of Housing, Communities and Local Government",Homes England,LEGAL FEES (PROGRAMME - RDEL),"Markets, Partners & Places",EVERSHEDS CLIENT ACCOUNT,09/12/2021," £2,640.00 ",LAR,80121600,Business law services
"Ministry of Housing, Communities and Local Government",Homes England,LEGAL FEES (PROGRAMME - RDEL),Investment,EVERSHEDS CLIENT ACCOUNT,10/12/2021," £2,300.40 ",LAR,80121600,Business law services
"Ministry of Housing, Communities and Local Government",Homes England,DISPOSAL FEES - LEGAL,"Markets, Partners & Places",EVERSHEDS CLIENT ACCOUNT,16/12/2021," £9,993.60 ",LAR,80121600,Business law services
"Ministry of Housing, Communities and Local Government",Homes England,LEGAL FEES (PROGRAMME - RDEL),"Markets, Partners & Places",EVERSHEDS CLIENT ACCOUNT,16/12/2021," £4,259.96 ",LAR,80121600,Business law services
"Ministry of Housing, Communities and Local Government",Homes England,LEGAL FEES (PROGRAMME - CDEL),"Markets, Partners & Places",EVERSHEDS CLIENT ACCOUNT,16/12/2021," £1,224.00 ",LAR,80121600,Business law services
"Ministry of Housing, Communities and Local Government",Homes England,DISPOSAL FEES - LEGAL,"Markets, Partners & Places",EVERSHEDS CLIENT ACCOUNT,16/12/2021," £1,512.00 ",LAR,80121600,Business law services
"Ministry of Housing, Communities and Local Government",Homes England,LEGAL FEES (PROGRAMME - RDEL),"Markets, Partners & Places",EVERSHEDS CLIENT ACCOUNT,24/12/2021," £49,368.40 ",LAR,80121600,Business law services
"Ministry of Housing, Communities and Local Government",Homes England,LEGAL FEES (PROGRAMME - RDEL),"Markets, Partners & Places",EVERSHEDS CLIENT ACCOUNT,24/12/2021," £25,972.80 ",LAR,80121600,Business law services
"Ministry of Housing, Communities and Local Government",Homes England,ESTATE GENERAL MAINTENANCE,Development,EA FORMBY (NW) LIMITED,13/12/2021, £420.00 ,SMA,72101500,Building maintenance and repair services
"Ministry of Housing, Communities and Local Government",Homes England,ST FUND LOANS ADDITIONS,Investment,ERRIS HOMES (YORKSHIRE) LIMITED,06/12/2021," £240,159.00 ",SMA,None,Loans
"Ministry of Housing, Communities and Local Government",Homes England,ST FUND LOANS ADDITIONS,Investment,ERRIS HOMES (YORKSHIRE) LIMITED,15/12/2021," £258,719.00 ",SMA,None,Loans
"Ministry of Housing, Communities and Local Government",Homes England,ST FUND LOANS ADDITIONS,Investment,EVAN HOMES (TOCKWITH) LTD,14/12/2021," £499,329.46 ",MIC,None,Loans
"Ministry of Housing, Communities and Local Government",Homes England,ESTATE GENERAL MAINTENANCE,Development,ECOLOGICAL LAND MANGEMENT LTD,01/12/2021, £600.00 ,SMA,72101500,Building maintenance and repair services
"Ministry of Housing, Communities and Local Government",Homes England,ESTATE GENERAL MAINTENANCE,Development,ECOLOGICAL LAND MANGEMENT LTD,21/12/2021, £792.00 ,SMA,72101500,Building maintenance and repair services
"Ministry of Housing, Communities and Local Government",Homes England,ST FUND LOANS ADDITIONS,Investment,EVANS MANN COMMERCIAL LTD,15/12/2021," £338,088.00 ",LAR,None,Loans
"Ministry of Housing, Communities and Local Government",Homes England,ESTATE GENERAL MAINTENANCE,Development,EDF ENERGY,13/12/2021, £564.68 ,LAR,72101500,Building maintenance and repair services
"Ministry of Housing, Communities and Local Government",Homes England,ESTATE GENERAL MAINTENANCE,Development,EDF ENERGY,13/12/2021, £898.85 ,LAR,72101500,Building maintenance and repair services
"Ministry of Housing, Communities and Local Government",Homes England,ESTATE GENERAL MAINTENANCE,Development,EDF ENERGY,13/12/2021, £291.84 ,LAR,72101500,Building maintenance and repair services
"Ministry of Housing, Communities and Local Government",Homes England,ESTATE GENERAL MAINTENANCE,Development,EDF ENERGY,13/12/2021, £508.06 ,LAR,72101500,Building maintenance and repair services
"Ministry of Housing, Communities and Local Government",Homes England,ESTATE GENERAL MAINTENANCE,Development,EDF ENERGY,13/12/2021, £710.54 ,LAR,72101500,Building maintenance and repair services
"Ministry of Housing, Communities and Local Government",Homes England,ESTATE GENERAL MAINTENANCE,Development,EDF ENERGY,13/12/2021, £796.34 ,LAR,72101500,Building maintenance and repair services
"Ministry of Housing, Communities and Local Government",Homes England,ESTATE GENERAL MAINTENANCE,Development,EDF ENERGY,13/12/2021, £714.54 ,LAR,72101500,Building maintenance and repair services
"Ministry of Housing, Communities and Local Government",Homes England,ESTATE GENERAL MAINTENANCE,Development,EDF ENERGY,13/12/2021, £652.98 ,LAR,72101500,Building maintenance and repair services
"Ministry of Housing, Communities and Local Government",Homes England,ESTATE GENERAL MAINTENANCE,Development,EDF ENERGY,13/12/2021," £2,543.72 ",LAR,72101500,Building maintenance and repair services
"Ministry of Housing, Communities and Local Government",Homes England,INVESTMENT IN ASSOC JV ADDITIO,Investment,ECF (GENERAL PARTNER) LTD,16/12/2021," £2,081,000.00 ",MED,None,Contributions
"Ministry of Housing, Communities and Local Government",Homes England,STAMP DUTY,Development,EVERSHEDS SUTHERLAND LLP CLIENT ACCOUNT,20/12/2021," £1,884.00 ",LAR,93161600,Taxation
"Ministry of Housing, Communities and Local Government",Homes England,COST OF ACQUISITION,Development,EVERSHEDS SUTHERLAND LLP CLIENT ACCOUNT,20/12/2021," £41,220.00 ",LAR,None,Acquisition
"Ministry of Housing, Communities and Local Government",Homes England,COST OF ACQUISITION,Development,EVERSHEDS SUTHERLAND LLP CLIENT ACCOUNT,20/12/2021," £110,580.00 ",LAR,None,Acquisition
"Ministry of Housing, Communities and Local Government",Homes England,COST OF ACQUISITION,Development,EVERSHEDS SUTHERLAND LLP CLIENT ACCOUNT,20/12/2021," £203,535.00 ",LAR,None,Acquisition
"Ministry of Housing, Communities and Local Government",Homes England,RI - MONIITORING SURVEYOR FEES,Investment,EDDISONS COMMERCIAL LIMITED,01/12/2021, £900.00 ,MED,81101500,Civil Engineering
"Ministry of Housing, Communities and Local Government",Homes England,RI - MONIITORING SURVEYOR FEES,Investment,EDDISONS COMMERCIAL LIMITED,03/12/2021, £900.00 ,MED,81101500,Civil Engineering
"Ministry of Housing, Communities and Local Government",Homes England,RI - MONIITORING SURVEYOR FEES,Investment,EDDISONS COMMERCIAL LIMITED,03/12/2021, £900.00 ,MED,81101500,Civil Engineering
"Ministry of Housing, Communities and Local Government",Homes England,RI - MONIITORING SURVEYOR FEES,Investment,EDDISONS COMMERCIAL LIMITED,08/12/2021, £834.00 ,MED,81101500,Civil Engineering
"Ministry of Housing, Communities and Local Government",Homes England,RI - MONIITORING SURVEYOR FEES,Investment,EDDISONS COMMERCIAL LIMITED,09/12/2021, £834.00 ,MED,81101500,Civil Engineering
"Ministry of Housing, Communities and Local Government",Homes England,RI - MONIITORING SURVEYOR FEES,Investment,EDDISONS COMMERCIAL LIMITED,09/12/2021, £870.00 ,MED,81101500,Civil Engineering
"Ministry of Housing, Communities and Local Government",Homes England,RI - MONIITORING SURVEYOR FEES,Investment,EDDISONS COMMERCIAL LIMITED,21/12/2021, £900.00 ,MED,81101500,Civil Engineering
"Ministry of Housing, Communities and Local Government",Homes England,RI - MONIITORING SURVEYOR FEES,Investment,EDDISONS COMMERCIAL LIMITED,24/12/2021, £900.00 ,MED,81101500,Civil Engineering
"Ministry of Housing, Communities and Local Government",Homes England,RI - MONIITORING SURVEYOR FEES,Investment,EDDISONS COMMERCIAL LIMITED,24/12/2021, £900.00 ,MED,81101500,Civil Engineering
"Ministry of Housing, Communities and Local Government",Homes England,OTHER PROFESSIONAL FEES,"Markets, Partners & Places",EAST HAMPSHIRE DISTRICT COUNCIL,01/12/2021," £10,080.00 ",PUB,80131800,Real estate management services
"Ministry of Housing, Communities and Local Government",Homes England,MASTERPLANNING FEES,Development,EAST HAMPSHIRE DISTRICT COUNCIL,02/12/2021," £27,401.45 ",PUB,81101500,Civil Engineering
"Ministry of Housing, Communities and Local Government",Homes England,OTHER PROFESSIONAL FEES,"Markets, Partners & Places",EAST HAMPSHIRE DISTRICT COUNCIL,02/12/2021," £12,654.24 ",PUB,80131800,Real estate management services
"Ministry of Housing, Communities and Local Government",Homes England,MISC PROFESSIONAL FEES,"Markets, Partners & Places",EAST HAMPSHIRE DISTRICT COUNCIL,06/12/2021," £1,544.15 ",PUB,81101500,Civil Engineering
"Ministry of Housing, Communities and Local Government",Homes England,MASTERPLANNING FEES,Development,EAST HAMPSHIRE DISTRICT COUNCIL,24/12/2021," £14,968.61 ",PUB,81101500,Civil Engineering
"Ministry of Housing, Communities and Local Government",Homes England,PROJECT MANAGEMENT,"Markets, Partners & Places",AECOM LIMITED,01/12/2021," £3,739.13 ",LAR,80101600,Project management
"Ministry of Housing, Communities and Local Government",Homes England,PROJECT MANAGEMENT,"Markets, Partners & Places",AECOM LIMITED,01/12/2021," £2,666.40 ",LAR,80101600,Project management
"Ministry of Housing, Communities and Local Government",Homes England,RI - MONIITORING SURVEYOR FEES,Investment,AECOM LIMITED,03/12/2021," £3,860.84 ",LAR,81101500,Civil Engineering
"Ministry of Housing, Communities and Local Government",Homes England,OTHER PROFESSIONAL FEES,Development,AECOM LIMITED,06/12/2021," £71,807.54 ",LAR,80131800,Real estate management services
"Ministry of Housing, Communities and Local Government",Homes England,DEVELOPMENT MANAGEMENT,Development,AECOM LIMITED,08/12/2021," £1,500.00 ",LAR,80131800,Real estate management services
"Ministry of Housing, Communities and Local Government",Homes England,ENVIRONMENTAL ASSESMENT,"Markets, Partners & Places",AECOM LIMITED,10/12/2021," £4,454.11 ",LAR,77101500,Environmental auditing
"Ministry of Housing, Communities and Local Government",Homes England,RI - MONIITORING SURVEYOR FEES,Investment,AECOM LIMITED,13/12/2021," £1,980.00 ",LAR,81101500,Civil Engineering
"Ministry of Housing, Communities and Local Government",Homes England,PLANNING APPLICATIONS,"Markets, Partners & Places",AECOM LIMITED,16/12/2021," £2,547.95 ",LAR,80131800,Real estate management services
"Ministry of Housing, Communities and Local Government",Homes England,PLANNING APPLICATIONS,"Markets, Partners & Places",AECOM LIMITED,16/12/2021, £376.38 ,LAR,80131800,Real estate management services
"Ministry of Housing, Communities and Local Government",Homes England,PLANNING APPLICATIONS,"Markets, Partners & Places",AECOM LIMITED,16/12/2021," £10,453.56 ",LAR,80131800,Real estate management services
"Ministry of Housing, Communities and Local Government",Homes England,PLANNING APPLICATIONS,"Markets, Partners & Places",AECOM LIMITED,16/12/2021," £42,118.97 ",LAR,80131800,Real estate management services
"Ministry of Housing, Communities and Local Government",Homes England,Other Land Loans Fv Additions,"Markets, Partners & Places",AECOM LIMITED,16/12/2021, £930.89 ,LAR,72101500,Building maintenance and repair services
"Ministry of Housing, Communities and Local Government",Homes England,DEVELOPMENT MANAGEMENT,Development,AECOM LIMITED,20/12/2021," £1,500.00 ",LAR,80131800,Real estate management services
"Ministry of Housing, Communities and Local Government",Homes England,OTHER PROFESSIONAL FEES,Development,AECOM LIMITED,20/12/2021," £12,551.52 ",LAR,80131800,Real estate management services
"Ministry of Housing, Communities and Local Government",Homes England,OTHER PROFESSIONAL FEES,"Markets, Partners & Places",AECOM LIMITED,21/12/2021," £1,128.96 ",LAR,80131800,Real estate management services
"Ministry of Housing, Communities and Local Government",Homes England,OTHER PROFESSIONAL FEES,"Markets, Partners & Places",AECOM LIMITED,21/12/2021," £64,477.09 ",LAR,80131800,Real estate management services
"Ministry of Housing, Communities and Local Government",Homes England,RI - MONIITORING SURVEYOR FEES,Investment,AECOM LIMITED,24/12/2021," £3,860.84 ",LAR,81101500,Civil Engineering
"Ministry of Housing, Communities and Local Government",Homes England,EXTERNAL ROOM BOOKINGS,Development,FRIENDS HOUSE,08/12/2021, £460.00 ,SMA,90111600,Meeting facilities
"Ministry of Housing, Communities and Local Government",Homes England,RI - SITE VALUATION FEES,Investment,SAVILLS UK LIMITED,03/12/2021," £10,200.00 ",LAR,80131800,Real estate management services
"Ministry of Housing, Communities and Local Government",Homes England,MARKET RESEARCH FEES,"Markets, Partners & Places",SAVILLS UK LIMITED,03/12/2021," £4,500.00 ",LAR,80141500,Market research
"Ministry of Housing, Communities and Local Government",Homes England,COST OF ACQUISITION,Development,SAVILLS UK LIMITED,03/12/2021," £6,000.00 ",LAR,80131600,Sale of property and building
"Ministry of Housing, Communities and Local Government",Homes England,OTHER PROFESSIONAL FEES,Development,SAVILLS UK LIMITED,08/12/2021," £4,200.00 ",LAR,80131800,Real estate management services
"Ministry of Housing, Communities and Local Government",Homes England,PROPERTY SERVICES,"Markets, Partners & Places",SAVILLS UK LIMITED,10/12/2021," £1,800.00 ",LAR,80131800,Real estate management services
"Ministry of Housing, Communities and Local Government",Homes England,PROPERTY SERVICES,Development,SAVILLS UK LIMITED,13/12/2021," £13,892.40 ",LAR,80131800,Real estate management services
"Ministry of Housing, Communities and Local Government",Homes England,DISPOSAL FEES - PROPERTY AGENT,Development,SAVILLS UK LIMITED,21/12/2021," £2,100.00 ",LAR,80131600,Sale of property and building
"Ministry of Housing, Communities and Local Government",Homes England,VALUATION FEES,Development,SAVILLS UK LIMITED,22/12/2021," £6,300.00 ",LAR,80131800,Real estate management services
"Ministry of Housing, Communities and Local Government",Homes England,VALUATION FEES,Development,SAVILLS UK LIMITED,22/12/2021," £6,300.00 ",LAR,80131800,Real estate management services
"Ministry of Housing, Communities and Local Government",Homes England,PROPERTY SERVICES,Development,SAVILLS UK LIMITED,23/12/2021," £3,000.00 ",LAR,80131800,Real estate management services
"Ministry of Housing, Communities and Local Government",Homes England,LT FUND LOANS (PS) ADDITIONS,Investment,FAIRBRIDGE DEVELOPMENTS LTD,07/12/2021," £64,671.34 ",SMA,None,Loans
"Ministry of Housing, Communities and Local Government",Homes England,LT FUND LOANS (PS) ADDITIONS,Investment,FAIRBRIDGE DEVELOPMENTS LTD,17/12/2021," £58,115.43 ",SMA,None,Loans
"Ministry of Housing, Communities and Local Government",Homes England,ST FUND LOANS ADDITIONS,Investment,F4 DEVELOPMENTS LTD,10/12/2021," £84,920.88 ",MIC,None,Loans
"Ministry of Housing, Communities and Local Government",Homes England,ST FUND LOANS ADDITIONS,Investment,FP (YE CORNER) LIMITED,08/12/2021," £182,826.96 ",LAR,None,Loans
"Ministry of Housing, Communities and Local Government",Homes England,ST FUND LOANS ADDITIONS,Investment,FP (YE CORNER) LIMITED,21/12/2021," £126,712.29 ",LAR,None,Loans
"Ministry of Housing, Communities and Local Government",Homes England,ST FUND LOANS ADDITIONS,Investment,FOXGLOVE INVESTMENTS HOMES LIMITED,15/12/2021," £231,930.00 ",MIC,None,Loans
"Ministry of Housing, Communities and Local Government",Homes England,ST FUND LOANS ADDITIONS,Investment,FOOTSTEP LIVING DEVELOPMENTS LTD,14/12/2021," £231,753.45 ",MIC,None,Loans
"Ministry of Housing, Communities and Local Government",Homes England,ESTATE GENERAL MAINTENANCE,Development,FASSFERN FORESTRY LIMITED,21/12/2021," £1,548.00 ",SMA,72101500,Building maintenance and repair services
"Ministry of Housing, Communities and Local Government",Homes England,L&OD STRATEGIC - HR USE ONLY,Corporate Resources,FLUID BRANDING LIMITED,15/12/2021," £2,606.64 ",MED,86101800,In service training and manpower development
"Ministry of Housing, Communities and Local Government",Homes England,TRAINING COURSES & CONFERENCES,Cido,FIREBRAND TRAINING LTD,13/12/2021," £7,740.00 ",MED,86101800,In service training and manpower development
"Ministry of Housing, Communities and Local Government",Homes England,EXTERNAL BUILDING MAINTENANCE,Development,R FOX T/A SOUTHCOAST MAINTENANCE,03/12/2021," £2,448.00 ",SMA,72101500,Building maintenance and repair services
"Ministry of Housing, Communities and Local Government",Homes England,EXTERNAL BUILDING MAINTENANCE,Development,R FOX T/A SOUTHCOAST MAINTENANCE,03/12/2021," £2,640.00 ",SMA,72101500,Building maintenance and repair services
"Ministry of Housing, Communities and Local Government",Homes England,BUILDINGS-ELECTRICITY,Development,R FOX T/A SOUTHCOAST MAINTENANCE,03/12/2021," £1,680.00 ",SMA,83101800,Electric utilities
"Ministry of Housing, Communities and Local Government",Homes England,DRAINS & SEWERS,Development,R FOX T/A SOUTHCOAST MAINTENANCE,08/12/2021," £5,700.00 ",SMA,72101500,Building maintenance and repair services
"Ministry of Housing, Communities and Local Government",Homes England,MANAGEMENT COSTS,Development,R FOX T/A SOUTHCOAST MAINTENANCE,08/12/2021, £420.00 ,SMA,80131800,Real estate management services
"Ministry of Housing, Communities and Local Government",Homes England,MANAGEMENT COSTS,Development,R FOX T/A SOUTHCOAST MAINTENANCE,08/12/2021, £734.40 ,SMA,80131800,Real estate management services
"Ministry of Housing, Communities and Local Government",Homes England,DRAINS & SEWERS,Development,R FOX T/A SOUTHCOAST MAINTENANCE,08/12/2021," £1,440.00 ",SMA,72101500,Building maintenance and repair services
"Ministry of Housing, Communities and Local Government",Homes England,BUILDINGS-CLEANING,Development,R FOX T/A SOUTHCOAST MAINTENANCE,08/12/2021, £756.00 ,SMA,76111500,General building and office cleaining and maintenance services
"Ministry of Housing, Communities and Local Government",Homes England,BUILDINGS-WATER,Development,R FOX T/A SOUTHCOAST MAINTENANCE,08/12/2021, £670.80 ,SMA,83101500,Water and sewer utilities
"Ministry of Housing, Communities and Local Government",Homes England,BUILDINGS-ELECTRICITY,Development,R FOX T/A SOUTHCOAST MAINTENANCE,08/12/2021, £720.00 ,SMA,83101800,Electric utilities
"Ministry of Housing, Communities and Local Government",Homes England,MANAGEMENT COSTS,Development,R FOX T/A SOUTHCOAST MAINTENANCE,08/12/2021," £1,800.00 ",SMA,80131800,Real estate management services
"Ministry of Housing, Communities and Local Government",Homes England,EXTERNAL BUILDING MAINTENANCE,Development,R FOX T/A SOUTHCOAST MAINTENANCE,09/12/2021, £840.00 ,SMA,72101500,Building maintenance and repair services
"Ministry of Housing, Communities and Local Government",Homes England,SECURITY,Development,R FOX T/A SOUTHCOAST MAINTENANCE,09/12/2021, £304.80 ,SMA,92121500,Guard services
"Ministry of Housing, Communities and Local Government",Homes England,LANDSCAPE MAINT-BUILT ESTATE,Development,R FOX T/A SOUTHCOAST MAINTENANCE,13/12/2021, £840.00 ,SMA,72102900,Facility maintenance and repair services
"Ministry of Housing, Communities and Local Government",Homes England,FENCE MAINTENANCE,Development,R FOX T/A SOUTHCOAST MAINTENANCE,17/12/2021," £1,958.40 ",SMA,72102900,Facility maintenance and repair services
"Ministry of Housing, Communities and Local Government",Homes England,FENCE MAINTENANCE,Development,R FOX T/A SOUTHCOAST MAINTENANCE,17/12/2021," £3,240.00 ",SMA,72102900,Facility maintenance and repair services
"Ministry of Housing, Communities and Local Government",Homes England,ROADS AND CAR PARKS,Development,R FOX T/A SOUTHCOAST MAINTENANCE,17/12/2021," £2,640.00 ",SMA,72101500,Building maintenance and repair services
"Ministry of Housing, Communities and Local Government",Homes England,ROADS AND CAR PARKS,Development,R FOX T/A SOUTHCOAST MAINTENANCE,17/12/2021," £3,150.00 ",SMA,72101500,Building maintenance and repair services
"Ministry of Housing, Communities and Local Government",Homes England,MANAGEMENT COSTS,"Markets, Partners & Places",R FOX T/A SOUTHCOAST MAINTENANCE,17/12/2021," £1,176.00 ",SMA,80131800,Real estate management services
"Ministry of Housing, Communities and Local Government",Homes England,MANAGEMENT COSTS,Development,R FOX T/A SOUTHCOAST MAINTENANCE,17/12/2021, £600.00 ,SMA,80131800,Real estate management services
"Ministry of Housing, Communities and Local Government",Homes England,MANAGEMENT COSTS,Development,R FOX T/A SOUTHCOAST MAINTENANCE,17/12/2021, £840.00 ,SMA,80131800,Real estate management services
"Ministry of Housing, Communities and Local Government",Homes England,MANAGEMENT COSTS,Development,R FOX T/A SOUTHCOAST MAINTENANCE,17/12/2021," £1,440.00 ",SMA,80131800,Real estate management services
"Ministry of Housing, Communities and Local Government",Homes England,MANAGEMENT COSTS,Development,R FOX T/A SOUTHCOAST MAINTENANCE,17/12/2021, £423.60 ,SMA,80131800,Real estate management services
"Ministry of Housing, Communities and Local Government",Homes England,MANAGEMENT COSTS,Development,R FOX T/A SOUTHCOAST MAINTENANCE,17/12/2021, £600.00 ,SMA,80131800,Real estate management services
"Ministry of Housing, Communities and Local Government",Homes England,MANAGEMENT COSTS,Development,R FOX T/A SOUTHCOAST MAINTENANCE,17/12/2021, £908.40 ,SMA,80131800,Real estate management services
"Ministry of Housing, Communities and Local Government",Homes England,TRAINING COURSES & CONFERENCES,Corporate Resources,FINANCE TRAINING ACADEMY LIMITED,02/12/2021," £1,980.00 ",MIC,86101800,In service training and manpower development
